Organisation Name,Organisation Code,Unique Ref No,Effective Date,Directorate where expenditure incurred, Supplier Name ,Payment Date,Net Amount,Purpose of Spend,Procurement Classification (Higher Level),Procurement Classification (Lower Level),CAPITAL / REVENUE
Walsall Council,http://opendatacommunities.org/id/metropolitan-district-council/walsall ,WC126-1,31.05.2021,CHILDRENS,247 CARS (WILLENHALL) LIMITED,19/05/2021,"1,330.00",6241-Hire of Vehicle with Driver,TRANSPORT,DIRECT TRANSPORT COSTS,REVENUE
Walsall Council,http://opendatacommunities.org/id/metropolitan-district-council/walsall ,WC126-2,31.05.2021,CHILDRENS,247 CARS (WILLENHALL) LIMITED,19/05/2021,950.04,6241-Hire of Vehicle with Driver,TRANSPORT,DIRECT TRANSPORT COSTS,REVENUE
Walsall Council,http://opendatacommunities.org/id/metropolitan-district-council/walsall ,WC126-3,31.05.2021,CHILDRENS,247 CARS (WILLENHALL) LIMITED,19/05/2021,792.40,6241-Hire of Vehicle with Driver,TRANSPORT,DIRECT TRANSPORT COSTS,REVENUE
Walsall Council,http://opendatacommunities.org/id/metropolitan-district-council/walsall ,WC126-4,31.05.2021,RESOURCES AND TRANSFORMATION,3 SPIRIT UK TRAINING & CONSULTANCY,07/05/2021,700.00,6625-Consultant Fees,SUPPLIES & SERVICES,SERVICES,REVENUE
Walsall Council,http://opendatacommunities.org/id/metropolitan-district-council/walsall ,WC126-5,31.05.2021,RESOURCES AND TRANSFORMATION,3 SPIRIT UK TRAINING & CONSULTANCY,12/05/2021,700.00,6625-Consultant Fees,SUPPLIES & SERVICES,SERVICES,REVENUE
Walsall Council,http://opendatacommunities.org/id/metropolitan-district-council/walsall ,WC126-6,31.05.2021,RESOURCES AND TRANSFORMATION,3 SPIRIT UK TRAINING & CONSULTANCY,12/05/2021,725.00,6625-Consultant Fees,SUPPLIES & SERVICES,SERVICES,REVENUE
Walsall Council,http://opendatacommunities.org/id/metropolitan-district-council/walsall ,WC126-7,31.05.2021,RESOURCES AND TRANSFORMATION,3 SPIRIT UK TRAINING & CONSULTANCY,19/05/2021,700.00,6625-Consultant Fees,SUPPLIES & SERVICES,SERVICES,REVENUE
Walsall Council,http://opendatacommunities.org/id/metropolitan-district-council/walsall ,WC126-8,31.05.2021,RESOURCES AND TRANSFORMATION,31ST SUTTON COLDFIELD WEST SCOUT GROUP BUILDING FUND,26/05/2021,480.00,6610-Hire of Room,SUPPLIES & SERVICES,SERVICES,REVENUE
Walsall Council,http://opendatacommunities.org/id/metropolitan-district-council/walsall ,WC126-9,31.05.2021,CHILDRENS,3PB BARRISTERS,19/05/2021,"1,750.00",6220-External Legal Fees,SUPPLIES & SERVICES,SERVICES,REVENUE
Walsall Council,http://opendatacommunities.org/id/metropolitan-district-council/walsall ,WC126-10,31.05.2021,ADULT SOCIAL CARE,5 CARE SERVICES LTD,10/05/2021,254.38,6541-Domiciliary Care,THIRD PARTY PAYMENTS,PRIVATE CONTRACTOR,REVENUE
Walsall Council,http://opendatacommunities.org/id/metropolitan-district-council/walsall ,WC126-11,31.05.2021,ADULT SOCIAL CARE,5 CARE SERVICES LTD,10/05/2021,303.72,6541-Domiciliary Care,THIRD PARTY PAYMENTS,PRIVATE CONTRACTOR,REVENUE
Walsall Council,http://opendatacommunities.org/id/metropolitan-district-council/walsall ,WC126-12,31.05.2021,ADULT SOCIAL CARE,5 CARE SERVICES LTD,10/05/2021,560.52,6541-Domiciliary Care,THIRD PARTY PAYMENTS,PRIVATE CONTRACTOR,REVENUE
Walsall Council,http://opendatacommunities.org/id/metropolitan-district-council/walsall ,WC126-13,31.05.2021,ADULT SOCIAL CARE,5 CARE SERVICES LTD,10/05/2021,311.40,6541-Domiciliary Care,THIRD PARTY PAYMENTS,PRIVATE CONTRACTOR,REVENUE
Walsall Council,http://opendatacommunities.org/id/metropolitan-district-council/walsall ,WC126-14,31.05.2021,ADULT SOCIAL CARE,5 CARE SERVICES LTD,10/05/2021,326.97,6541-Domiciliary Care,THIRD PARTY PAYMENTS,PRIVATE CONTRACTOR,REVENUE
Walsall Council,http://opendatacommunities.org/id/metropolitan-district-council/walsall ,WC126-15,31.05.2021,ADULT SOCIAL CARE,5 CARE SERVICES LTD,10/05/2021,544.95,6541-Domiciliary Care,THIRD PARTY PAYMENTS,PRIVATE CONTRACTOR,REVENUE
Walsall Council,http://opendatacommunities.org/id/metropolitan-district-council/walsall ,WC126-16,31.05.2021,ADULT SOCIAL CARE,5 CARE SERVICES LTD,10/05/2021,490.49,6541-Domiciliary Care,THIRD PARTY PAYMENTS,PRIVATE CONTRACTOR,REVENUE
Walsall Council,http://opendatacommunities.org/id/metropolitan-district-council/walsall ,WC126-17,31.05.2021,ADULT SOCIAL CARE,5 CARE SERVICES LTD,10/05/2021,"2,506.77",6541-Domiciliary Care,THIRD PARTY PAYMENTS,PRIVATE CONTRACTOR,REVENUE
Walsall Council,http://opendatacommunities.org/id/metropolitan-district-council/walsall ,WC126-18,31.05.2021,ADULT SOCIAL CARE,5 CARE SERVICES LTD,10/05/2021,"1,198.89",6541-Domiciliary Care,THIRD PARTY PAYMENTS,PRIVATE CONTRACTOR,REVENUE
Walsall Council,http://opendatacommunities.org/id/metropolitan-district-council/walsall ,WC126-19,31.05.2021,ADULT SOCIAL CARE,5 CARE SERVICES LTD,10/05/2021,654.01,6541-Domiciliary Care,THIRD PARTY PAYMENTS,PRIVATE CONTRACTOR,REVENUE
Walsall Council,http://opendatacommunities.org/id/metropolitan-district-council/walsall ,WC126-20,31.05.2021,ADULT SOCIAL CARE,5 CARE SERVICES LTD,10/05/2021,272.51,6541-Domiciliary Care,THIRD PARTY PAYMENTS,PRIVATE CONTRACTOR,REVENUE
Walsall Council,http://opendatacommunities.org/id/metropolitan-district-council/walsall ,WC126-21,31.05.2021,ADULT SOCIAL CARE,5 CARE SERVICES LTD,10/05/2021,257.00,6541-Domiciliary Care,THIRD PARTY PAYMENTS,PRIVATE CONTRACTOR,REVENUE
Walsall Council,http://opendatacommunities.org/id/metropolitan-district-council/walsall ,WC126-22,31.05.2021,ADULT SOCIAL CARE,5 CARE SERVICES LTD,10/05/2021,591.66,6541-Domiciliary Care,THIRD PARTY PAYMENTS,PRIVATE CONTRACTOR,REVENUE
Walsall Council,http://opendatacommunities.org/id/metropolitan-district-council/walsall ,WC126-23,31.05.2021,ADULT SOCIAL CARE,5 CARE SERVICES LTD,10/05/2021,-301.04,6541-Domiciliary Care,THIRD PARTY PAYMENTS,PRIVATE CONTRACTOR,REVENUE
Walsall Council,http://opendatacommunities.org/id/metropolitan-district-council/walsall ,WC126-24,31.05.2021,ADULT SOCIAL CARE,5 CARE SERVICES LTD,10/05/2021,599.55,6541-Domiciliary Care,THIRD PARTY PAYMENTS,PRIVATE CONTRACTOR,REVENUE
Walsall Council,http://opendatacommunities.org/id/metropolitan-district-council/walsall ,WC126-25,31.05.2021,ADULT SOCIAL CARE,5 CARE SERVICES LTD,10/05/2021,490.49,6541-Domiciliary Care,THIRD PARTY PAYMENTS,PRIVATE CONTRACTOR,REVENUE
Walsall Council,http://opendatacommunities.org/id/metropolitan-district-council/walsall ,WC126-26,31.05.2021,ADULT SOCIAL CARE,5 CARE SERVICES LTD,10/05/2021,827.86,6541-Domiciliary Care,THIRD PARTY PAYMENTS,PRIVATE CONTRACTOR,REVENUE
Walsall Council,http://opendatacommunities.org/id/metropolitan-district-council/walsall ,WC126-27,31.05.2021,ADULT SOCIAL CARE,5 CARE SERVICES LTD,10/05/2021,311.40,6541-Domiciliary Care,THIRD PARTY PAYMENTS,PRIVATE CONTRACTOR,REVENUE
Walsall Council,http://opendatacommunities.org/id/metropolitan-district-council/walsall ,WC126-28,31.05.2021,ADULT SOCIAL CARE,5 CARE SERVICES LTD,10/05/2021,435.96,6541-Domiciliary Care,THIRD PARTY PAYMENTS,PRIVATE CONTRACTOR,REVENUE
Walsall Council,http://opendatacommunities.org/id/metropolitan-district-council/walsall ,WC126-29,31.05.2021,ADULT SOCIAL CARE,5 CARE SERVICES LTD,10/05/2021,654.01,6541-Domiciliary Care,THIRD PARTY PAYMENTS,PRIVATE CONTRACTOR,REVENUE
Walsall Council,http://opendatacommunities.org/id/metropolitan-district-council/walsall ,WC126-30,31.05.2021,ADULT SOCIAL CARE,5 CARE SERVICES LTD,10/05/2021,326.97,6541-Domiciliary Care,THIRD PARTY PAYMENTS,PRIVATE CONTRACTOR,REVENUE
Walsall Council,http://opendatacommunities.org/id/metropolitan-district-council/walsall ,WC126-31,31.05.2021,ADULT SOCIAL CARE,5 CARE SERVICES LTD,10/05/2021,599.48,6541-Domiciliary Care,THIRD PARTY PAYMENTS,PRIVATE CONTRACTOR,REVENUE
Walsall Council,http://opendatacommunities.org/id/metropolitan-district-council/walsall ,WC126-32,31.05.2021,ADULT SOCIAL CARE,5 CARE SERVICES LTD,10/05/2021,-435.28,6541-Domiciliary Care,THIRD PARTY PAYMENTS,PRIVATE CONTRACTOR,REVENUE
Walsall Council,http://opendatacommunities.org/id/metropolitan-district-council/walsall ,WC126-33,31.05.2021,ADULT SOCIAL CARE,5 CARE SERVICES LTD,10/05/2021,705.84,6541-Domiciliary Care,THIRD PARTY PAYMENTS,PRIVATE CONTRACTOR,REVENUE
Walsall Council,http://opendatacommunities.org/id/metropolitan-district-council/walsall ,WC126-34,31.05.2021,ADULT SOCIAL CARE,5 CARE SERVICES LTD,10/05/2021,544.95,6541-Domiciliary Care,THIRD PARTY PAYMENTS,PRIVATE CONTRACTOR,REVENUE
Walsall Council,http://opendatacommunities.org/id/metropolitan-district-council/walsall ,WC126-35,31.05.2021,ADULT SOCIAL CARE,5 CARE SERVICES LTD,10/05/2021,490.49,6541-Domiciliary Care,THIRD PARTY PAYMENTS,PRIVATE CONTRACTOR,REVENUE
Walsall Council,http://opendatacommunities.org/id/metropolitan-district-council/walsall ,WC126-36,31.05.2021,ADULT SOCIAL CARE,5 CARE SERVICES LTD,10/05/2021,373.68,6541-Domiciliary Care,THIRD PARTY PAYMENTS,PRIVATE CONTRACTOR,REVENUE
Walsall Council,http://opendatacommunities.org/id/metropolitan-district-council/walsall ,WC126-37,31.05.2021,ADULT SOCIAL CARE,5 CARE SERVICES LTD,10/05/2021,591.66,6541-Domiciliary Care,THIRD PARTY PAYMENTS,PRIVATE CONTRACTOR,REVENUE
Walsall Council,http://opendatacommunities.org/id/metropolitan-district-council/walsall ,WC126-38,31.05.2021,ADULT SOCIAL CARE,5 CARE SERVICES LTD,10/05/2021,257.00,6541-Domiciliary Care,THIRD PARTY PAYMENTS,PRIVATE CONTRACTOR,REVENUE
Walsall Council,http://opendatacommunities.org/id/metropolitan-district-council/walsall ,WC126-39,31.05.2021,ADULT SOCIAL CARE,5 CARE SERVICES LTD,10/05/2021,254.38,6541-Domiciliary Care,THIRD PARTY PAYMENTS,PRIVATE CONTRACTOR,REVENUE
Walsall Council,http://opendatacommunities.org/id/metropolitan-district-council/walsall ,WC126-40,31.05.2021,ADULT SOCIAL CARE,5 CARE SERVICES LTD,10/05/2021,599.55,6541-Domiciliary Care,THIRD PARTY PAYMENTS,PRIVATE CONTRACTOR,REVENUE
Walsall Council,http://opendatacommunities.org/id/metropolitan-district-council/walsall ,WC126-41,31.05.2021,ADULT SOCIAL CARE,5 CARE SERVICES LTD,10/05/2021,490.49,6541-Domiciliary Care,THIRD PARTY PAYMENTS,PRIVATE CONTRACTOR,REVENUE
Walsall Council,http://opendatacommunities.org/id/metropolitan-district-council/walsall ,WC126-42,31.05.2021,ADULT SOCIAL CARE,5 CARE SERVICES LTD,10/05/2021,311.40,6541-Domiciliary Care,THIRD PARTY PAYMENTS,PRIVATE CONTRACTOR,REVENUE
Walsall Council,http://opendatacommunities.org/id/metropolitan-district-council/walsall ,WC126-43,31.05.2021,ADULT SOCIAL CARE,5 CARE SERVICES LTD,10/05/2021,326.97,6541-Domiciliary Care,THIRD PARTY PAYMENTS,PRIVATE CONTRACTOR,REVENUE
Walsall Council,http://opendatacommunities.org/id/metropolitan-district-council/walsall ,WC126-44,31.05.2021,ADULT SOCIAL CARE,5 CARE SERVICES LTD,10/05/2021,311.40,6541-Domiciliary Care,THIRD PARTY PAYMENTS,PRIVATE CONTRACTOR,REVENUE
Walsall Council,http://opendatacommunities.org/id/metropolitan-district-council/walsall ,WC126-45,31.05.2021,ADULT SOCIAL CARE,5 CARE SERVICES LTD,10/05/2021,435.96,6541-Domiciliary Care,THIRD PARTY PAYMENTS,PRIVATE CONTRACTOR,REVENUE
Walsall Council,http://opendatacommunities.org/id/metropolitan-district-council/walsall ,WC126-46,31.05.2021,ADULT SOCIAL CARE,5 CARE SERVICES LTD,10/05/2021,654.01,6541-Domiciliary Care,THIRD PARTY PAYMENTS,PRIVATE CONTRACTOR,REVENUE
Walsall Council,http://opendatacommunities.org/id/metropolitan-district-council/walsall ,WC126-47,31.05.2021,ADULT SOCIAL CARE,5 CARE SERVICES LTD,10/05/2021,326.97,6541-Domiciliary Care,THIRD PARTY PAYMENTS,PRIVATE CONTRACTOR,REVENUE
Walsall Council,http://opendatacommunities.org/id/metropolitan-district-council/walsall ,WC126-48,31.05.2021,ADULT SOCIAL CARE,5 CARE SERVICES LTD,10/05/2021,654.01,6541-Domiciliary Care,THIRD PARTY PAYMENTS,PRIVATE CONTRACTOR,REVENUE
Walsall Council,http://opendatacommunities.org/id/metropolitan-district-council/walsall ,WC126-49,31.05.2021,ADULT SOCIAL CARE,5 CARE SERVICES LTD,10/05/2021,303.72,6541-Domiciliary Care,THIRD PARTY PAYMENTS,PRIVATE CONTRACTOR,REVENUE
Walsall Council,http://opendatacommunities.org/id/metropolitan-district-council/walsall ,WC126-50,31.05.2021,ADULT SOCIAL CARE,5 CARE SERVICES LTD,10/05/2021,599.48,6541-Domiciliary Care,THIRD PARTY PAYMENTS,PRIVATE CONTRACTOR,REVENUE
Walsall Council,http://opendatacommunities.org/id/metropolitan-district-council/walsall ,WC126-51,31.05.2021,ADULT SOCIAL CARE,5 CARE SERVICES LTD,10/05/2021,599.48,6541-Domiciliary Care,THIRD PARTY PAYMENTS,PRIVATE CONTRACTOR,REVENUE
Walsall Council,http://opendatacommunities.org/id/metropolitan-district-council/walsall ,WC126-52,31.05.2021,ADULT SOCIAL CARE,5 CARE SERVICES LTD,10/05/2021,705.84,6541-Domiciliary Care,THIRD PARTY PAYMENTS,PRIVATE CONTRACTOR,REVENUE
Walsall Council,http://opendatacommunities.org/id/metropolitan-district-council/walsall ,WC126-53,31.05.2021,ADULT SOCIAL CARE,5 CARE SERVICES LTD,10/05/2021,"2,506.77",6541-Domiciliary Care,THIRD PARTY PAYMENTS,PRIVATE CONTRACTOR,REVENUE
Walsall Council,http://opendatacommunities.org/id/metropolitan-district-council/walsall ,WC126-54,31.05.2021,ADULT SOCIAL CARE,5 CARE SERVICES LTD,10/05/2021,"1,198.89",6541-Domiciliary Care,THIRD PARTY PAYMENTS,PRIVATE CONTRACTOR,REVENUE
Walsall Council,http://opendatacommunities.org/id/metropolitan-district-council/walsall ,WC126-55,31.05.2021,ADULT SOCIAL CARE,5 CARE SERVICES LTD,24/05/2021,544.95,6541-Domiciliary Care,THIRD PARTY PAYMENTS,PRIVATE CONTRACTOR,REVENUE
Walsall Council,http://opendatacommunities.org/id/metropolitan-district-council/walsall ,WC126-56,31.05.2021,ADULT SOCIAL CARE,5 CARE SERVICES LTD,24/05/2021,490.49,6541-Domiciliary Care,THIRD PARTY PAYMENTS,PRIVATE CONTRACTOR,REVENUE
Walsall Council,http://opendatacommunities.org/id/metropolitan-district-council/walsall ,WC126-57,31.05.2021,ADULT SOCIAL CARE,5 CARE SERVICES LTD,24/05/2021,303.72,6541-Domiciliary Care,THIRD PARTY PAYMENTS,PRIVATE CONTRACTOR,REVENUE
Walsall Council,http://opendatacommunities.org/id/metropolitan-district-council/walsall ,WC126-58,31.05.2021,ADULT SOCIAL CARE,5 CARE SERVICES LTD,24/05/2021,591.66,6541-Domiciliary Care,THIRD PARTY PAYMENTS,PRIVATE CONTRACTOR,REVENUE
Walsall Council,http://opendatacommunities.org/id/metropolitan-district-council/walsall ,WC126-59,31.05.2021,ADULT SOCIAL CARE,5 CARE SERVICES LTD,24/05/2021,257.00,6541-Domiciliary Care,THIRD PARTY PAYMENTS,PRIVATE CONTRACTOR,REVENUE
Walsall Council,http://opendatacommunities.org/id/metropolitan-district-council/walsall ,WC126-60,31.05.2021,ADULT SOCIAL CARE,5 CARE SERVICES LTD,24/05/2021,599.55,6541-Domiciliary Care,THIRD PARTY PAYMENTS,PRIVATE CONTRACTOR,REVENUE
Walsall Council,http://opendatacommunities.org/id/metropolitan-district-council/walsall ,WC126-61,31.05.2021,ADULT SOCIAL CARE,5 CARE SERVICES LTD,24/05/2021,490.49,6541-Domiciliary Care,THIRD PARTY PAYMENTS,PRIVATE CONTRACTOR,REVENUE
Walsall Council,http://opendatacommunities.org/id/metropolitan-district-council/walsall ,WC126-62,31.05.2021,ADULT SOCIAL CARE,5 CARE SERVICES LTD,24/05/2021,599.48,6541-Domiciliary Care,THIRD PARTY PAYMENTS,PRIVATE CONTRACTOR,REVENUE
Walsall Council,http://opendatacommunities.org/id/metropolitan-district-council/walsall ,WC126-63,31.05.2021,ADULT SOCIAL CARE,5 CARE SERVICES LTD,24/05/2021,327.04,6541-Domiciliary Care,THIRD PARTY PAYMENTS,PRIVATE CONTRACTOR,REVENUE
Walsall Council,http://opendatacommunities.org/id/metropolitan-district-council/walsall ,WC126-64,31.05.2021,ADULT SOCIAL CARE,5 CARE SERVICES LTD,24/05/2021,254.38,6541-Domiciliary Care,THIRD PARTY PAYMENTS,PRIVATE CONTRACTOR,REVENUE
Walsall Council,http://opendatacommunities.org/id/metropolitan-district-council/walsall ,WC126-65,31.05.2021,ADULT SOCIAL CARE,5 CARE SERVICES LTD,24/05/2021,311.40,6541-Domiciliary Care,THIRD PARTY PAYMENTS,PRIVATE CONTRACTOR,REVENUE
Walsall Council,http://opendatacommunities.org/id/metropolitan-district-council/walsall ,WC126-66,31.05.2021,ADULT SOCIAL CARE,5 CARE SERVICES LTD,24/05/2021,435.96,6541-Domiciliary Care,THIRD PARTY PAYMENTS,PRIVATE CONTRACTOR,REVENUE
Walsall Council,http://opendatacommunities.org/id/metropolitan-district-council/walsall ,WC126-67,31.05.2021,ADULT SOCIAL CARE,5 CARE SERVICES LTD,24/05/2021,654.01,6541-Domiciliary Care,THIRD PARTY PAYMENTS,PRIVATE CONTRACTOR,REVENUE
Walsall Council,http://opendatacommunities.org/id/metropolitan-district-council/walsall ,WC126-68,31.05.2021,ADULT SOCIAL CARE,5 CARE SERVICES LTD,24/05/2021,326.97,6541-Domiciliary Care,THIRD PARTY PAYMENTS,PRIVATE CONTRACTOR,REVENUE
Walsall Council,http://opendatacommunities.org/id/metropolitan-district-council/walsall ,WC126-69,31.05.2021,ADULT SOCIAL CARE,5 CARE SERVICES LTD,24/05/2021,654.01,6541-Domiciliary Care,THIRD PARTY PAYMENTS,PRIVATE CONTRACTOR,REVENUE
Walsall Council,http://opendatacommunities.org/id/metropolitan-district-council/walsall ,WC126-70,31.05.2021,ADULT SOCIAL CARE,5 CARE SERVICES LTD,24/05/2021,311.40,6541-Domiciliary Care,THIRD PARTY PAYMENTS,PRIVATE CONTRACTOR,REVENUE
Walsall Council,http://opendatacommunities.org/id/metropolitan-district-council/walsall ,WC126-71,31.05.2021,ADULT SOCIAL CARE,5 CARE SERVICES LTD,24/05/2021,326.97,6541-Domiciliary Care,THIRD PARTY PAYMENTS,PRIVATE CONTRACTOR,REVENUE
Walsall Council,http://opendatacommunities.org/id/metropolitan-district-council/walsall ,WC126-72,31.05.2021,ADULT SOCIAL CARE,5 CARE SERVICES LTD,24/05/2021,599.48,6541-Domiciliary Care,THIRD PARTY PAYMENTS,PRIVATE CONTRACTOR,REVENUE
Walsall Council,http://opendatacommunities.org/id/metropolitan-district-council/walsall ,WC126-73,31.05.2021,ADULT SOCIAL CARE,5 CARE SERVICES LTD,24/05/2021,705.84,6541-Domiciliary Care,THIRD PARTY PAYMENTS,PRIVATE CONTRACTOR,REVENUE
Walsall Council,http://opendatacommunities.org/id/metropolitan-district-council/walsall ,WC126-74,31.05.2021,ADULT SOCIAL CARE,5 CARE SERVICES LTD,24/05/2021,"2,506.77",6541-Domiciliary Care,THIRD PARTY PAYMENTS,PRIVATE CONTRACTOR,REVENUE
Walsall Council,http://opendatacommunities.org/id/metropolitan-district-council/walsall ,WC126-75,31.05.2021,ADULT SOCIAL CARE,5 CARE SERVICES LTD,24/05/2021,"1,198.89",6541-Domiciliary Care,THIRD PARTY PAYMENTS,PRIVATE CONTRACTOR,REVENUE
Walsall Council,http://opendatacommunities.org/id/metropolitan-district-council/walsall ,WC126-76,31.05.2021,ADULT SOCIAL CARE,5 CARE SERVICES LTD,24/05/2021,544.95,6541-Domiciliary Care,THIRD PARTY PAYMENTS,PRIVATE CONTRACTOR,REVENUE
Walsall Council,http://opendatacommunities.org/id/metropolitan-district-council/walsall ,WC126-77,31.05.2021,ADULT SOCIAL CARE,5 CARE SERVICES LTD,24/05/2021,490.49,6541-Domiciliary Care,THIRD PARTY PAYMENTS,PRIVATE CONTRACTOR,REVENUE
Walsall Council,http://opendatacommunities.org/id/metropolitan-district-council/walsall ,WC126-78,31.05.2021,ADULT SOCIAL CARE,5 CARE SERVICES LTD,24/05/2021,591.66,6541-Domiciliary Care,THIRD PARTY PAYMENTS,PRIVATE CONTRACTOR,REVENUE
Walsall Council,http://opendatacommunities.org/id/metropolitan-district-council/walsall ,WC126-79,31.05.2021,ADULT SOCIAL CARE,5 CARE SERVICES LTD,24/05/2021,934.20,6541-Domiciliary Care,THIRD PARTY PAYMENTS,PRIVATE CONTRACTOR,REVENUE
Walsall Council,http://opendatacommunities.org/id/metropolitan-district-council/walsall ,WC126-80,31.05.2021,ADULT SOCIAL CARE,5 CARE SERVICES LTD,24/05/2021,311.40,6541-Domiciliary Care,THIRD PARTY PAYMENTS,PRIVATE CONTRACTOR,REVENUE
Walsall Council,http://opendatacommunities.org/id/metropolitan-district-council/walsall ,WC126-81,31.05.2021,ADULT SOCIAL CARE,5 CARE SERVICES LTD,24/05/2021,435.96,6541-Domiciliary Care,THIRD PARTY PAYMENTS,PRIVATE CONTRACTOR,REVENUE
Walsall Council,http://opendatacommunities.org/id/metropolitan-district-council/walsall ,WC126-82,31.05.2021,ADULT SOCIAL CARE,5 CARE SERVICES LTD,24/05/2021,654.01,6541-Domiciliary Care,THIRD PARTY PAYMENTS,PRIVATE CONTRACTOR,REVENUE
Walsall Council,http://opendatacommunities.org/id/metropolitan-district-council/walsall ,WC126-83,31.05.2021,ADULT SOCIAL CARE,5 CARE SERVICES LTD,24/05/2021,326.97,6541-Domiciliary Care,THIRD PARTY PAYMENTS,PRIVATE CONTRACTOR,REVENUE
Walsall Council,http://opendatacommunities.org/id/metropolitan-district-council/walsall ,WC126-84,31.05.2021,ADULT SOCIAL CARE,5 CARE SERVICES LTD,24/05/2021,654.01,6541-Domiciliary Care,THIRD PARTY PAYMENTS,PRIVATE CONTRACTOR,REVENUE
Walsall Council,http://opendatacommunities.org/id/metropolitan-district-council/walsall ,WC126-85,31.05.2021,ADULT SOCIAL CARE,5 CARE SERVICES LTD,24/05/2021,599.55,6541-Domiciliary Care,THIRD PARTY PAYMENTS,PRIVATE CONTRACTOR,REVENUE
Walsall Council,http://opendatacommunities.org/id/metropolitan-district-council/walsall ,WC126-86,31.05.2021,ADULT SOCIAL CARE,5 CARE SERVICES LTD,24/05/2021,490.49,6541-Domiciliary Care,THIRD PARTY PAYMENTS,PRIVATE CONTRACTOR,REVENUE
Walsall Council,http://opendatacommunities.org/id/metropolitan-district-council/walsall ,WC126-87,31.05.2021,ADULT SOCIAL CARE,5 CARE SERVICES LTD,24/05/2021,303.72,6541-Domiciliary Care,THIRD PARTY PAYMENTS,PRIVATE CONTRACTOR,REVENUE
Walsall Council,http://opendatacommunities.org/id/metropolitan-district-council/walsall ,WC126-88,31.05.2021,ADULT SOCIAL CARE,5 CARE SERVICES LTD,24/05/2021,599.48,6541-Domiciliary Care,THIRD PARTY PAYMENTS,PRIVATE CONTRACTOR,REVENUE
Walsall Council,http://opendatacommunities.org/id/metropolitan-district-council/walsall ,WC126-89,31.05.2021,ADULT SOCIAL CARE,5 CARE SERVICES LTD,24/05/2021,257.00,6541-Domiciliary Care,THIRD PARTY PAYMENTS,PRIVATE CONTRACTOR,REVENUE
Walsall Council,http://opendatacommunities.org/id/metropolitan-district-council/walsall ,WC126-90,31.05.2021,ADULT SOCIAL CARE,5 CARE SERVICES LTD,24/05/2021,599.48,6541-Domiciliary Care,THIRD PARTY PAYMENTS,PRIVATE CONTRACTOR,REVENUE
Walsall Council,http://opendatacommunities.org/id/metropolitan-district-council/walsall ,WC126-91,31.05.2021,ADULT SOCIAL CARE,5 CARE SERVICES LTD,24/05/2021,327.04,6541-Domiciliary Care,THIRD PARTY PAYMENTS,PRIVATE CONTRACTOR,REVENUE
Walsall Council,http://opendatacommunities.org/id/metropolitan-district-council/walsall ,WC126-92,31.05.2021,ADULT SOCIAL CARE,5 CARE SERVICES LTD,24/05/2021,490.48,6541-Domiciliary Care,THIRD PARTY PAYMENTS,PRIVATE CONTRACTOR,REVENUE
Walsall Council,http://opendatacommunities.org/id/metropolitan-district-council/walsall ,WC126-93,31.05.2021,ADULT SOCIAL CARE,5 CARE SERVICES LTD,24/05/2021,373.68,6541-Domiciliary Care,THIRD PARTY PAYMENTS,PRIVATE CONTRACTOR,REVENUE
Walsall Council,http://opendatacommunities.org/id/metropolitan-district-council/walsall ,WC126-94,31.05.2021,ADULT SOCIAL CARE,5 CARE SERVICES LTD,24/05/2021,705.84,6541-Domiciliary Care,THIRD PARTY PAYMENTS,PRIVATE CONTRACTOR,REVENUE
Walsall Council,http://opendatacommunities.org/id/metropolitan-district-council/walsall ,WC126-95,31.05.2021,ADULT SOCIAL CARE,5 CARE SERVICES LTD,24/05/2021,254.38,6541-Domiciliary Care,THIRD PARTY PAYMENTS,PRIVATE CONTRACTOR,REVENUE
Walsall Council,http://opendatacommunities.org/id/metropolitan-district-council/walsall ,WC126-96,31.05.2021,ADULT SOCIAL CARE,5 CARE SERVICES LTD,24/05/2021,"1,198.89",6541-Domiciliary Care,THIRD PARTY PAYMENTS,PRIVATE CONTRACTOR,REVENUE
Walsall Council,http://opendatacommunities.org/id/metropolitan-district-council/walsall ,WC126-97,31.05.2021,ADULT SOCIAL CARE,5 CARE SERVICES LTD,24/05/2021,311.40,6541-Domiciliary Care,THIRD PARTY PAYMENTS,PRIVATE CONTRACTOR,REVENUE
Walsall Council,http://opendatacommunities.org/id/metropolitan-district-council/walsall ,WC126-98,31.05.2021,ADULT SOCIAL CARE,5 CARE SERVICES LTD,24/05/2021,326.97,6541-Domiciliary Care,THIRD PARTY PAYMENTS,PRIVATE CONTRACTOR,REVENUE
Walsall Council,http://opendatacommunities.org/id/metropolitan-district-council/walsall ,WC126-99,31.05.2021,ADULT SOCIAL CARE,5 CARE SERVICES LTD,18/05/2021,832.68,6541-Domiciliary Care,THIRD PARTY PAYMENTS,PRIVATE CONTRACTOR,REVENUE
Walsall Council,http://opendatacommunities.org/id/metropolitan-district-council/walsall ,WC126-100,31.05.2021,ADULT SOCIAL CARE,5 CARE SERVICES LTD,05/05/2021,308.40,6541-Domiciliary Care,THIRD PARTY PAYMENTS,PRIVATE CONTRACTOR,REVENUE
Walsall Council,http://opendatacommunities.org/id/metropolitan-district-council/walsall ,WC126-101,31.05.2021,ADULT SOCIAL CARE,5 CARE SERVICES LTD,05/05/2021,"1,110.24",6541-Domiciliary Care,THIRD PARTY PAYMENTS,PRIVATE CONTRACTOR,REVENUE
Walsall Council,http://opendatacommunities.org/id/metropolitan-district-council/walsall ,WC126-102,31.05.2021,ADULT SOCIAL CARE,5 CARE SERVICES LTD,05/05/2021,"1,110.24",6541-Domiciliary Care,THIRD PARTY PAYMENTS,PRIVATE CONTRACTOR,REVENUE
Walsall Council,http://opendatacommunities.org/id/metropolitan-district-council/walsall ,WC126-103,31.05.2021,ADULT SOCIAL CARE,5 CARE SERVICES LTD,05/05/2021,369.95,6554-Professional Services-Priv Contractor & Other Agencies,THIRD PARTY PAYMENTS,PRIVATE CONTRACTOR,REVENUE
Walsall Council,http://opendatacommunities.org/id/metropolitan-district-council/walsall ,WC126-104,31.05.2021,ADULT SOCIAL CARE,5 CARE SERVICES LTD,13/05/2021,370.08,6554-Professional Services-Priv Contractor & Other Agencies,THIRD PARTY PAYMENTS,PRIVATE CONTRACTOR,REVENUE
Walsall Council,http://opendatacommunities.org/id/metropolitan-district-council/walsall ,WC126-105,31.05.2021,ADULT SOCIAL CARE,5 CARE SERVICES LTD,25/05/2021,370.08,6554-Professional Services-Priv Contractor & Other Agencies,THIRD PARTY PAYMENTS,PRIVATE CONTRACTOR,REVENUE
Walsall Council,http://opendatacommunities.org/id/metropolitan-district-council/walsall ,WC126-106,31.05.2021,ADULT SOCIAL CARE,5 CARE SERVICES LTD,13/05/2021,381.64,6554-Professional Services-Priv Contractor & Other Agencies,THIRD PARTY PAYMENTS,PRIVATE CONTRACTOR,REVENUE
Walsall Council,http://opendatacommunities.org/id/metropolitan-district-council/walsall ,WC126-107,31.05.2021,ADULT SOCIAL CARE,5 CARE SERVICES LTD,24/05/2021,381.64,6554-Professional Services-Priv Contractor & Other Agencies,THIRD PARTY PAYMENTS,PRIVATE CONTRACTOR,REVENUE
Walsall Council,http://opendatacommunities.org/id/metropolitan-district-council/walsall ,WC126-108,31.05.2021,ADULT SOCIAL CARE,5 CARE SERVICES LTD,25/05/2021,"1,307.88",6554-Professional Services-Priv Contractor & Other Agencies,THIRD PARTY PAYMENTS,PRIVATE CONTRACTOR,REVENUE
Walsall Council,http://opendatacommunities.org/id/metropolitan-district-council/walsall ,WC126-109,31.05.2021,ADULT SOCIAL CARE,5 CARE SERVICES LTD,24/05/2021,338.82,6554-Professional Services-Priv Contractor & Other Agencies,THIRD PARTY PAYMENTS,PRIVATE CONTRACTOR,REVENUE
Walsall Council,http://opendatacommunities.org/id/metropolitan-district-council/walsall ,WC126-110,31.05.2021,ADULT SOCIAL CARE,5 CARE SERVICES LTD,24/05/2021,802.26,6554-Professional Services-Priv Contractor & Other Agencies,THIRD PARTY PAYMENTS,PRIVATE CONTRACTOR,REVENUE
Walsall Council,http://opendatacommunities.org/id/metropolitan-district-council/walsall ,WC126-111,31.05.2021,ADULT SOCIAL CARE,5 CARE SERVICES LTD,25/05/2021,"4,056.26",6554-Professional Services-Priv Contractor & Other Agencies,THIRD PARTY PAYMENTS,PRIVATE CONTRACTOR,REVENUE
Walsall Council,http://opendatacommunities.org/id/metropolitan-district-council/walsall ,WC126-112,31.05.2021,ADULT SOCIAL CARE,5 CARE SERVICES LTD,24/05/2021,732.16,6554-Professional Services-Priv Contractor & Other Agencies,THIRD PARTY PAYMENTS,PRIVATE CONTRACTOR,REVENUE
Walsall Council,http://opendatacommunities.org/id/metropolitan-district-council/walsall ,WC126-113,31.05.2021,ECONOMY & ENVIRONMENT,A D T FIRE AND SECURITY PLC,21/05/2021,550.12,6410-Materials,SUPPLIES & SERVICES,EQUIPMENT FURNITURE & MATERIALS,REVENUE
Walsall Council,http://opendatacommunities.org/id/metropolitan-district-council/walsall ,WC126-114,31.05.2021,ECONOMY & ENVIRONMENT,A D T FIRE AND SECURITY PLC,21/05/2021,610.85,6410-Materials,SUPPLIES & SERVICES,EQUIPMENT FURNITURE & MATERIALS,REVENUE
Walsall Council,http://opendatacommunities.org/id/metropolitan-district-council/walsall ,WC126-115,31.05.2021,ECONOMY & ENVIRONMENT,A D T FIRE AND SECURITY PLC,27/05/2021,631.61,6410-Materials,SUPPLIES & SERVICES,EQUIPMENT FURNITURE & MATERIALS,REVENUE
Walsall Council,http://opendatacommunities.org/id/metropolitan-district-council/walsall ,WC126-116,31.05.2021,ECONOMY & ENVIRONMENT,A F BLAKEMORE & SON LTD,07/05/2021,270.06,6413-Food & Drink Supplies,SUPPLIES & SERVICES,CATERING,REVENUE
Walsall Council,http://opendatacommunities.org/id/metropolitan-district-council/walsall ,WC126-117,31.05.2021,CHILDRENS,A F BLAKEMORE & SON LTD,13/05/2021,"3,338.75",6213-Food & Drink Supplies,SUPPLIES & SERVICES,CATERING,REVENUE
Walsall Council,http://opendatacommunities.org/id/metropolitan-district-council/walsall ,WC126-118,31.05.2021,CHILDRENS,A F BLAKEMORE & SON LTD,13/05/2021,-500.00,6213-Food & Drink Supplies,SUPPLIES & SERVICES,CATERING,REVENUE
Walsall Council,http://opendatacommunities.org/id/metropolitan-district-council/walsall ,WC126-119,31.05.2021,ECONOMY & ENVIRONMENT,A F BLAKEMORE & SON LTD,13/05/2021,660.86,6413-Food & Drink Supplies,SUPPLIES & SERVICES,CATERING,REVENUE
Walsall Council,http://opendatacommunities.org/id/metropolitan-district-council/walsall ,WC126-120,31.05.2021,ECONOMY & ENVIRONMENT,A F BLAKEMORE & SON LTD,24/05/2021,321.01,6413-Food & Drink Supplies,SUPPLIES & SERVICES,CATERING,REVENUE
Walsall Council,http://opendatacommunities.org/id/metropolitan-district-council/walsall ,WC126-121,31.05.2021,ECONOMY & ENVIRONMENT,A F BLAKEMORE & SON LTD,24/05/2021,"1,544.54",6413-Food & Drink Supplies,SUPPLIES & SERVICES,CATERING,REVENUE
Walsall Council,http://opendatacommunities.org/id/metropolitan-district-council/walsall ,WC126-122,31.05.2021,RESOURCES AND TRANSFORMATION,AAINA COMMUNITY HUB,26/05/2021,300.00,6610-Hire of Room,SUPPLIES & SERVICES,SERVICES,REVENUE
Walsall Council,http://opendatacommunities.org/id/metropolitan-district-council/walsall ,WC126-123,31.05.2021,ECONOMY & ENVIRONMENT,AAINA COMMUNITY HUB,27/05/2021,"1,687.40",6430-Grants to Other Orgs,SUPPLIES & SERVICES,GRANTS (EXP) & SUBSCRIPTIONS,REVENUE
Walsall Council,http://opendatacommunities.org/id/metropolitan-district-council/walsall ,WC126-124,31.05.2021,ADULT SOCIAL CARE,ABBEY COURT NURSING & RESIDEN,10/05/2021,"2,057.14",6541-Residential,THIRD PARTY PAYMENTS,PRIVATE CONTRACTOR,REVENUE
Walsall Council,http://opendatacommunities.org/id/metropolitan-district-council/walsall ,WC126-125,31.05.2021,ADULT SOCIAL CARE,ABBEY COURT NURSING & RESIDEN,10/05/2021,"2,562.84",6541-Residential EMI,THIRD PARTY PAYMENTS,PRIVATE CONTRACTOR,REVENUE
Walsall Council,http://opendatacommunities.org/id/metropolitan-district-council/walsall ,WC126-126,31.05.2021,ADULT SOCIAL CARE,ABBEY COURT NURSING & RESIDEN,10/05/2021,"2,322.84",6541-Residential EMI,THIRD PARTY PAYMENTS,PRIVATE CONTRACTOR,REVENUE
Walsall Council,http://opendatacommunities.org/id/metropolitan-district-council/walsall ,WC126-127,31.05.2021,ADULT SOCIAL CARE,ABBEY COURT NURSING & RESIDEN,10/05/2021,"2,322.84",6541-Residential EMI,THIRD PARTY PAYMENTS,PRIVATE CONTRACTOR,REVENUE
Walsall Council,http://opendatacommunities.org/id/metropolitan-district-council/walsall ,WC126-128,31.05.2021,ADULT SOCIAL CARE,ABBEY HEALTHCARE HOMES LTD,10/05/2021,"2,387.89",6541-Residential,THIRD PARTY PAYMENTS,PRIVATE CONTRACTOR,REVENUE
Walsall Council,http://opendatacommunities.org/id/metropolitan-district-council/walsall ,WC126-129,31.05.2021,ADULT SOCIAL CARE,ABBEY HEALTHCARE HOMES LTD,10/05/2021,"3,122.67",6541-Residential,THIRD PARTY PAYMENTS,PRIVATE CONTRACTOR,REVENUE
Walsall Council,http://opendatacommunities.org/id/metropolitan-district-council/walsall ,WC126-130,31.05.2021,ADULT SOCIAL CARE,ABBEY HEALTHCARE HOMES LTD,10/05/2021,"3,122.67",6541-Residential,THIRD PARTY PAYMENTS,PRIVATE CONTRACTOR,REVENUE
Walsall Council,http://opendatacommunities.org/id/metropolitan-district-council/walsall ,WC126-131,31.05.2021,ADULT SOCIAL CARE,ABBEY HEALTHCARE HOMES LTD,10/05/2021,"3,539.01",6541-Residential,THIRD PARTY PAYMENTS,PRIVATE CONTRACTOR,REVENUE
Walsall Council,http://opendatacommunities.org/id/metropolitan-district-council/walsall ,WC126-132,31.05.2021,ADULT SOCIAL CARE,REDACTED,05/05/2021,"2,132.48",6541-Direct Payment,THIRD PARTY PAYMENTS,PRIVATE CONTRACTOR,REVENUE
Walsall Council,http://opendatacommunities.org/id/metropolitan-district-council/walsall ,WC126-133,31.05.2021,ECONOMY & ENVIRONMENT,ABLE INVESTIGATIONS & ENFORCEMENTS LTD,19/05/2021,-250.00,6440-Professional Fees & Services,SUPPLIES & SERVICES,SERVICES,REVENUE
Walsall Council,http://opendatacommunities.org/id/metropolitan-district-council/walsall ,WC126-134,31.05.2021,ECONOMY & ENVIRONMENT,ABLE INVESTIGATIONS & ENFORCEMENTS LTD,19/05/2021,250.00,6440-Professional Fees & Services,SUPPLIES & SERVICES,SERVICES,REVENUE
Walsall Council,http://opendatacommunities.org/id/metropolitan-district-council/walsall ,WC126-135,31.05.2021,CHILDRENS,ABLEWELL CARS,19/05/2021,739.20,6241-Hire of Vehicle with Driver,TRANSPORT,DIRECT TRANSPORT COSTS,REVENUE
Walsall Council,http://opendatacommunities.org/id/metropolitan-district-council/walsall ,WC126-136,31.05.2021,CHILDRENS,ABLEWELL CARS,19/05/2021,"1,606.00",6241-Hire of Vehicle with Driver,TRANSPORT,DIRECT TRANSPORT COSTS,REVENUE
Walsall Council,http://opendatacommunities.org/id/metropolitan-district-council/walsall ,WC126-137,31.05.2021,CHILDRENS,ABLEWELL CARS,19/05/2021,926.52,6241-Hire of Vehicle with Driver,TRANSPORT,DIRECT TRANSPORT COSTS,REVENUE
Walsall Council,http://opendatacommunities.org/id/metropolitan-district-council/walsall ,WC126-138,31.05.2021,CHILDRENS,ABLEWELL CARS,19/05/2021,"1,164.80",6241-Hire of Vehicle with Driver,TRANSPORT,DIRECT TRANSPORT COSTS,REVENUE
Walsall Council,http://opendatacommunities.org/id/metropolitan-district-council/walsall ,WC126-139,31.05.2021,CHILDRENS,ABLEWELL CARS,19/05/2021,801.36,6241-Hire of Vehicle with Driver,TRANSPORT,DIRECT TRANSPORT COSTS,REVENUE
Walsall Council,http://opendatacommunities.org/id/metropolitan-district-council/walsall ,WC126-140,31.05.2021,CHILDRENS,ABLEWELL CARS,19/05/2021,"1,317.68",6241-Hire of Vehicle with Driver,TRANSPORT,DIRECT TRANSPORT COSTS,REVENUE
Walsall Council,http://opendatacommunities.org/id/metropolitan-district-council/walsall ,WC126-141,31.05.2021,CHILDRENS,ABLEWELL CARS,19/05/2021,639.60,6241-Hire of Vehicle with Driver,TRANSPORT,DIRECT TRANSPORT COSTS,REVENUE
Walsall Council,http://opendatacommunities.org/id/metropolitan-district-council/walsall ,WC126-142,31.05.2021,CHILDRENS,ABS TAXIS (ALDRIDGE),19/05/2021,"1,455.30",6241-Hire of Vehicle with Driver,TRANSPORT,DIRECT TRANSPORT COSTS,REVENUE
Walsall Council,http://opendatacommunities.org/id/metropolitan-district-council/walsall ,WC126-143,31.05.2021,CHILDRENS,ABS TAXIS (ALDRIDGE),19/05/2021,"1,474.06",6241-Hire of Vehicle with Driver,TRANSPORT,DIRECT TRANSPORT COSTS,REVENUE
Walsall Council,http://opendatacommunities.org/id/metropolitan-district-council/walsall ,WC126-144,31.05.2021,CHILDRENS,ABS TAXIS (ALDRIDGE),19/05/2021,"1,033.48",6241-Hire of Vehicle with Driver,TRANSPORT,DIRECT TRANSPORT COSTS,REVENUE
Walsall Council,http://opendatacommunities.org/id/metropolitan-district-council/walsall ,WC126-145,31.05.2021,ECONOMY & ENVIRONMENT,AC OPTICS LTD,20/05/2021,500.00,6313-Grants to Other Orgs,SUPPLIES & SERVICES,GRANTS (EXP) & SUBSCRIPTIONS,REVENUE
Walsall Council,http://opendatacommunities.org/id/metropolitan-district-council/walsall ,WC126-146,31.05.2021,ECONOMY & ENVIRONMENT,AC OPTICS LTD,21/05/2021,500.00,6313-Grants to Other Orgs,SUPPLIES & SERVICES,GRANTS (EXP) & SUBSCRIPTIONS,REVENUE
Walsall Council,http://opendatacommunities.org/id/metropolitan-district-council/walsall ,WC126-147,31.05.2021,ECONOMY & ENVIRONMENT,AC OPTICS LTD,21/05/2021,500.00,6313-Grants to Other Orgs,SUPPLIES & SERVICES,GRANTS (EXP) & SUBSCRIPTIONS,REVENUE
Walsall Council,http://opendatacommunities.org/id/metropolitan-district-council/walsall ,WC126-148,31.05.2021,CHILDRENS,ACCALIA CARE SERVICES LTD,17/05/2021,"19,980.00",6223-External Residential Care-Oth Agency Provision,THIRD PARTY PAYMENTS,PRIVATE CONTRACTOR,REVENUE
Walsall Council,http://opendatacommunities.org/id/metropolitan-district-council/walsall ,WC126-149,31.05.2021,RESOURCES AND TRANSFORMATION,ACCESS CONTROL SOLUTIONS (UK) LTD,24/05/2021,520.00,6310-Repair & Maintenance of Furniture & Equipment,SUPPLIES & SERVICES,EQUIPMENT FURNITURE & MATERIALS,REVENUE
Walsall Council,http://opendatacommunities.org/id/metropolitan-district-council/walsall ,WC126-150,31.05.2021,RESOURCES AND TRANSFORMATION,ACCESS CONTROL SOLUTIONS (UK) LTD,24/05/2021,388.00,6310-Repair & Maintenance of Furniture & Equipment,SUPPLIES & SERVICES,EQUIPMENT FURNITURE & MATERIALS,REVENUE
Walsall Council,http://opendatacommunities.org/id/metropolitan-district-council/walsall ,WC126-151,31.05.2021,CHILDRENS,ACCOMPANIED CARE,19/05/2021,"3,573.90",6223-Accommodation and Related Costs-Assistance to S/S Clients,TRANSFER PAYMENTS,ADULT SOCIAL SERVICES CLIENT,REVENUE
Walsall Council,http://opendatacommunities.org/id/metropolitan-district-council/walsall ,WC126-152,31.05.2021,ADULT SOCIAL CARE,ACCOMPLISH GROUP LTD,10/05/2021,"7,874.18",6541-Residential,THIRD PARTY PAYMENTS,PRIVATE CONTRACTOR,REVENUE
Walsall Council,http://opendatacommunities.org/id/metropolitan-district-council/walsall ,WC126-153,31.05.2021,ADULT SOCIAL CARE,ACCORD HOUSING ASSOCIATION LIMITED - HOBS MEADOW,10/05/2021,"4,689.60",6541-Residential,THIRD PARTY PAYMENTS,PRIVATE CONTRACTOR,REVENUE
Walsall Council,http://opendatacommunities.org/id/metropolitan-district-council/walsall ,WC126-154,31.05.2021,ADULT SOCIAL CARE,ACCORD HOUSING ASSOCIATION LIMITED - HOBS MEADOW,10/05/2021,"4,689.60",6541-Residential,THIRD PARTY PAYMENTS,PRIVATE CONTRACTOR,REVENUE
Walsall Council,http://opendatacommunities.org/id/metropolitan-district-council/walsall ,WC126-155,31.05.2021,ADULT SOCIAL CARE,ACCORD HOUSING ASSOCIATION LIMITED - HOBS MEADOW,10/05/2021,"4,689.60",6541-Residential,THIRD PARTY PAYMENTS,PRIVATE CONTRACTOR,REVENUE
Walsall Council,http://opendatacommunities.org/id/metropolitan-district-council/walsall ,WC126-156,31.05.2021,ADULT SOCIAL CARE,ACCORD HOUSING ASSOCIATION LIMITED - HOBS MEADOW,10/05/2021,"4,689.60",6541-Residential,THIRD PARTY PAYMENTS,PRIVATE CONTRACTOR,REVENUE
Walsall Council,http://opendatacommunities.org/id/metropolitan-district-council/walsall ,WC126-157,31.05.2021,ADULT SOCIAL CARE,ACCORD HOUSING ASSOCIATION LTD#135,10/05/2021,"6,545.21",6541-Residential,THIRD PARTY PAYMENTS,PRIVATE CONTRACTOR,REVENUE
Walsall Council,http://opendatacommunities.org/id/metropolitan-district-council/walsall ,WC126-158,31.05.2021,ADULT SOCIAL CARE,ACCORD HOUSING ASSOCIATION LTD#135,10/05/2021,"5,844.90",6541-Residential,THIRD PARTY PAYMENTS,PRIVATE CONTRACTOR,REVENUE
Walsall Council,http://opendatacommunities.org/id/metropolitan-district-council/walsall ,WC126-159,31.05.2021,ADULT SOCIAL CARE,ACCORD HOUSING ASSOCIATION LTD#135,10/05/2021,"6,545.21",6541-Residential,THIRD PARTY PAYMENTS,PRIVATE CONTRACTOR,REVENUE
Walsall Council,http://opendatacommunities.org/id/metropolitan-district-council/walsall ,WC126-160,31.05.2021,CHILDRENS,ACCORD HOUSING ASSOCIATION LTD#135,19/05/2021,396.59,6314-Rents,PREMISES,RENTS,REVENUE
Walsall Council,http://opendatacommunities.org/id/metropolitan-district-council/walsall ,WC126-161,31.05.2021,CHILDRENS,ACCORD HOUSING ASSOCIATION LTD#135,20/05/2021,405.56,6314-Rents,PREMISES,RENTS,REVENUE
Walsall Council,http://opendatacommunities.org/id/metropolitan-district-council/walsall ,WC126-162,31.05.2021,ADULT SOCIAL CARE,ACCORD HOUSING ASSOCIATION LTD#135,18/05/2021,903.28,6541-Domiciliary Care,THIRD PARTY PAYMENTS,PRIVATE CONTRACTOR,REVENUE
Walsall Council,http://opendatacommunities.org/id/metropolitan-district-council/walsall ,WC126-163,31.05.2021,ADULT SOCIAL CARE,ACCORD HOUSING ASSOCIATION LTD#135,18/05/2021,467.88,6541-Domiciliary Care,THIRD PARTY PAYMENTS,PRIVATE CONTRACTOR,REVENUE
Walsall Council,http://opendatacommunities.org/id/metropolitan-district-council/walsall ,WC126-164,31.05.2021,ADULT SOCIAL CARE,ACCORD HOUSING ASSOCIATION LTD#135,18/05/2021,"1,017.40",6541-Domiciliary Care,THIRD PARTY PAYMENTS,PRIVATE CONTRACTOR,REVENUE
Walsall Council,http://opendatacommunities.org/id/metropolitan-district-council/walsall ,WC126-165,31.05.2021,ADULT SOCIAL CARE,ACCORD HOUSING ASSOCIATION LTD#135,18/05/2021,903.28,6541-Domiciliary Care,THIRD PARTY PAYMENTS,PRIVATE CONTRACTOR,REVENUE
Walsall Council,http://opendatacommunities.org/id/metropolitan-district-council/walsall ,WC126-166,31.05.2021,ADULT SOCIAL CARE,ACCORD HOUSING ASSOCIATION LTD#135,18/05/2021,"1,017.40",6541-Domiciliary Care,THIRD PARTY PAYMENTS,PRIVATE CONTRACTOR,REVENUE
Walsall Council,http://opendatacommunities.org/id/metropolitan-district-council/walsall ,WC126-167,31.05.2021,ADULT SOCIAL CARE,ACCORD HOUSING ASSOCIATION LTD#135,18/05/2021,888.94,6541-Domiciliary Care,THIRD PARTY PAYMENTS,PRIVATE CONTRACTOR,REVENUE
Walsall Council,http://opendatacommunities.org/id/metropolitan-district-council/walsall ,WC126-168,31.05.2021,ADULT SOCIAL CARE,ACCORD HOUSING ASSOCIATION LTD#135,18/05/2021,962.47,6541-Domiciliary Care,THIRD PARTY PAYMENTS,PRIVATE CONTRACTOR,REVENUE
Walsall Council,http://opendatacommunities.org/id/metropolitan-district-council/walsall ,WC126-169,31.05.2021,ADULT SOCIAL CARE,ACCORD HOUSING ASSOCIATION LTD#135,18/05/2021,421.48,6541-Domiciliary Care,THIRD PARTY PAYMENTS,PRIVATE CONTRACTOR,REVENUE
Walsall Council,http://opendatacommunities.org/id/metropolitan-district-council/walsall ,WC126-170,31.05.2021,ADULT SOCIAL CARE,ACCORD HOUSING ASSOCIATION LTD#135,18/05/2021,"1,094.96",6541-Domiciliary Care,THIRD PARTY PAYMENTS,PRIVATE CONTRACTOR,REVENUE
Walsall Council,http://opendatacommunities.org/id/metropolitan-district-council/walsall ,WC126-171,31.05.2021,ADULT SOCIAL CARE,ACCORD HOUSING ASSOCIATION LTD#135,18/05/2021,992.16,6541-Domiciliary Care,THIRD PARTY PAYMENTS,PRIVATE CONTRACTOR,REVENUE
Walsall Council,http://opendatacommunities.org/id/metropolitan-district-council/walsall ,WC126-172,31.05.2021,ADULT SOCIAL CARE,ACCORD HOUSING ASSOCIATION LTD#135,18/05/2021,431.76,6541-Domiciliary Care,THIRD PARTY PAYMENTS,PRIVATE CONTRACTOR,REVENUE
Walsall Council,http://opendatacommunities.org/id/metropolitan-district-council/walsall ,WC126-173,31.05.2021,ADULT SOCIAL CARE,ACCORD HOUSING ASSOCIATION LTD#135,18/05/2021,909.92,6541-Domiciliary Care,THIRD PARTY PAYMENTS,PRIVATE CONTRACTOR,REVENUE
Walsall Council,http://opendatacommunities.org/id/metropolitan-district-council/walsall ,WC126-174,31.05.2021,ADULT SOCIAL CARE,ACCORD HOUSING ASSOCIATION LTD#135,18/05/2021,"1,439.20",6541-Domiciliary Care,THIRD PARTY PAYMENTS,PRIVATE CONTRACTOR,REVENUE
Walsall Council,http://opendatacommunities.org/id/metropolitan-district-council/walsall ,WC126-175,31.05.2021,ADULT SOCIAL CARE,ACCORD HOUSING ASSOCIATION LTD#135,18/05/2021,503.72,6541-Domiciliary Care,THIRD PARTY PAYMENTS,PRIVATE CONTRACTOR,REVENUE
Walsall Council,http://opendatacommunities.org/id/metropolitan-district-council/walsall ,WC126-176,31.05.2021,ADULT SOCIAL CARE,ACCORD HOUSING ASSOCIATION LTD#135,18/05/2021,"1,696.48",6541-Domiciliary Care,THIRD PARTY PAYMENTS,PRIVATE CONTRACTOR,REVENUE
Walsall Council,http://opendatacommunities.org/id/metropolitan-district-council/walsall ,WC126-177,31.05.2021,ADULT SOCIAL CARE,ACCORD HOUSING ASSOCIATION LTD#135,18/05/2021,452.32,6541-Domiciliary Care,THIRD PARTY PAYMENTS,PRIVATE CONTRACTOR,REVENUE
Walsall Council,http://opendatacommunities.org/id/metropolitan-district-council/walsall ,WC126-178,31.05.2021,ADULT SOCIAL CARE,ACCORD HOUSING ASSOCIATION LTD#135,18/05/2021,287.84,6541-Domiciliary Care,THIRD PARTY PAYMENTS,PRIVATE CONTRACTOR,REVENUE
Walsall Council,http://opendatacommunities.org/id/metropolitan-district-council/walsall ,WC126-179,31.05.2021,ADULT SOCIAL CARE,ACCORD HOUSING ASSOCIATION LTD#135,18/05/2021,575.68,6541-Domiciliary Care,THIRD PARTY PAYMENTS,PRIVATE CONTRACTOR,REVENUE
Walsall Council,http://opendatacommunities.org/id/metropolitan-district-council/walsall ,WC126-180,31.05.2021,ADULT SOCIAL CARE,ACCORD HOUSING ASSOCIATION LTD#135,12/05/2021,"2,608.90",6541-Domiciliary Care,THIRD PARTY PAYMENTS,PRIVATE CONTRACTOR,REVENUE
Walsall Council,http://opendatacommunities.org/id/metropolitan-district-council/walsall ,WC126-181,31.05.2021,ADULT SOCIAL CARE,ACCORD HOUSING ASSOCIATION LTD#135,12/05/2021,"1,696.48",6541-Domiciliary Care,THIRD PARTY PAYMENTS,PRIVATE CONTRACTOR,REVENUE
Walsall Council,http://opendatacommunities.org/id/metropolitan-district-council/walsall ,WC126-182,31.05.2021,ADULT SOCIAL CARE,ACCORD HOUSING ASSOCIATION LTD#135,12/05/2021,"1,943.20",6541-Domiciliary Care,THIRD PARTY PAYMENTS,PRIVATE CONTRACTOR,REVENUE
Walsall Council,http://opendatacommunities.org/id/metropolitan-district-council/walsall ,WC126-183,31.05.2021,ECONOMY & ENVIRONMENT,ACCORD HOUSING ASSOCIATION LTD#135,14/05/2021,"5,000.00",6430-Professional Services-Priv Contractor & Other Agencies,THIRD PARTY PAYMENTS,PRIVATE CONTRACTOR,REVENUE
Walsall Council,http://opendatacommunities.org/id/metropolitan-district-council/walsall ,WC126-184,31.05.2021,ECONOMY & ENVIRONMENT,ACCORD HOUSING ASSOCIATION LTD#135,14/05/2021,"10,000.00",6430-Professional Services-Priv Contractor & Other Agencies,THIRD PARTY PAYMENTS,PRIVATE CONTRACTOR,REVENUE
Walsall Council,http://opendatacommunities.org/id/metropolitan-district-council/walsall ,WC126-185,31.05.2021,ADULT SOCIAL CARE,ACCORD HOUSING ASSOCIATION LTD#135,12/05/2021,"2,179.92",6541-Domiciliary Care,THIRD PARTY PAYMENTS,PRIVATE CONTRACTOR,REVENUE
Walsall Council,http://opendatacommunities.org/id/metropolitan-district-council/walsall ,WC126-186,31.05.2021,ADULT SOCIAL CARE,ACCORD HOUSING ASSOCIATION LTD#135,18/05/2021,"1,439.20",6541-Domiciliary Care,THIRD PARTY PAYMENTS,PRIVATE CONTRACTOR,REVENUE
Walsall Council,http://opendatacommunities.org/id/metropolitan-district-council/walsall ,WC126-187,31.05.2021,ADULT SOCIAL CARE,ACCORD HOUSING ASSOCIATION LTD#135,18/05/2021,"1,696.48",6541-Domiciliary Care,THIRD PARTY PAYMENTS,PRIVATE CONTRACTOR,REVENUE
Walsall Council,http://opendatacommunities.org/id/metropolitan-district-council/walsall ,WC126-188,31.05.2021,ADULT SOCIAL CARE,ACCORD HOUSING ASSOCIATION LTD#135,18/05/2021,452.32,6541-Domiciliary Care,THIRD PARTY PAYMENTS,PRIVATE CONTRACTOR,REVENUE
Walsall Council,http://opendatacommunities.org/id/metropolitan-district-council/walsall ,WC126-189,31.05.2021,ADULT SOCIAL CARE,ACCORD HOUSING ASSOCIATION LTD#135,18/05/2021,287.84,6541-Domiciliary Care,THIRD PARTY PAYMENTS,PRIVATE CONTRACTOR,REVENUE
Walsall Council,http://opendatacommunities.org/id/metropolitan-district-council/walsall ,WC126-190,31.05.2021,ADULT SOCIAL CARE,ACCORD HOUSING ASSOCIATION LTD#135,18/05/2021,575.68,6541-Domiciliary Care,THIRD PARTY PAYMENTS,PRIVATE CONTRACTOR,REVENUE
Walsall Council,http://opendatacommunities.org/id/metropolitan-district-council/walsall ,WC126-191,31.05.2021,ADULT SOCIAL CARE,ACCORD HOUSING ASSOCIATION LTD#135,18/05/2021,"1,439.20",6541-Domiciliary Care,THIRD PARTY PAYMENTS,PRIVATE CONTRACTOR,REVENUE
Walsall Council,http://opendatacommunities.org/id/metropolitan-district-council/walsall ,WC126-192,31.05.2021,ADULT SOCIAL CARE,ACCORD HOUSING ASSOCIATION LTD#135,18/05/2021,611.80,6541-Domiciliary Care,THIRD PARTY PAYMENTS,PRIVATE CONTRACTOR,REVENUE
Walsall Council,http://opendatacommunities.org/id/metropolitan-district-council/walsall ,WC126-193,31.05.2021,ADULT SOCIAL CARE,ACCORD HOUSING ASSOCIATION LTD#135,18/05/2021,"1,696.48",6541-Domiciliary Care,THIRD PARTY PAYMENTS,PRIVATE CONTRACTOR,REVENUE
Walsall Council,http://opendatacommunities.org/id/metropolitan-district-council/walsall ,WC126-194,31.05.2021,ADULT SOCIAL CARE,ACCORD HOUSING ASSOCIATION LTD#135,18/05/2021,452.32,6541-Domiciliary Care,THIRD PARTY PAYMENTS,PRIVATE CONTRACTOR,REVENUE
Walsall Council,http://opendatacommunities.org/id/metropolitan-district-council/walsall ,WC126-195,31.05.2021,ADULT SOCIAL CARE,ACCORD HOUSING ASSOCIATION LTD#135,18/05/2021,287.84,6541-Domiciliary Care,THIRD PARTY PAYMENTS,PRIVATE CONTRACTOR,REVENUE
Walsall Council,http://opendatacommunities.org/id/metropolitan-district-council/walsall ,WC126-196,31.05.2021,ADULT SOCIAL CARE,ACCORD HOUSING ASSOCIATION LTD#135,18/05/2021,621.94,6541-Domiciliary Care,THIRD PARTY PAYMENTS,PRIVATE CONTRACTOR,REVENUE
Walsall Council,http://opendatacommunities.org/id/metropolitan-district-council/walsall ,WC126-197,31.05.2021,ADULT SOCIAL CARE,ACCORD HOUSING ASSOCIATION LTD#135,05/05/2021,426.62,6541-Domiciliary Care,THIRD PARTY PAYMENTS,PRIVATE CONTRACTOR,REVENUE
Walsall Council,http://opendatacommunities.org/id/metropolitan-district-council/walsall ,WC126-198,31.05.2021,ADULT SOCIAL CARE,ACCORD HOUSING ASSOCIATION LTD#135,05/05/2021,709.32,6541-Domiciliary Care,THIRD PARTY PAYMENTS,PRIVATE CONTRACTOR,REVENUE
Walsall Council,http://opendatacommunities.org/id/metropolitan-district-council/walsall ,WC126-199,31.05.2021,ADULT SOCIAL CARE,ACCORD HOUSING ASSOCIATION LTD#135,05/05/2021,"1,043.56",6541-Domiciliary Care,THIRD PARTY PAYMENTS,PRIVATE CONTRACTOR,REVENUE
Walsall Council,http://opendatacommunities.org/id/metropolitan-district-council/walsall ,WC126-200,31.05.2021,ADULT SOCIAL CARE,ACCORD HOUSING ASSOCIATION LTD#135,05/05/2021,334.12,6541-Domiciliary Care,THIRD PARTY PAYMENTS,PRIVATE CONTRACTOR,REVENUE
Walsall Council,http://opendatacommunities.org/id/metropolitan-district-council/walsall ,WC126-201,31.05.2021,ADULT SOCIAL CARE,ACCORD HOUSING ASSOCIATION LTD#135,05/05/2021,889.36,6541-Domiciliary Care,THIRD PARTY PAYMENTS,PRIVATE CONTRACTOR,REVENUE
Walsall Council,http://opendatacommunities.org/id/metropolitan-district-council/walsall ,WC126-202,31.05.2021,ADULT SOCIAL CARE,ACCORD HOUSING ASSOCIATION LTD#135,05/05/2021,637.40,6541-Domiciliary Care,THIRD PARTY PAYMENTS,PRIVATE CONTRACTOR,REVENUE
Walsall Council,http://opendatacommunities.org/id/metropolitan-district-council/walsall ,WC126-203,31.05.2021,ADULT SOCIAL CARE,ACCORD HOUSING ASSOCIATION LTD#135,05/05/2021,945.76,6541-Domiciliary Care,THIRD PARTY PAYMENTS,PRIVATE CONTRACTOR,REVENUE
Walsall Council,http://opendatacommunities.org/id/metropolitan-district-council/walsall ,WC126-204,31.05.2021,ADULT SOCIAL CARE,ACCORD HOUSING ASSOCIATION LTD#135,05/05/2021,503.72,6541-Domiciliary Care,THIRD PARTY PAYMENTS,PRIVATE CONTRACTOR,REVENUE
Walsall Council,http://opendatacommunities.org/id/metropolitan-district-council/walsall ,WC126-205,31.05.2021,ADULT SOCIAL CARE,ACCORD HOUSING ASSOCIATION LTD#135,05/05/2021,349.52,6541-Domiciliary Care,THIRD PARTY PAYMENTS,PRIVATE CONTRACTOR,REVENUE
Walsall Council,http://opendatacommunities.org/id/metropolitan-district-council/walsall ,WC126-206,31.05.2021,ADULT SOCIAL CARE,ACCORD HOUSING ASSOCIATION LTD#135,05/05/2021,390.72,6541-Domiciliary Care,THIRD PARTY PAYMENTS,PRIVATE CONTRACTOR,REVENUE
Walsall Council,http://opendatacommunities.org/id/metropolitan-district-council/walsall ,WC126-207,31.05.2021,ADULT SOCIAL CARE,ACCORD HOUSING ASSOCIATION LTD#135,05/05/2021,"2,239.06",6541-Domiciliary Care,THIRD PARTY PAYMENTS,PRIVATE CONTRACTOR,REVENUE
Walsall Council,http://opendatacommunities.org/id/metropolitan-district-council/walsall ,WC126-208,31.05.2021,ADULT SOCIAL CARE,ACCORD HOUSING ASSOCIATION LTD#135,05/05/2021,"2,158.80",6541-Domiciliary Care,THIRD PARTY PAYMENTS,PRIVATE CONTRACTOR,REVENUE
Walsall Council,http://opendatacommunities.org/id/metropolitan-district-council/walsall ,WC126-209,31.05.2021,ADULT SOCIAL CARE,ACCORD HOUSING ASSOCIATION LTD#135,05/05/2021,"2,158.80",6541-Domiciliary Care,THIRD PARTY PAYMENTS,PRIVATE CONTRACTOR,REVENUE
Walsall Council,http://opendatacommunities.org/id/metropolitan-district-council/walsall ,WC126-210,31.05.2021,ADULT SOCIAL CARE,ACCORD HOUSING ASSOCIATION LTD#135,05/05/2021,"1,465.04",6541-Domiciliary Care,THIRD PARTY PAYMENTS,PRIVATE CONTRACTOR,REVENUE
Walsall Council,http://opendatacommunities.org/id/metropolitan-district-council/walsall ,WC126-211,31.05.2021,ADULT SOCIAL CARE,ACCORD HOUSING ASSOCIATION LTD#135,05/05/2021,359.80,6541-Domiciliary Care,THIRD PARTY PAYMENTS,PRIVATE CONTRACTOR,REVENUE
Walsall Council,http://opendatacommunities.org/id/metropolitan-district-council/walsall ,WC126-212,31.05.2021,ADULT SOCIAL CARE,ACCORD HOUSING ASSOCIATION LTD#135,05/05/2021,992.16,6541-Domiciliary Care,THIRD PARTY PAYMENTS,PRIVATE CONTRACTOR,REVENUE
Walsall Council,http://opendatacommunities.org/id/metropolitan-district-council/walsall ,WC126-213,31.05.2021,ADULT SOCIAL CARE,ACCORD HOUSING ASSOCIATION LTD#135,05/05/2021,866.21,6541-Domiciliary Care,THIRD PARTY PAYMENTS,PRIVATE CONTRACTOR,REVENUE
Walsall Council,http://opendatacommunities.org/id/metropolitan-district-council/walsall ,WC126-214,31.05.2021,ADULT SOCIAL CARE,ACCORD HOUSING ASSOCIATION LTD#135,05/05/2021,"1,439.20",6541-Domiciliary Care,THIRD PARTY PAYMENTS,PRIVATE CONTRACTOR,REVENUE
Walsall Council,http://opendatacommunities.org/id/metropolitan-district-council/walsall ,WC126-215,31.05.2021,ADULT SOCIAL CARE,ACCORD HOUSING ASSOCIATION LTD#135,18/05/2021,888.94,6541-Domiciliary Care,THIRD PARTY PAYMENTS,PRIVATE CONTRACTOR,REVENUE
Walsall Council,http://opendatacommunities.org/id/metropolitan-district-council/walsall ,WC126-216,31.05.2021,ADULT SOCIAL CARE,ACCORD HOUSING ASSOCIATION LTD#135,18/05/2021,992.16,6541-Domiciliary Care,THIRD PARTY PAYMENTS,PRIVATE CONTRACTOR,REVENUE
Walsall Council,http://opendatacommunities.org/id/metropolitan-district-council/walsall ,WC126-217,31.05.2021,CHILDRENS,ACE CARS & MINIBUSES LTD,19/05/2021,"1,449.00",6241-Hire of Vehicle with Driver,TRANSPORT,DIRECT TRANSPORT COSTS,REVENUE
Walsall Council,http://opendatacommunities.org/id/metropolitan-district-council/walsall ,WC126-218,31.05.2021,CHILDRENS,ACE CARS & MINIBUSES LTD,19/05/2021,"2,161.50",6241-Hire of Vehicle with Driver,TRANSPORT,DIRECT TRANSPORT COSTS,REVENUE
Walsall Council,http://opendatacommunities.org/id/metropolitan-district-council/walsall ,WC126-219,31.05.2021,CHILDRENS,ACE CARS & MINIBUSES LTD,19/05/2021,910.00,6241-Hire of Vehicle with Driver,TRANSPORT,DIRECT TRANSPORT COSTS,REVENUE
Walsall Council,http://opendatacommunities.org/id/metropolitan-district-council/walsall ,WC126-220,31.05.2021,CHILDRENS,ACE CARS & MINIBUSES LTD,19/05/2021,"2,775.00",6241-Hire of Vehicle with Driver,TRANSPORT,DIRECT TRANSPORT COSTS,REVENUE
Walsall Council,http://opendatacommunities.org/id/metropolitan-district-council/walsall ,WC126-221,31.05.2021,CHILDRENS,ACE CARS & MINIBUSES LTD,19/05/2021,"1,099.00",6241-Hire of Vehicle with Driver,TRANSPORT,DIRECT TRANSPORT COSTS,REVENUE
Walsall Council,http://opendatacommunities.org/id/metropolitan-district-council/walsall ,WC126-222,31.05.2021,CHILDRENS,ACE CARS & MINIBUSES LTD,19/05/2021,"1,482.00",6241-Hire of Vehicle with Driver,TRANSPORT,DIRECT TRANSPORT COSTS,REVENUE
Walsall Council,http://opendatacommunities.org/id/metropolitan-district-council/walsall ,WC126-223,31.05.2021,CHILDRENS,ACE CARS & MINIBUSES LTD,19/05/2021,"2,625.00",6241-Hire of Vehicle with Driver,TRANSPORT,DIRECT TRANSPORT COSTS,REVENUE
Walsall Council,http://opendatacommunities.org/id/metropolitan-district-council/walsall ,WC126-224,31.05.2021,CHILDRENS,ACE CARS & MINIBUSES LTD,19/05/2021,"1,795.50",6241-Hire of Vehicle with Driver,TRANSPORT,DIRECT TRANSPORT COSTS,REVENUE
Walsall Council,http://opendatacommunities.org/id/metropolitan-district-council/walsall ,WC126-225,31.05.2021,CHILDRENS,ACE CARS & MINIBUSES LTD,19/05/2021,"2,163.00",6241-Hire of Vehicle with Driver,TRANSPORT,DIRECT TRANSPORT COSTS,REVENUE
Walsall Council,http://opendatacommunities.org/id/metropolitan-district-council/walsall ,WC126-226,31.05.2021,CHILDRENS,ACE CARS & MINIBUSES LTD,19/05/2021,917.00,6241-Hire of Vehicle with Driver,TRANSPORT,DIRECT TRANSPORT COSTS,REVENUE
Walsall Council,http://opendatacommunities.org/id/metropolitan-district-council/walsall ,WC126-227,31.05.2021,CHILDRENS,ACE CARS & MINIBUSES LTD,19/05/2021,"1,540.00",6241-Hire of Vehicle with Driver,TRANSPORT,DIRECT TRANSPORT COSTS,REVENUE
Walsall Council,http://opendatacommunities.org/id/metropolitan-district-council/walsall ,WC126-228,31.05.2021,CHILDRENS,ACE CARS & MINIBUSES LTD,19/05/2021,"1,610.00",6241-Hire of Vehicle with Driver,TRANSPORT,DIRECT TRANSPORT COSTS,REVENUE
Walsall Council,http://opendatacommunities.org/id/metropolitan-district-council/walsall ,WC126-229,31.05.2021,CHILDRENS,ACE CARS & MINIBUSES LTD,19/05/2021,"1,771.00",6241-Hire of Vehicle with Driver,TRANSPORT,DIRECT TRANSPORT COSTS,REVENUE
Walsall Council,http://opendatacommunities.org/id/metropolitan-district-council/walsall ,WC126-230,31.05.2021,CHILDRENS,ACE CARS & MINIBUSES LTD,19/05/2021,"1,320.00",6241-Hire of Vehicle with Driver,TRANSPORT,DIRECT TRANSPORT COSTS,REVENUE
Walsall Council,http://opendatacommunities.org/id/metropolitan-district-council/walsall ,WC126-231,31.05.2021,CHILDRENS,ACE CARS & MINIBUSES LTD,19/05/2021,"1,932.00",6241-Hire of Vehicle with Driver,TRANSPORT,DIRECT TRANSPORT COSTS,REVENUE
Walsall Council,http://opendatacommunities.org/id/metropolitan-district-council/walsall ,WC126-232,31.05.2021,CHILDRENS,ACE CARS & MINIBUSES LTD,19/05/2021,"1,449.00",6241-Hire of Vehicle with Driver,TRANSPORT,DIRECT TRANSPORT COSTS,REVENUE
Walsall Council,http://opendatacommunities.org/id/metropolitan-district-council/walsall ,WC126-233,31.05.2021,CHILDRENS,ACE CARS & MINIBUSES LTD,19/05/2021,"1,771.00",6241-Hire of Vehicle with Driver,TRANSPORT,DIRECT TRANSPORT COSTS,REVENUE
Walsall Council,http://opendatacommunities.org/id/metropolitan-district-council/walsall ,WC126-234,31.05.2021,CHILDRENS,ACE CARS & MINIBUSES LTD,19/05/2021,"1,925.00",6241-Hire of Vehicle with Driver,TRANSPORT,DIRECT TRANSPORT COSTS,REVENUE
Walsall Council,http://opendatacommunities.org/id/metropolitan-district-council/walsall ,WC126-235,31.05.2021,CHILDRENS,ACE CARS & MINIBUSES LTD,19/05/2021,"1,288.00",6241-Hire of Vehicle with Driver,TRANSPORT,DIRECT TRANSPORT COSTS,REVENUE
Walsall Council,http://opendatacommunities.org/id/metropolitan-district-council/walsall ,WC126-236,31.05.2021,CHILDRENS,ACE CARS & MINIBUSES LTD,19/05/2021,"2,163.00",6241-Hire of Vehicle with Driver,TRANSPORT,DIRECT TRANSPORT COSTS,REVENUE
Walsall Council,http://opendatacommunities.org/id/metropolitan-district-council/walsall ,WC126-237,31.05.2021,CHILDRENS,ACE CARS & MINIBUSES LTD,19/05/2021,"2,093.00",6241-Hire of Vehicle with Driver,TRANSPORT,DIRECT TRANSPORT COSTS,REVENUE
Walsall Council,http://opendatacommunities.org/id/metropolitan-district-council/walsall ,WC126-238,31.05.2021,CHILDRENS,ACE CARS & MINIBUSES LTD,19/05/2021,336.00,6241-Hire of Vehicle with Driver,TRANSPORT,DIRECT TRANSPORT COSTS,REVENUE
Walsall Council,http://opendatacommunities.org/id/metropolitan-district-council/walsall ,WC126-239,31.05.2021,CHILDRENS,ACE CARS & MINIBUSES LTD,19/05/2021,616.00,6241-Hire of Vehicle with Driver,TRANSPORT,DIRECT TRANSPORT COSTS,REVENUE
Walsall Council,http://opendatacommunities.org/id/metropolitan-district-council/walsall ,WC126-240,31.05.2021,CHILDRENS,ACE CARS & MINIBUSES LTD,19/05/2021,"1,529.50",6241-Hire of Vehicle with Driver,TRANSPORT,DIRECT TRANSPORT COSTS,REVENUE
Walsall Council,http://opendatacommunities.org/id/metropolitan-district-council/walsall ,WC126-241,31.05.2021,CHILDRENS,ACE CARS & MINIBUSES LTD,19/05/2021,"1,529.50",6241-Hire of Vehicle with Driver,TRANSPORT,DIRECT TRANSPORT COSTS,REVENUE
Walsall Council,http://opendatacommunities.org/id/metropolitan-district-council/walsall ,WC126-242,31.05.2021,CHILDRENS,ACE CARS & MINIBUSES LTD,19/05/2021,"1,540.00",6241-Hire of Vehicle with Driver,TRANSPORT,DIRECT TRANSPORT COSTS,REVENUE
Walsall Council,http://opendatacommunities.org/id/metropolitan-district-council/walsall ,WC126-243,31.05.2021,CHILDRENS,ACE CARS & MINIBUSES LTD,19/05/2021,"2,723.00",6241-Hire of Vehicle with Driver,TRANSPORT,DIRECT TRANSPORT COSTS,REVENUE
Walsall Council,http://opendatacommunities.org/id/metropolitan-district-council/walsall ,WC126-244,31.05.2021,CHILDRENS,ACE CARS & MINIBUSES LTD,19/05/2021,700.00,6241-Hire of Vehicle with Driver,TRANSPORT,DIRECT TRANSPORT COSTS,REVENUE
Walsall Council,http://opendatacommunities.org/id/metropolitan-district-council/walsall ,WC126-245,31.05.2021,CHILDRENS,ACE CARS & MINIBUSES LTD,19/05/2021,"2,317.00",6241-Hire of Vehicle with Driver,TRANSPORT,DIRECT TRANSPORT COSTS,REVENUE
Walsall Council,http://opendatacommunities.org/id/metropolitan-district-council/walsall ,WC126-246,31.05.2021,CHILDRENS,ACE CARS & MINIBUSES LTD,19/05/2021,896.00,6241-Hire of Vehicle with Driver,TRANSPORT,DIRECT TRANSPORT COSTS,REVENUE
Walsall Council,http://opendatacommunities.org/id/metropolitan-district-council/walsall ,WC126-247,31.05.2021,CHILDRENS,ACE CARS & MINIBUSES LTD,19/05/2021,980.00,6241-Hire of Vehicle with Driver,TRANSPORT,DIRECT TRANSPORT COSTS,REVENUE
Walsall Council,http://opendatacommunities.org/id/metropolitan-district-council/walsall ,WC126-248,31.05.2021,ADULT SOCIAL CARE,ACEPAY LTD (COTTAGE NUR HOME),10/05/2021,"2,411.40",6541-Nursing,THIRD PARTY PAYMENTS,PRIVATE CONTRACTOR,REVENUE
Walsall Council,http://opendatacommunities.org/id/metropolitan-district-council/walsall ,WC126-249,31.05.2021,ADULT SOCIAL CARE,ACEPAY LTD (COTTAGE NUR HOME),10/05/2021,"2,411.40",6541-Nursing,THIRD PARTY PAYMENTS,PRIVATE CONTRACTOR,REVENUE
Walsall Council,http://opendatacommunities.org/id/metropolitan-district-council/walsall ,WC126-250,31.05.2021,ADULT SOCIAL CARE,ACEPAY LTD (COTTAGE NUR HOME),10/05/2021,"2,411.40",6541-Nursing,THIRD PARTY PAYMENTS,PRIVATE CONTRACTOR,REVENUE
Walsall Council,http://opendatacommunities.org/id/metropolitan-district-council/walsall ,WC126-251,31.05.2021,ADULT SOCIAL CARE,ACEPAY LTD (COTTAGE NUR HOME),10/05/2021,"2,411.40",6541-Nursing,THIRD PARTY PAYMENTS,PRIVATE CONTRACTOR,REVENUE
Walsall Council,http://opendatacommunities.org/id/metropolitan-district-council/walsall ,WC126-252,31.05.2021,ADULT SOCIAL CARE,ACEPAY LTD (COTTAGE NUR HOME),10/05/2021,"2,411.40",6541-Nursing,THIRD PARTY PAYMENTS,PRIVATE CONTRACTOR,REVENUE
Walsall Council,http://opendatacommunities.org/id/metropolitan-district-council/walsall ,WC126-253,31.05.2021,ADULT SOCIAL CARE,ACEPAY LTD (COTTAGE NUR HOME),10/05/2021,"2,411.40",6541-Nursing,THIRD PARTY PAYMENTS,PRIVATE CONTRACTOR,REVENUE
Walsall Council,http://opendatacommunities.org/id/metropolitan-district-council/walsall ,WC126-254,31.05.2021,ADULT SOCIAL CARE,ACEPAY LTD (COTTAGE NUR HOME),10/05/2021,"2,611.40",6541-Nursing,THIRD PARTY PAYMENTS,PRIVATE CONTRACTOR,REVENUE
Walsall Council,http://opendatacommunities.org/id/metropolitan-district-council/walsall ,WC126-255,31.05.2021,ADULT SOCIAL CARE,ACEPAY LTD (COTTAGE NUR HOME),10/05/2021,"2,411.40",6541-Nursing,THIRD PARTY PAYMENTS,PRIVATE CONTRACTOR,REVENUE
Walsall Council,http://opendatacommunities.org/id/metropolitan-district-council/walsall ,WC126-256,31.05.2021,ADULT SOCIAL CARE,ACEPAY LTD (COTTAGE NUR HOME),10/05/2021,"2,411.40",6541-Nursing,THIRD PARTY PAYMENTS,PRIVATE CONTRACTOR,REVENUE
Walsall Council,http://opendatacommunities.org/id/metropolitan-district-council/walsall ,WC126-257,31.05.2021,ADULT SOCIAL CARE,ACEPAY LTD (COTTAGE NUR HOME),10/05/2021,"2,411.40",6541-Nursing,THIRD PARTY PAYMENTS,PRIVATE CONTRACTOR,REVENUE
Walsall Council,http://opendatacommunities.org/id/metropolitan-district-council/walsall ,WC126-258,31.05.2021,ADULT SOCIAL CARE,ACEPAY LTD (COTTAGE NUR HOME),10/05/2021,"2,411.40",6541-Nursing,THIRD PARTY PAYMENTS,PRIVATE CONTRACTOR,REVENUE
Walsall Council,http://opendatacommunities.org/id/metropolitan-district-council/walsall ,WC126-259,31.05.2021,ADULT SOCIAL CARE,ACEPAY LTD (COTTAGE NUR HOME),10/05/2021,"2,322.84",6541-Residential EMI,THIRD PARTY PAYMENTS,PRIVATE CONTRACTOR,REVENUE
Walsall Council,http://opendatacommunities.org/id/metropolitan-district-council/walsall ,WC126-260,31.05.2021,ADULT SOCIAL CARE,ACEPAY LTD (COTTAGE NUR HOME),10/05/2021,"2,411.40",6541-Nursing,THIRD PARTY PAYMENTS,PRIVATE CONTRACTOR,REVENUE
Walsall Council,http://opendatacommunities.org/id/metropolitan-district-council/walsall ,WC126-261,31.05.2021,ADULT SOCIAL CARE,ACEPAY LTD (COTTAGE NUR HOME),10/05/2021,"2,411.40",6541-Nursing,THIRD PARTY PAYMENTS,PRIVATE CONTRACTOR,REVENUE
Walsall Council,http://opendatacommunities.org/id/metropolitan-district-council/walsall ,WC126-262,31.05.2021,CHILDRENS,ACORN CARE & EDUCATION LTD (SALES),17/05/2021,"18,800.00",6223-External Residential Care-Oth Agency Provision,THIRD PARTY PAYMENTS,PRIVATE CONTRACTOR,REVENUE
Walsall Council,http://opendatacommunities.org/id/metropolitan-district-council/walsall ,WC126-263,31.05.2021,CHILDRENS,ACORN CARE & EDUCATION LTD (SALES),17/05/2021,"22,400.00",6223-External Residential Care-Oth Agency Provision,THIRD PARTY PAYMENTS,PRIVATE CONTRACTOR,REVENUE
Walsall Council,http://opendatacommunities.org/id/metropolitan-district-council/walsall ,WC126-264,31.05.2021,CHILDRENS,ACORN CARE & EDUCATION LTD (SALES),04/05/2021,"19,883.33",1220-Professional Fees & Services,SUPPLIES & SERVICES,SERVICES,REVENUE
Walsall Council,http://opendatacommunities.org/id/metropolitan-district-council/walsall ,WC126-265,31.05.2021,CHILDRENS,ACORN CARE & EDUCATION LTD (SALES),04/05/2021,"14,456.67",1220-Professional Fees & Services,SUPPLIES & SERVICES,SERVICES,REVENUE
Walsall Council,http://opendatacommunities.org/id/metropolitan-district-council/walsall ,WC126-266,31.05.2021,CHILDRENS,ACORN CARE & EDUCATION LTD (SALES),04/05/2021,"14,053.33",1220-Professional Fees & Services,SUPPLIES & SERVICES,SERVICES,REVENUE
Walsall Council,http://opendatacommunities.org/id/metropolitan-district-council/walsall ,WC126-267,31.05.2021,CHILDRENS,ACORN CARE & EDUCATION LTD (SALES),04/05/2021,"21,978.95",1220-Professional Fees & Services,SUPPLIES & SERVICES,SERVICES,REVENUE
Walsall Council,http://opendatacommunities.org/id/metropolitan-district-council/walsall ,WC126-268,31.05.2021,CHILDRENS,ACORN CARE & EDUCATION LTD (SALES),04/05/2021,"23,115.79",1220-Professional Fees & Services,SUPPLIES & SERVICES,SERVICES,REVENUE
Walsall Council,http://opendatacommunities.org/id/metropolitan-district-council/walsall ,WC126-269,31.05.2021,CHILDRENS,ACORN CARE & EDUCATION LTD (SALES),18/05/2021,"-9,396.84",1220-Professional Fees & Services,SUPPLIES & SERVICES,SERVICES,REVENUE
Walsall Council,http://opendatacommunities.org/id/metropolitan-district-council/walsall ,WC126-270,31.05.2021,CHILDRENS,ACORN CARE & EDUCATION LTD (SALES),05/05/2021,"-14,456.66",1220-Professional Fees & Services,SUPPLIES & SERVICES,SERVICES,REVENUE
Walsall Council,http://opendatacommunities.org/id/metropolitan-district-council/walsall ,WC126-271,31.05.2021,CHILDRENS,ACORN CARE & EDUCATION LTD (SALES),18/05/2021,"-16,500.00",1220-Professional Fees & Services,SUPPLIES & SERVICES,SERVICES,REVENUE
Walsall Council,http://opendatacommunities.org/id/metropolitan-district-council/walsall ,WC126-272,31.05.2021,CHILDRENS,ACORN CARE & EDUCATION LTD (SALES),18/05/2021,"-8,250.00",1220-Professional Fees & Services,SUPPLIES & SERVICES,SERVICES,REVENUE
Walsall Council,http://opendatacommunities.org/id/metropolitan-district-council/walsall ,WC126-273,31.05.2021,CHILDRENS,ACORN FOSTERING SERVICES LTD,17/05/2021,"3,380.00",6223-Independent Foster Care-Oth Agency Provision,THIRD PARTY PAYMENTS,PRIVATE CONTRACTOR,REVENUE
Walsall Council,http://opendatacommunities.org/id/metropolitan-district-council/walsall ,WC126-274,31.05.2021,CHILDRENS,ACORNS CHILDRENS HOSPICE TRUST,19/05/2021,"1,700.00",6220-Professional Fees & Services,SUPPLIES & SERVICES,SERVICES,REVENUE
Walsall Council,http://opendatacommunities.org/id/metropolitan-district-council/walsall ,WC126-275,31.05.2021,CHILDRENS,ACTIVE CARE SOLUTIONS LTD,17/05/2021,"3,399.76",6223-Independent Foster Care-Oth Agency Provision,THIRD PARTY PAYMENTS,PRIVATE CONTRACTOR,REVENUE
Walsall Council,http://opendatacommunities.org/id/metropolitan-district-council/walsall ,WC126-276,31.05.2021,CHILDRENS,ACTIVE CARE SOLUTIONS LTD,17/05/2021,"2,596.36",6223-Independent Foster Care-Oth Agency Provision,THIRD PARTY PAYMENTS,PRIVATE CONTRACTOR,REVENUE
Walsall Council,http://opendatacommunities.org/id/metropolitan-district-council/walsall ,WC126-277,31.05.2021,CHILDRENS CAPITAL,ACTS GROUP LTD - CHIRMARN,06/05/2021,"1,445.00",7150-Site Works Contractors,CAPITAL,"NEW CONSTRUCTION,CONVERSION & RENOVATION",CAPITAL
Walsall Council,http://opendatacommunities.org/id/metropolitan-district-council/walsall ,WC126-278,31.05.2021,CHILDRENS CAPITAL,ACTS GROUP LTD - CHIRMARN,06/05/2021,545.00,7150-Site Works Contractors,CAPITAL,"NEW CONSTRUCTION,CONVERSION & RENOVATION",CAPITAL
Walsall Council,http://opendatacommunities.org/id/metropolitan-district-council/walsall ,WC126-279,31.05.2021,CHILDRENS CAPITAL,ACTS GROUP LTD - CHIRMARN,06/05/2021,545.00,7150-Site Works Contractors,CAPITAL,"NEW CONSTRUCTION,CONVERSION & RENOVATION",CAPITAL
Walsall Council,http://opendatacommunities.org/id/metropolitan-district-council/walsall ,WC126-280,31.05.2021,CHILDRENS CAPITAL,ACTS GROUP LTD - CHIRMARN,06/05/2021,545.00,7150-Site Works Contractors,CAPITAL,"NEW CONSTRUCTION,CONVERSION & RENOVATION",CAPITAL
Walsall Council,http://opendatacommunities.org/id/metropolitan-district-council/walsall ,WC126-281,31.05.2021,CHILDRENS CAPITAL,ACTS GROUP LTD - CHIRMARN,06/05/2021,545.00,7150-Site Works Contractors,CAPITAL,"NEW CONSTRUCTION,CONVERSION & RENOVATION",CAPITAL
Walsall Council,http://opendatacommunities.org/id/metropolitan-district-council/walsall ,WC126-282,31.05.2021,CHILDRENS CAPITAL,ACTS GROUP LTD - CHIRMARN,10/05/2021,"1,445.00",7150-Site Works Contractors,CAPITAL,"NEW CONSTRUCTION,CONVERSION & RENOVATION",CAPITAL
Walsall Council,http://opendatacommunities.org/id/metropolitan-district-council/walsall ,WC126-283,31.05.2021,CHILDRENS CAPITAL,ACTS GROUP LTD - CHIRMARN,11/05/2021,"1,445.00",7150-Site Works Contractors,CAPITAL,"NEW CONSTRUCTION,CONVERSION & RENOVATION",CAPITAL
Walsall Council,http://opendatacommunities.org/id/metropolitan-district-council/walsall ,WC126-284,31.05.2021,ADULT SOCIAL CARE,REDACTED,05/05/2021,790.88,6541-Direct Payment,THIRD PARTY PAYMENTS,PRIVATE CONTRACTOR,REVENUE
Walsall Council,http://opendatacommunities.org/id/metropolitan-district-council/walsall ,WC126-285,31.05.2021,CHILDRENS,ADCS (ASSOCIATION OF DIRECTORS OF CHILDRENS SERVICES),17/05/2021,300.00,6213-External Training,INDIRECT EMPLOYEES,EXTERNAL TRAINING,REVENUE
Walsall Council,http://opendatacommunities.org/id/metropolitan-district-council/walsall ,WC126-286,31.05.2021,CHILDRENS,REDACTED,04/05/2021,333.12,6223-Residents Orders,TRANSFER PAYMENTS,CHILDREN SOCIAL SERVICES CLIENT,REVENUE
Walsall Council,http://opendatacommunities.org/id/metropolitan-district-council/walsall ,WC126-287,31.05.2021,CHILDRENS,REDACTED,04/05/2021,361.12,6223-Residents Orders,TRANSFER PAYMENTS,CHILDREN SOCIAL SERVICES CLIENT,REVENUE
Walsall Council,http://opendatacommunities.org/id/metropolitan-district-council/walsall ,WC126-288,31.05.2021,ADULT SOCIAL CARE,REDACTED,05/05/2021,"2,083.20",6541-Direct Payment,THIRD PARTY PAYMENTS,PRIVATE CONTRACTOR,REVENUE
Walsall Council,http://opendatacommunities.org/id/metropolitan-district-council/walsall ,WC126-289,31.05.2021,ADULT SOCIAL CARE,ADVANCE HEALTH CARE (UK) LTD,25/05/2021,"1,048.56",6554-Professional Services-Priv Contractor & Other Agencies,THIRD PARTY PAYMENTS,PRIVATE CONTRACTOR,REVENUE
Walsall Council,http://opendatacommunities.org/id/metropolitan-district-council/walsall ,WC126-290,31.05.2021,ADULT SOCIAL CARE,ADVANCE HEALTH CARE (UK) LTD,25/05/2021,"1,943.20",6554-Professional Services-Priv Contractor & Other Agencies,THIRD PARTY PAYMENTS,PRIVATE CONTRACTOR,REVENUE
Walsall Council,http://opendatacommunities.org/id/metropolitan-district-council/walsall ,WC126-291,31.05.2021,ADULT SOCIAL CARE,ADVANCE HEALTH CARE (UK) LTD,25/05/2021,"1,588.51",6554-Professional Services-Priv Contractor & Other Agencies,THIRD PARTY PAYMENTS,PRIVATE CONTRACTOR,REVENUE
Walsall Council,http://opendatacommunities.org/id/metropolitan-district-council/walsall ,WC126-292,31.05.2021,ADULT SOCIAL CARE,ADVANCE HEALTH CARE (UK) LTD,25/05/2021,978.54,6554-Professional Services-Priv Contractor & Other Agencies,THIRD PARTY PAYMENTS,PRIVATE CONTRACTOR,REVENUE
Walsall Council,http://opendatacommunities.org/id/metropolitan-district-council/walsall ,WC126-293,31.05.2021,ADULT SOCIAL CARE,ADVANCE HEALTH CARE (UK) LTD,25/05/2021,674.72,6554-Professional Services-Priv Contractor & Other Agencies,THIRD PARTY PAYMENTS,PRIVATE CONTRACTOR,REVENUE
Walsall Council,http://opendatacommunities.org/id/metropolitan-district-council/walsall ,WC126-294,31.05.2021,ADULT SOCIAL CARE,ADVANCE HEALTH CARE (UK) LTD,25/05/2021,"1,688.74",6554-Professional Services-Priv Contractor & Other Agencies,THIRD PARTY PAYMENTS,PRIVATE CONTRACTOR,REVENUE
Walsall Council,http://opendatacommunities.org/id/metropolitan-district-council/walsall ,WC126-295,31.05.2021,ADULT SOCIAL CARE,ADVANCE HEALTH CARE (UK) LTD,25/05/2021,655.47,6554-Professional Services-Priv Contractor & Other Agencies,THIRD PARTY PAYMENTS,PRIVATE CONTRACTOR,REVENUE
Walsall Council,http://opendatacommunities.org/id/metropolitan-district-council/walsall ,WC126-296,31.05.2021,ADULT SOCIAL CARE,ADVANCE HEALTH CARE (UK) LTD,25/05/2021,"1,626.81",6554-Professional Services-Priv Contractor & Other Agencies,THIRD PARTY PAYMENTS,PRIVATE CONTRACTOR,REVENUE
Walsall Council,http://opendatacommunities.org/id/metropolitan-district-council/walsall ,WC126-297,31.05.2021,ADULT SOCIAL CARE,ADVANCE HEALTH CARE (UK) LTD,25/05/2021,343.15,6554-Professional Services-Priv Contractor & Other Agencies,THIRD PARTY PAYMENTS,PRIVATE CONTRACTOR,REVENUE
Walsall Council,http://opendatacommunities.org/id/metropolitan-district-council/walsall ,WC126-298,31.05.2021,ADULT SOCIAL CARE,ADVANCE HEALTH CARE (UK) LTD,25/05/2021,323.96,6554-Professional Services-Priv Contractor & Other Agencies,THIRD PARTY PAYMENTS,PRIVATE CONTRACTOR,REVENUE
Walsall Council,http://opendatacommunities.org/id/metropolitan-district-council/walsall ,WC126-299,31.05.2021,ADULT SOCIAL CARE,ADVANCE HEALTH CARE (UK) LTD,25/05/2021,624.78,6554-Professional Services-Priv Contractor & Other Agencies,THIRD PARTY PAYMENTS,PRIVATE CONTRACTOR,REVENUE
Walsall Council,http://opendatacommunities.org/id/metropolitan-district-council/walsall ,WC126-300,31.05.2021,ADULT SOCIAL CARE,ADVANCE HEALTH CARE (UK) LTD,25/05/2021,639.93,6554-Professional Services-Priv Contractor & Other Agencies,THIRD PARTY PAYMENTS,PRIVATE CONTRACTOR,REVENUE
Walsall Council,http://opendatacommunities.org/id/metropolitan-district-council/walsall ,WC126-301,31.05.2021,ADULT SOCIAL CARE,ADVANCE HEALTH CARE (UK) LTD,25/05/2021,262.21,6554-Professional Services-Priv Contractor & Other Agencies,THIRD PARTY PAYMENTS,PRIVATE CONTRACTOR,REVENUE
Walsall Council,http://opendatacommunities.org/id/metropolitan-district-council/walsall ,WC126-302,31.05.2021,ADULT SOCIAL CARE,ADVANCE HEALTH CARE (UK) LTD,25/05/2021,"1,357.16",6554-Professional Services-Priv Contractor & Other Agencies,THIRD PARTY PAYMENTS,PRIVATE CONTRACTOR,REVENUE
Walsall Council,http://opendatacommunities.org/id/metropolitan-district-council/walsall ,WC126-303,31.05.2021,ADULT SOCIAL CARE,ADVANCE HEALTH CARE (UK) LTD,25/05/2021,354.71,6554-Professional Services-Priv Contractor & Other Agencies,THIRD PARTY PAYMENTS,PRIVATE CONTRACTOR,REVENUE
Walsall Council,http://opendatacommunities.org/id/metropolitan-district-council/walsall ,WC126-304,31.05.2021,ADULT SOCIAL CARE,ADVANCE HEALTH CARE (UK) LTD,24/05/2021,490.49,6541-Domiciliary Care,THIRD PARTY PAYMENTS,PRIVATE CONTRACTOR,REVENUE
Walsall Council,http://opendatacommunities.org/id/metropolitan-district-council/walsall ,WC126-305,31.05.2021,ADULT SOCIAL CARE,ADVANCE HEALTH CARE (UK) LTD,24/05/2021,635.81,6541-Domiciliary Care,THIRD PARTY PAYMENTS,PRIVATE CONTRACTOR,REVENUE
Walsall Council,http://opendatacommunities.org/id/metropolitan-district-council/walsall ,WC126-306,31.05.2021,ADULT SOCIAL CARE,ADVANCE HEALTH CARE (UK) LTD,24/05/2021,622.80,6541-Domiciliary Care,THIRD PARTY PAYMENTS,PRIVATE CONTRACTOR,REVENUE
Walsall Council,http://opendatacommunities.org/id/metropolitan-district-council/walsall ,WC126-307,31.05.2021,ADULT SOCIAL CARE,ADVANCE HEALTH CARE (UK) LTD,24/05/2021,708.47,6541-Domiciliary Care,THIRD PARTY PAYMENTS,PRIVATE CONTRACTOR,REVENUE
Walsall Council,http://opendatacommunities.org/id/metropolitan-district-council/walsall ,WC126-308,31.05.2021,ADULT SOCIAL CARE,ADVANCE HEALTH CARE (UK) LTD,24/05/2021,435.96,6541-Domiciliary Care,THIRD PARTY PAYMENTS,PRIVATE CONTRACTOR,REVENUE
Walsall Council,http://opendatacommunities.org/id/metropolitan-district-council/walsall ,WC126-309,31.05.2021,ADULT SOCIAL CARE,ADVANCE HEALTH CARE (UK) LTD,24/05/2021,490.49,6541-Domiciliary Care,THIRD PARTY PAYMENTS,PRIVATE CONTRACTOR,REVENUE
Walsall Council,http://opendatacommunities.org/id/metropolitan-district-council/walsall ,WC126-310,31.05.2021,ADULT SOCIAL CARE,ADVANCE HEALTH CARE (UK) LTD,24/05/2021,871.92,6541-Domiciliary Care,THIRD PARTY PAYMENTS,PRIVATE CONTRACTOR,REVENUE
Walsall Council,http://opendatacommunities.org/id/metropolitan-district-council/walsall ,WC126-311,31.05.2021,ADULT SOCIAL CARE,ADVANCE HEALTH CARE (UK) LTD,24/05/2021,326.97,6541-Domiciliary Care,THIRD PARTY PAYMENTS,PRIVATE CONTRACTOR,REVENUE
Walsall Council,http://opendatacommunities.org/id/metropolitan-district-council/walsall ,WC126-312,31.05.2021,ADULT SOCIAL CARE,ADVANCE HEALTH CARE (UK) LTD,24/05/2021,381.50,6541-Domiciliary Care,THIRD PARTY PAYMENTS,PRIVATE CONTRACTOR,REVENUE
Walsall Council,http://opendatacommunities.org/id/metropolitan-district-council/walsall ,WC126-313,31.05.2021,ADULT SOCIAL CARE,ADVANCE HEALTH CARE (UK) LTD,24/05/2021,490.49,6541-Domiciliary Care,THIRD PARTY PAYMENTS,PRIVATE CONTRACTOR,REVENUE
Walsall Council,http://opendatacommunities.org/id/metropolitan-district-council/walsall ,WC126-314,31.05.2021,ADULT SOCIAL CARE,ADVANCE HEALTH CARE (UK) LTD,24/05/2021,833.03,6541-Domiciliary Care,THIRD PARTY PAYMENTS,PRIVATE CONTRACTOR,REVENUE
Walsall Council,http://opendatacommunities.org/id/metropolitan-district-council/walsall ,WC126-315,31.05.2021,ADULT SOCIAL CARE,ADVANCE HEALTH CARE (UK) LTD,24/05/2021,490.49,6541-Domiciliary Care,THIRD PARTY PAYMENTS,PRIVATE CONTRACTOR,REVENUE
Walsall Council,http://opendatacommunities.org/id/metropolitan-district-council/walsall ,WC126-316,31.05.2021,ADULT SOCIAL CARE,ADVANCE HEALTH CARE (UK) LTD,24/05/2021,490.49,6541-Domiciliary Care,THIRD PARTY PAYMENTS,PRIVATE CONTRACTOR,REVENUE
Walsall Council,http://opendatacommunities.org/id/metropolitan-district-council/walsall ,WC126-317,31.05.2021,ADULT SOCIAL CARE,ADVANCE HEALTH CARE (UK) LTD,24/05/2021,490.49,6541-Domiciliary Care,THIRD PARTY PAYMENTS,PRIVATE CONTRACTOR,REVENUE
Walsall Council,http://opendatacommunities.org/id/metropolitan-district-council/walsall ,WC126-318,31.05.2021,ADULT SOCIAL CARE,ADVANCE HEALTH CARE (UK) LTD,24/05/2021,435.96,6541-Domiciliary Care,THIRD PARTY PAYMENTS,PRIVATE CONTRACTOR,REVENUE
Walsall Council,http://opendatacommunities.org/id/metropolitan-district-council/walsall ,WC126-319,31.05.2021,ADULT SOCIAL CARE,ADVANCE HEALTH CARE (UK) LTD,24/05/2021,544.95,6541-Domiciliary Care,THIRD PARTY PAYMENTS,PRIVATE CONTRACTOR,REVENUE
Walsall Council,http://opendatacommunities.org/id/metropolitan-district-council/walsall ,WC126-320,31.05.2021,ADULT SOCIAL CARE,ADVANCE HEALTH CARE (UK) LTD,24/05/2021,435.96,6541-Domiciliary Care,THIRD PARTY PAYMENTS,PRIVATE CONTRACTOR,REVENUE
Walsall Council,http://opendatacommunities.org/id/metropolitan-district-council/walsall ,WC126-321,31.05.2021,ADULT SOCIAL CARE,ADVANCE HEALTH CARE (UK) LTD,24/05/2021,363.30,6541-Domiciliary Care,THIRD PARTY PAYMENTS,PRIVATE CONTRACTOR,REVENUE
Walsall Council,http://opendatacommunities.org/id/metropolitan-district-council/walsall ,WC126-322,31.05.2021,ADULT SOCIAL CARE,ADVANCE HEALTH CARE (UK) LTD,24/05/2021,763.00,6541-Domiciliary Care,THIRD PARTY PAYMENTS,PRIVATE CONTRACTOR,REVENUE
Walsall Council,http://opendatacommunities.org/id/metropolitan-district-council/walsall ,WC126-323,31.05.2021,ADULT SOCIAL CARE,ADVANCE HEALTH CARE (UK) LTD,24/05/2021,490.49,6541-Domiciliary Care,THIRD PARTY PAYMENTS,PRIVATE CONTRACTOR,REVENUE
Walsall Council,http://opendatacommunities.org/id/metropolitan-district-council/walsall ,WC126-324,31.05.2021,ADULT SOCIAL CARE,ADVANCE HEALTH CARE (UK) LTD,24/05/2021,490.49,6541-Domiciliary Care,THIRD PARTY PAYMENTS,PRIVATE CONTRACTOR,REVENUE
Walsall Council,http://opendatacommunities.org/id/metropolitan-district-council/walsall ,WC126-325,31.05.2021,ADULT SOCIAL CARE,ADVANCE HEALTH CARE (UK) LTD,24/05/2021,435.96,6541-Domiciliary Care,THIRD PARTY PAYMENTS,PRIVATE CONTRACTOR,REVENUE
Walsall Council,http://opendatacommunities.org/id/metropolitan-district-council/walsall ,WC126-326,31.05.2021,ADULT SOCIAL CARE,ADVANCE HEALTH CARE (UK) LTD,24/05/2021,490.49,6541-Domiciliary Care,THIRD PARTY PAYMENTS,PRIVATE CONTRACTOR,REVENUE
Walsall Council,http://opendatacommunities.org/id/metropolitan-district-council/walsall ,WC126-327,31.05.2021,ADULT SOCIAL CARE,ADVANCE HEALTH CARE (UK) LTD,24/05/2021,454.16,6541-Domiciliary Care,THIRD PARTY PAYMENTS,PRIVATE CONTRACTOR,REVENUE
Walsall Council,http://opendatacommunities.org/id/metropolitan-district-council/walsall ,WC126-328,31.05.2021,ADULT SOCIAL CARE,ADVANCE HEALTH CARE (UK) LTD,24/05/2021,490.70,6541-Domiciliary Care,THIRD PARTY PAYMENTS,PRIVATE CONTRACTOR,REVENUE
Walsall Council,http://opendatacommunities.org/id/metropolitan-district-council/walsall ,WC126-329,31.05.2021,ADULT SOCIAL CARE,ADVANCE HEALTH CARE (UK) LTD,24/05/2021,506.06,6541-Domiciliary Care,THIRD PARTY PAYMENTS,PRIVATE CONTRACTOR,REVENUE
Walsall Council,http://opendatacommunities.org/id/metropolitan-district-council/walsall ,WC126-330,31.05.2021,ADULT SOCIAL CARE,ADVANCE HEALTH CARE (UK) LTD,24/05/2021,490.49,6541-Domiciliary Care,THIRD PARTY PAYMENTS,PRIVATE CONTRACTOR,REVENUE
Walsall Council,http://opendatacommunities.org/id/metropolitan-district-council/walsall ,WC126-331,31.05.2021,ADULT SOCIAL CARE,ADVANCE HEALTH CARE (UK) LTD,24/05/2021,280.28,6541-Domiciliary Care,THIRD PARTY PAYMENTS,PRIVATE CONTRACTOR,REVENUE
Walsall Council,http://opendatacommunities.org/id/metropolitan-district-council/walsall ,WC126-332,31.05.2021,ADULT SOCIAL CARE,ADVANCE HEALTH CARE (UK) LTD,24/05/2021,435.96,6541-Domiciliary Care,THIRD PARTY PAYMENTS,PRIVATE CONTRACTOR,REVENUE
Walsall Council,http://opendatacommunities.org/id/metropolitan-district-council/walsall ,WC126-333,31.05.2021,ADULT SOCIAL CARE,ADVANCE HEALTH CARE (UK) LTD,24/05/2021,363.30,6541-Domiciliary Care,THIRD PARTY PAYMENTS,PRIVATE CONTRACTOR,REVENUE
Walsall Council,http://opendatacommunities.org/id/metropolitan-district-council/walsall ,WC126-334,31.05.2021,ADULT SOCIAL CARE,ADVANCE HEALTH CARE (UK) LTD,24/05/2021,490.49,6541-Domiciliary Care,THIRD PARTY PAYMENTS,PRIVATE CONTRACTOR,REVENUE
Walsall Council,http://opendatacommunities.org/id/metropolitan-district-council/walsall ,WC126-335,31.05.2021,ADULT SOCIAL CARE,ADVANCE HEALTH CARE (UK) LTD,24/05/2021,490.49,6541-Domiciliary Care,THIRD PARTY PAYMENTS,PRIVATE CONTRACTOR,REVENUE
Walsall Council,http://opendatacommunities.org/id/metropolitan-district-council/walsall ,WC126-336,31.05.2021,ADULT SOCIAL CARE,ADVANCE HEALTH CARE (UK) LTD,24/05/2021,490.49,6541-Domiciliary Care,THIRD PARTY PAYMENTS,PRIVATE CONTRACTOR,REVENUE
Walsall Council,http://opendatacommunities.org/id/metropolitan-district-council/walsall ,WC126-337,31.05.2021,ADULT SOCIAL CARE,ADVANCE HEALTH CARE (UK) LTD,24/05/2021,840.81,6541-Domiciliary Care,THIRD PARTY PAYMENTS,PRIVATE CONTRACTOR,REVENUE
Walsall Council,http://opendatacommunities.org/id/metropolitan-district-council/walsall ,WC126-338,31.05.2021,ADULT SOCIAL CARE,ADVANCE HEALTH CARE (UK) LTD,24/05/2021,435.96,6541-Domiciliary Care,THIRD PARTY PAYMENTS,PRIVATE CONTRACTOR,REVENUE
Walsall Council,http://opendatacommunities.org/id/metropolitan-district-council/walsall ,WC126-339,31.05.2021,ADULT SOCIAL CARE,ADVANCE HEALTH CARE (UK) LTD,24/05/2021,435.96,6541-Domiciliary Care,THIRD PARTY PAYMENTS,PRIVATE CONTRACTOR,REVENUE
Walsall Council,http://opendatacommunities.org/id/metropolitan-district-council/walsall ,WC126-340,31.05.2021,ADULT SOCIAL CARE,ADVANCE HEALTH CARE (UK) LTD,24/05/2021,443.81,6541-Domiciliary Care,THIRD PARTY PAYMENTS,PRIVATE CONTRACTOR,REVENUE
Walsall Council,http://opendatacommunities.org/id/metropolitan-district-council/walsall ,WC126-341,31.05.2021,ADULT SOCIAL CARE,ADVANCE HEALTH CARE (UK) LTD,24/05/2021,-420.60,6541-Domiciliary Care,THIRD PARTY PAYMENTS,PRIVATE CONTRACTOR,REVENUE
Walsall Council,http://opendatacommunities.org/id/metropolitan-district-council/walsall ,WC126-342,31.05.2021,ADULT SOCIAL CARE,ADVANCE HEALTH CARE (UK) LTD,24/05/2021,420.42,6541-Domiciliary Care,THIRD PARTY PAYMENTS,PRIVATE CONTRACTOR,REVENUE
Walsall Council,http://opendatacommunities.org/id/metropolitan-district-council/walsall ,WC126-343,31.05.2021,ADULT SOCIAL CARE,ADVANCE HEALTH CARE (UK) LTD,05/05/2021,663.18,6541-Domiciliary Care,THIRD PARTY PAYMENTS,PRIVATE CONTRACTOR,REVENUE
Walsall Council,http://opendatacommunities.org/id/metropolitan-district-council/walsall ,WC126-344,31.05.2021,ADULT SOCIAL CARE,ADVANCE HEALTH CARE (UK) LTD,05/05/2021,"3,173.95",6541-Domiciliary Care,THIRD PARTY PAYMENTS,PRIVATE CONTRACTOR,REVENUE
Walsall Council,http://opendatacommunities.org/id/metropolitan-district-council/walsall ,WC126-345,31.05.2021,ADULT SOCIAL CARE,ADVANCE HEALTH CARE (UK) LTD,05/05/2021,755.72,6541-Domiciliary Care,THIRD PARTY PAYMENTS,PRIVATE CONTRACTOR,REVENUE
Walsall Council,http://opendatacommunities.org/id/metropolitan-district-council/walsall ,WC126-346,31.05.2021,ADULT SOCIAL CARE,ADVANCE HEALTH CARE (UK) LTD,05/05/2021,"1,115.52",6541-Domiciliary Care,THIRD PARTY PAYMENTS,PRIVATE CONTRACTOR,REVENUE
Walsall Council,http://opendatacommunities.org/id/metropolitan-district-council/walsall ,WC126-347,31.05.2021,ADULT SOCIAL CARE,ADVANCE HEALTH CARE (UK) LTD,05/05/2021,817.40,6541-Domiciliary Care,THIRD PARTY PAYMENTS,PRIVATE CONTRACTOR,REVENUE
Walsall Council,http://opendatacommunities.org/id/metropolitan-district-council/walsall ,WC126-348,31.05.2021,ADULT SOCIAL CARE,ADVANCE HEALTH CARE (UK) LTD,18/05/2021,"2,590.56",6541-Domiciliary Care,THIRD PARTY PAYMENTS,PRIVATE CONTRACTOR,REVENUE
Walsall Council,http://opendatacommunities.org/id/metropolitan-district-council/walsall ,WC126-349,31.05.2021,ADULT SOCIAL CARE,ADVANCE HEALTH CARE (UK) LTD,05/05/2021,"2,734.48",6541-Domiciliary Care,THIRD PARTY PAYMENTS,PRIVATE CONTRACTOR,REVENUE
Walsall Council,http://opendatacommunities.org/id/metropolitan-district-council/walsall ,WC126-350,31.05.2021,ADULT SOCIAL CARE,ADVANCE HEALTH CARE (UK) LTD,05/05/2021,719.60,6541-Domiciliary Care,THIRD PARTY PAYMENTS,PRIVATE CONTRACTOR,REVENUE
Walsall Council,http://opendatacommunities.org/id/metropolitan-district-council/walsall ,WC126-351,31.05.2021,ADULT SOCIAL CARE,ADVANCE HEALTH CARE (UK) LTD,05/05/2021,426.62,6541-Domiciliary Care,THIRD PARTY PAYMENTS,PRIVATE CONTRACTOR,REVENUE
Walsall Council,http://opendatacommunities.org/id/metropolitan-district-council/walsall ,WC126-352,31.05.2021,ADULT SOCIAL CARE,ADVANCE HEALTH CARE (UK) LTD,05/05/2021,"1,017.72",6541-Domiciliary Care,THIRD PARTY PAYMENTS,PRIVATE CONTRACTOR,REVENUE
Walsall Council,http://opendatacommunities.org/id/metropolitan-district-council/walsall ,WC126-353,31.05.2021,ADULT SOCIAL CARE,ADVANCE HEALTH CARE (UK) LTD,05/05/2021,817.40,6541-Domiciliary Care,THIRD PARTY PAYMENTS,PRIVATE CONTRACTOR,REVENUE
Walsall Council,http://opendatacommunities.org/id/metropolitan-district-council/walsall ,WC126-354,31.05.2021,ADULT SOCIAL CARE,ADVANCE HEALTH CARE (UK) LTD,05/05/2021,956.04,6541-Domiciliary Care,THIRD PARTY PAYMENTS,PRIVATE CONTRACTOR,REVENUE
Walsall Council,http://opendatacommunities.org/id/metropolitan-district-council/walsall ,WC126-355,31.05.2021,ADULT SOCIAL CARE,ADVANCE PHARMA LTD T/A PLECK PHARMACY,24/05/2021,"1,010.10",6420-Payment to Contractors,SUPPLIES & SERVICES,SERVICES,REVENUE
Walsall Council,http://opendatacommunities.org/id/metropolitan-district-council/walsall ,WC126-356,31.05.2021,ADULT SOCIAL CARE,ADVANCE PHARMA LTD T/A PLECK PHARMACY,10/05/2021,737.10,6420-Payment to Contractors,SUPPLIES & SERVICES,SERVICES,REVENUE
Walsall Council,http://opendatacommunities.org/id/metropolitan-district-council/walsall ,WC126-357,31.05.2021,ADULT SOCIAL CARE,ADVANCE PHARMA LTD T/A PLECK PHARMACY,24/05/2021,982.80,6420-Payment to Contractors,SUPPLIES & SERVICES,SERVICES,REVENUE
Walsall Council,http://opendatacommunities.org/id/metropolitan-district-council/walsall ,WC126-358,31.05.2021,CHILDRENS,ADVENTURELAND DAY NURSERY,05/05/2021,640.00,1184-Transfer Payments-Other Schoolchildren/Student Related Items,TRANSFER PAYMENTS,SCHOOLCHILDREN/STUDENTS,REVENUE
Walsall Council,http://opendatacommunities.org/id/metropolitan-district-council/walsall ,WC126-359,31.05.2021,ADULT SOCIAL CARE,ADVINIA CARE HOMES LTD - HAMMERWICH HALL CARE HOME,10/05/2021,"2,057.14",6541-Residential,THIRD PARTY PAYMENTS,PRIVATE CONTRACTOR,REVENUE
Walsall Council,http://opendatacommunities.org/id/metropolitan-district-council/walsall ,WC126-360,31.05.2021,ADULT SOCIAL CARE,ADVINIA CARE HOMES LTD - HAMMERWICH HALL CARE HOME,10/05/2021,"2,322.84",6541-Residential EMI,THIRD PARTY PAYMENTS,PRIVATE CONTRACTOR,REVENUE
Walsall Council,http://opendatacommunities.org/id/metropolitan-district-council/walsall ,WC126-361,31.05.2021,ADULT SOCIAL CARE,ADVOCACY MATTERS LIMITED,12/05/2021,"14,669.65",6553-Social Services-Fees to Voluntary Bodies,THIRD PARTY PAYMENTS,VOLUNTARY BODIES,REVENUE
Walsall Council,http://opendatacommunities.org/id/metropolitan-district-council/walsall ,WC126-362,31.05.2021,ECONOMY & ENVIRONMENT,AEBI SCHMIDT UK LIMITED,04/05/2021,698.94,6410-Professional Services-Priv Contractor & Other Agencies,THIRD PARTY PAYMENTS,PRIVATE CONTRACTOR,REVENUE
Walsall Council,http://opendatacommunities.org/id/metropolitan-district-council/walsall ,WC126-363,31.05.2021,CHILDRENS,REDACTED,04/05/2021,540.00,6223-Foster Carers Maintenance Allowance,TRANSFER PAYMENTS,CHILDREN SOCIAL SERVICES CLIENT,REVENUE
Walsall Council,http://opendatacommunities.org/id/metropolitan-district-council/walsall ,WC126-364,31.05.2021,CHILDRENS,REDACTED,04/05/2021,540.00,6223-Foster Carers Maintenance Allowance,TRANSFER PAYMENTS,CHILDREN SOCIAL SERVICES CLIENT,REVENUE
Walsall Council,http://opendatacommunities.org/id/metropolitan-district-council/walsall ,WC126-365,31.05.2021,RESOURCES AND TRANSFORMATION,AGILISYS LTD,10/05/2021,"95,000.00",6623-Computer Equipment,SUPPLIES & SERVICES,COMMUNICATIONS & COMPUTING,REVENUE
Walsall Council,http://opendatacommunities.org/id/metropolitan-district-council/walsall ,WC126-366,31.05.2021,RESOURCES AND TRANSFORMATION,AGILISYS LTD,19/05/2021,"-1,045,000.00",6623-Computer Equipment,SUPPLIES & SERVICES,COMMUNICATIONS & COMPUTING,REVENUE
Walsall Council,http://opendatacommunities.org/id/metropolitan-district-council/walsall ,WC126-367,31.05.2021,RESOURCES AND TRANSFORMATION,AGILISYS LTD,19/05/2021,"95,000.00",6623-Computer Equipment,SUPPLIES & SERVICES,COMMUNICATIONS & COMPUTING,REVENUE
Walsall Council,http://opendatacommunities.org/id/metropolitan-district-council/walsall ,WC126-368,31.05.2021,RESOURCES AND TRANSFORMATION,AGILISYS LTD,19/05/2021,"1,045,000.00",6623-Computer Equipment,SUPPLIES & SERVICES,COMMUNICATIONS & COMPUTING,REVENUE
Walsall Council,http://opendatacommunities.org/id/metropolitan-district-council/walsall ,WC126-369,31.05.2021,ADULT SOCIAL CARE,REDACTED,05/05/2021,"2,480.64",6541-Direct Payment,THIRD PARTY PAYMENTS,PRIVATE CONTRACTOR,REVENUE
Walsall Council,http://opendatacommunities.org/id/metropolitan-district-council/walsall ,WC126-370,31.05.2021,CHILDRENS,AIREY CONSULTANCY SERVICES LTD,26/05/2021,"1,415.00",6632-Computer Equipment,SUPPLIES & SERVICES,COMMUNICATIONS & COMPUTING,REVENUE
Walsall Council,http://opendatacommunities.org/id/metropolitan-district-council/walsall ,WC126-371,31.05.2021,CHILDRENS,ALASDAIR CANT & ASSOCIATES LIMITED,27/05/2021,"21,494.00",6220-Professional Services-Priv Contractor & Other Agencies,THIRD PARTY PAYMENTS,PRIVATE CONTRACTOR,REVENUE
Walsall Council,http://opendatacommunities.org/id/metropolitan-district-council/walsall ,WC126-372,31.05.2021,CHILDRENS,ALDRIDGE & BARONS LIMITED,19/05/2021,"1,410.00",6241-Hire of Vehicle with Driver,TRANSPORT,DIRECT TRANSPORT COSTS,REVENUE
Walsall Council,http://opendatacommunities.org/id/metropolitan-district-council/walsall ,WC126-373,31.05.2021,CHILDRENS,ALDRIDGE & BARONS LIMITED,19/05/2021,"1,160.90",6241-Hire of Vehicle with Driver,TRANSPORT,DIRECT TRANSPORT COSTS,REVENUE
Walsall Council,http://opendatacommunities.org/id/metropolitan-district-council/walsall ,WC126-374,31.05.2021,CHILDRENS,ALDRIDGE & BARONS LIMITED,19/05/2021,632.00,6241-Hire of Vehicle with Driver,TRANSPORT,DIRECT TRANSPORT COSTS,REVENUE
Walsall Council,http://opendatacommunities.org/id/metropolitan-district-council/walsall ,WC126-375,31.05.2021,CHILDRENS,ALDRIDGE & BARONS LIMITED,19/05/2021,980.00,6241-Hire of Vehicle with Driver,TRANSPORT,DIRECT TRANSPORT COSTS,REVENUE
Walsall Council,http://opendatacommunities.org/id/metropolitan-district-council/walsall ,WC126-376,31.05.2021,CHILDRENS,ALDRIDGE & BARONS LIMITED,19/05/2021,468.00,6241-Hire of Vehicle with Driver,TRANSPORT,DIRECT TRANSPORT COSTS,REVENUE
Walsall Council,http://opendatacommunities.org/id/metropolitan-district-council/walsall ,WC126-377,31.05.2021,CHILDRENS,ALDRIDGE & BARONS LIMITED,19/05/2021,368.00,6241-Hire of Vehicle with Driver,TRANSPORT,DIRECT TRANSPORT COSTS,REVENUE
Walsall Council,http://opendatacommunities.org/id/metropolitan-district-council/walsall ,WC126-378,31.05.2021,CHILDRENS,ALDRIDGE & BARONS LIMITED,19/05/2021,"1,744.20",6241-Hire of Vehicle with Driver,TRANSPORT,DIRECT TRANSPORT COSTS,REVENUE
Walsall Council,http://opendatacommunities.org/id/metropolitan-district-council/walsall ,WC126-379,31.05.2021,CHILDRENS,ALDRIDGE & BARONS LIMITED,19/05/2021,"1,960.00",6241-Hire of Vehicle with Driver,TRANSPORT,DIRECT TRANSPORT COSTS,REVENUE
Walsall Council,http://opendatacommunities.org/id/metropolitan-district-council/walsall ,WC126-380,31.05.2021,CHILDRENS,ALDRIDGE & BARONS LIMITED,19/05/2021,"1,372.00",6241-Hire of Vehicle with Driver,TRANSPORT,DIRECT TRANSPORT COSTS,REVENUE
Walsall Council,http://opendatacommunities.org/id/metropolitan-district-council/walsall ,WC126-381,31.05.2021,CHILDRENS,ALDRIDGE & BARONS LIMITED,19/05/2021,"1,066.00",6241-Hire of Vehicle with Driver,TRANSPORT,DIRECT TRANSPORT COSTS,REVENUE
Walsall Council,http://opendatacommunities.org/id/metropolitan-district-council/walsall ,WC126-382,31.05.2021,CHILDRENS,ALDRIDGE & BARONS LIMITED,19/05/2021,"1,148.00",6241-Hire of Vehicle with Driver,TRANSPORT,DIRECT TRANSPORT COSTS,REVENUE
Walsall Council,http://opendatacommunities.org/id/metropolitan-district-council/walsall ,WC126-383,31.05.2021,CHILDRENS,ALDRIDGE & BARONS LIMITED,19/05/2021,"1,389.96",6241-Hire of Vehicle with Driver,TRANSPORT,DIRECT TRANSPORT COSTS,REVENUE
Walsall Council,http://opendatacommunities.org/id/metropolitan-district-council/walsall ,WC126-384,31.05.2021,CHILDRENS,ALDRIDGE & BARONS LIMITED,19/05/2021,"1,400.00",6241-Hire of Vehicle with Driver,TRANSPORT,DIRECT TRANSPORT COSTS,REVENUE
Walsall Council,http://opendatacommunities.org/id/metropolitan-district-council/walsall ,WC126-385,31.05.2021,CHILDRENS,ALDRIDGE & BARONS LIMITED,19/05/2021,"1,389.50",6241-Hire of Vehicle with Driver,TRANSPORT,DIRECT TRANSPORT COSTS,REVENUE
Walsall Council,http://opendatacommunities.org/id/metropolitan-district-council/walsall ,WC126-386,31.05.2021,CHILDRENS,ALDRIDGE & BARONS LIMITED,19/05/2021,"1,200.00",6241-Hire of Vehicle with Driver,TRANSPORT,DIRECT TRANSPORT COSTS,REVENUE
Walsall Council,http://opendatacommunities.org/id/metropolitan-district-council/walsall ,WC126-387,31.05.2021,CHILDRENS,ALDRIDGE & BARONS LIMITED,19/05/2021,"1,364.40",6241-Hire of Vehicle with Driver,TRANSPORT,DIRECT TRANSPORT COSTS,REVENUE
Walsall Council,http://opendatacommunities.org/id/metropolitan-district-council/walsall ,WC126-388,31.05.2021,CHILDRENS,ALDRIDGE & BARONS LIMITED,19/05/2021,"1,950.00",6241-Hire of Vehicle with Driver,TRANSPORT,DIRECT TRANSPORT COSTS,REVENUE
Walsall Council,http://opendatacommunities.org/id/metropolitan-district-council/walsall ,WC126-389,31.05.2021,CHILDRENS,ALDRIDGE & BARONS LIMITED,19/05/2021,"1,204.00",6241-Hire of Vehicle with Driver,TRANSPORT,DIRECT TRANSPORT COSTS,REVENUE
Walsall Council,http://opendatacommunities.org/id/metropolitan-district-council/walsall ,WC126-390,31.05.2021,CHILDRENS,ALDRIDGE & BARONS LIMITED,19/05/2021,"1,491.12",6241-Hire of Vehicle with Driver,TRANSPORT,DIRECT TRANSPORT COSTS,REVENUE
Walsall Council,http://opendatacommunities.org/id/metropolitan-district-council/walsall ,WC126-391,31.05.2021,CHILDRENS,ALDRIDGE & BARONS LIMITED,19/05/2021,725.40,6241-Hire of Vehicle with Driver,TRANSPORT,DIRECT TRANSPORT COSTS,REVENUE
Walsall Council,http://opendatacommunities.org/id/metropolitan-district-council/walsall ,WC126-392,31.05.2021,CHILDRENS,ALDRIDGE & BARONS LIMITED,19/05/2021,"1,058.40",6241-Hire of Vehicle with Driver,TRANSPORT,DIRECT TRANSPORT COSTS,REVENUE
Walsall Council,http://opendatacommunities.org/id/metropolitan-district-council/walsall ,WC126-393,31.05.2021,CHILDRENS,ALDRIDGE & BARONS LIMITED,19/05/2021,812.00,6241-Hire of Vehicle with Driver,TRANSPORT,DIRECT TRANSPORT COSTS,REVENUE
Walsall Council,http://opendatacommunities.org/id/metropolitan-district-council/walsall ,WC126-394,31.05.2021,CHILDRENS,ALDRIDGE & BARONS LIMITED,19/05/2021,798.00,6241-Hire of Vehicle with Driver,TRANSPORT,DIRECT TRANSPORT COSTS,REVENUE
Walsall Council,http://opendatacommunities.org/id/metropolitan-district-council/walsall ,WC126-395,31.05.2021,CHILDRENS,ALDRIDGE & BARONS LIMITED,19/05/2021,"1,350.00",6241-Hire of Vehicle with Driver,TRANSPORT,DIRECT TRANSPORT COSTS,REVENUE
Walsall Council,http://opendatacommunities.org/id/metropolitan-district-council/walsall ,WC126-396,31.05.2021,CHILDRENS,ALDRIDGE & BARONS LIMITED,19/05/2021,"1,560.00",6241-Hire of Vehicle with Driver,TRANSPORT,DIRECT TRANSPORT COSTS,REVENUE
Walsall Council,http://opendatacommunities.org/id/metropolitan-district-council/walsall ,WC126-397,31.05.2021,CHILDRENS,ALDRIDGE & BARONS LIMITED,19/05/2021,"1,234.24",6241-Hire of Vehicle with Driver,TRANSPORT,DIRECT TRANSPORT COSTS,REVENUE
Walsall Council,http://opendatacommunities.org/id/metropolitan-district-council/walsall ,WC126-398,31.05.2021,CHILDRENS,ALDRIDGE & BARONS LIMITED,19/05/2021,781.20,6241-Hire of Vehicle with Driver,TRANSPORT,DIRECT TRANSPORT COSTS,REVENUE
Walsall Council,http://opendatacommunities.org/id/metropolitan-district-council/walsall ,WC126-399,31.05.2021,CHILDRENS,ALDRIDGE & BARONS LIMITED,19/05/2021,"1,176.00",6241-Hire of Vehicle with Driver,TRANSPORT,DIRECT TRANSPORT COSTS,REVENUE
Walsall Council,http://opendatacommunities.org/id/metropolitan-district-council/walsall ,WC126-400,31.05.2021,CHILDRENS,ALDRIDGE & BARONS LIMITED,19/05/2021,"1,360.80",6241-Hire of Vehicle with Driver,TRANSPORT,DIRECT TRANSPORT COSTS,REVENUE
Walsall Council,http://opendatacommunities.org/id/metropolitan-district-council/walsall ,WC126-401,31.05.2021,CHILDRENS,ALDRIDGE & BARONS LIMITED,19/05/2021,"1,319.50",6241-Hire of Vehicle with Driver,TRANSPORT,DIRECT TRANSPORT COSTS,REVENUE
Walsall Council,http://opendatacommunities.org/id/metropolitan-district-council/walsall ,WC126-402,31.05.2021,CHILDRENS,ALDRIDGE & BARONS LIMITED,19/05/2021,"1,491.00",6241-Hire of Vehicle with Driver,TRANSPORT,DIRECT TRANSPORT COSTS,REVENUE
Walsall Council,http://opendatacommunities.org/id/metropolitan-district-council/walsall ,WC126-403,31.05.2021,CHILDRENS,ALDRIDGE & BARONS LIMITED,19/05/2021,"1,271.40",6241-Hire of Vehicle with Driver,TRANSPORT,DIRECT TRANSPORT COSTS,REVENUE
Walsall Council,http://opendatacommunities.org/id/metropolitan-district-council/walsall ,WC126-404,31.05.2021,CHILDRENS,ALDRIDGE & BARONS LIMITED,19/05/2021,"1,200.00",6241-Hire of Vehicle with Driver,TRANSPORT,DIRECT TRANSPORT COSTS,REVENUE
Walsall Council,http://opendatacommunities.org/id/metropolitan-district-council/walsall ,WC126-405,31.05.2021,CHILDRENS,ALDRIDGE & BARONS LIMITED,19/05/2021,700.00,6241-Hire of Vehicle with Driver,TRANSPORT,DIRECT TRANSPORT COSTS,REVENUE
Walsall Council,http://opendatacommunities.org/id/metropolitan-district-council/walsall ,WC126-406,31.05.2021,CHILDRENS,ALDRIDGE & BARONS LIMITED,19/05/2021,604.80,6241-Hire of Vehicle with Driver,TRANSPORT,DIRECT TRANSPORT COSTS,REVENUE
Walsall Council,http://opendatacommunities.org/id/metropolitan-district-council/walsall ,WC126-407,31.05.2021,RESOURCES AND TRANSFORMATION,ALDRIDGE METHODIST CHURCH 001,26/05/2021,350.00,6610-Hire of Room,SUPPLIES & SERVICES,SERVICES,REVENUE
Walsall Council,http://opendatacommunities.org/id/metropolitan-district-council/walsall ,WC126-408,31.05.2021,ADULT SOCIAL CARE,ALDRIDGE METHODIST CHURCH 001,20/05/2021,"2,545.45",6420-Consultant Fees,SUPPLIES & SERVICES,SERVICES,REVENUE
Walsall Council,http://opendatacommunities.org/id/metropolitan-district-council/walsall ,WC126-409,31.05.2021,ADULT SOCIAL CARE,REDACTED,05/05/2021,"1,480.32",6541-Direct Payment,THIRD PARTY PAYMENTS,PRIVATE CONTRACTOR,REVENUE
Walsall Council,http://opendatacommunities.org/id/metropolitan-district-council/walsall ,WC126-410,31.05.2021,ADULT SOCIAL CARE,ALEXANDRA HOUSE CARE SERVICES LTD T/A STONEBRIDGE NURSING HOME,10/05/2021,"2,628.97",6541-Residential,THIRD PARTY PAYMENTS,PRIVATE CONTRACTOR,REVENUE
Walsall Council,http://opendatacommunities.org/id/metropolitan-district-council/walsall ,WC126-411,31.05.2021,ADULT SOCIAL CARE,ALEXANDRA HOUSE CARE SERVICES LTD T/A STONEBRIDGE NURSING HOME,10/05/2021,"4,779.46",6541-Residential,THIRD PARTY PAYMENTS,PRIVATE CONTRACTOR,REVENUE
Walsall Council,http://opendatacommunities.org/id/metropolitan-district-council/walsall ,WC126-412,31.05.2021,ADULT SOCIAL CARE,REDACTED,05/05/2021,"1,962.80",6541-Direct Payment,THIRD PARTY PAYMENTS,PRIVATE CONTRACTOR,REVENUE
Walsall Council,http://opendatacommunities.org/id/metropolitan-district-council/walsall ,WC126-413,31.05.2021,ADULT SOCIAL CARE,REDACTED,05/05/2021,957.44,6541-Direct Payment,THIRD PARTY PAYMENTS,PRIVATE CONTRACTOR,REVENUE
Walsall Council,http://opendatacommunities.org/id/metropolitan-district-council/walsall ,WC126-414,31.05.2021,CHILDRENS,REDACTED,04/05/2021,312.24,6223-Special Guardianship Orders,TRANSFER PAYMENTS,CHILDREN SOCIAL SERVICES CLIENT,REVENUE
Walsall Council,http://opendatacommunities.org/id/metropolitan-district-council/walsall ,WC126-415,31.05.2021,CHILDRENS,REDACTED,14/05/2021,"1,020.00",6223-Professional Services-Priv Contractor & Other Agencies,THIRD PARTY PAYMENTS,PRIVATE CONTRACTOR,REVENUE
Walsall Council,http://opendatacommunities.org/id/metropolitan-district-council/walsall ,WC126-416,31.05.2021,CHILDRENS,ALL SAINTS NATIONAL ACADEMY #1,24/05/2021,"6,579.00",1220-Top Up Funding -Grants to Schools,SUPPLIES & SERVICES,GRANTS (EXP) & SUBSCRIPTIONS,REVENUE
Walsall Council,http://opendatacommunities.org/id/metropolitan-district-council/walsall ,WC126-417,31.05.2021,CHILDRENS,ALL SAINTS NATIONAL ACADEMY #1,17/05/2021,"7,881.94",1220-Top Up Funding -Grants to Schools,SUPPLIES & SERVICES,GRANTS (EXP) & SUBSCRIPTIONS,REVENUE
Walsall Council,http://opendatacommunities.org/id/metropolitan-district-council/walsall ,WC126-418,31.05.2021,RESOURCES AND TRANSFORMATION,ALLIED PUBLICITY SERVICES (MANCHESTER) LIMITED T/A APS GROUP,11/05/2021,"1,273.23",6312-External Printing Services,SUPPLIES & SERVICES,PRINTING STATIONERY & GENERAL OFFICE,REVENUE
Walsall Council,http://opendatacommunities.org/id/metropolitan-district-council/walsall ,WC126-419,31.05.2021,ECONOMY & ENVIRONMENT,ALLSORTS OFFICE SUPPLIES LTD,18/05/2021,"5,541.48",6410-Professional Services-Priv Contractor & Other Agencies,THIRD PARTY PAYMENTS,PRIVATE CONTRACTOR,REVENUE
Walsall Council,http://opendatacommunities.org/id/metropolitan-district-council/walsall ,WC126-420,31.05.2021,ADULT SOCIAL CARE,ALMA COURT,10/05/2021,"6,595.72",6541-Residential,THIRD PARTY PAYMENTS,PRIVATE CONTRACTOR,REVENUE
Walsall Council,http://opendatacommunities.org/id/metropolitan-district-council/walsall ,WC126-421,31.05.2021,ADULT SOCIAL CARE,ALMA COURT,10/05/2021,"4,755.25",6541-Nursing EMI,THIRD PARTY PAYMENTS,PRIVATE CONTRACTOR,REVENUE
Walsall Council,http://opendatacommunities.org/id/metropolitan-district-council/walsall ,WC126-422,31.05.2021,ADULT SOCIAL CARE,ALMA COURT,10/05/2021,"3,817.33",6541-Nursing EMI,THIRD PARTY PAYMENTS,PRIVATE CONTRACTOR,REVENUE
Walsall Council,http://opendatacommunities.org/id/metropolitan-district-council/walsall ,WC126-423,31.05.2021,ADULT SOCIAL CARE,ALMA COURT,10/05/2021,"5,956.53",6541-Nursing EMI,THIRD PARTY PAYMENTS,PRIVATE CONTRACTOR,REVENUE
Walsall Council,http://opendatacommunities.org/id/metropolitan-district-council/walsall ,WC126-424,31.05.2021,ADULT SOCIAL CARE,ALMA COURT,10/05/2021,"3,617.33",6541-Nursing EMI,THIRD PARTY PAYMENTS,PRIVATE CONTRACTOR,REVENUE
Walsall Council,http://opendatacommunities.org/id/metropolitan-district-council/walsall ,WC126-425,31.05.2021,ADULT SOCIAL CARE,ALMA COURT,10/05/2021,"3,638.00",6554-Professional Services-Priv Contractor & Other Agencies,THIRD PARTY PAYMENTS,PRIVATE CONTRACTOR,REVENUE
Walsall Council,http://opendatacommunities.org/id/metropolitan-district-council/walsall ,WC126-426,31.05.2021,ADULT SOCIAL CARE,ALMA COURT,10/05/2021,"15,071.71",6554-Professional Services-Priv Contractor & Other Agencies,THIRD PARTY PAYMENTS,PRIVATE CONTRACTOR,REVENUE
Walsall Council,http://opendatacommunities.org/id/metropolitan-district-council/walsall ,WC126-427,31.05.2021,ADULT SOCIAL CARE,ALMA COURT,10/05/2021,"9,718.86",6554-Professional Services-Priv Contractor & Other Agencies,THIRD PARTY PAYMENTS,PRIVATE CONTRACTOR,REVENUE
Walsall Council,http://opendatacommunities.org/id/metropolitan-district-council/walsall ,WC126-428,31.05.2021,ADULT SOCIAL CARE,ALMA COURT,10/05/2021,"2,442.85",6554-Professional Services-Priv Contractor & Other Agencies,THIRD PARTY PAYMENTS,PRIVATE CONTRACTOR,REVENUE
Walsall Council,http://opendatacommunities.org/id/metropolitan-district-council/walsall ,WC126-429,31.05.2021,ADULT SOCIAL CARE,ALMA COURT,11/05/2021,"3,935.71",6554-Professional Services-Priv Contractor & Other Agencies,THIRD PARTY PAYMENTS,PRIVATE CONTRACTOR,REVENUE
Walsall Council,http://opendatacommunities.org/id/metropolitan-district-council/walsall ,WC126-430,31.05.2021,ADULT SOCIAL CARE,ALMA COURT,10/05/2021,"5,835.71",6554-Professional Services-Priv Contractor & Other Agencies,THIRD PARTY PAYMENTS,PRIVATE CONTRACTOR,REVENUE
Walsall Council,http://opendatacommunities.org/id/metropolitan-district-council/walsall ,WC126-431,31.05.2021,ADULT SOCIAL CARE,ALMA COURT,12/05/2021,"6,378.57",6554-Professional Services-Priv Contractor & Other Agencies,THIRD PARTY PAYMENTS,PRIVATE CONTRACTOR,REVENUE
Walsall Council,http://opendatacommunities.org/id/metropolitan-district-council/walsall ,WC126-432,31.05.2021,ADULT SOCIAL CARE,ALMA COURT,12/05/2021,"6,650.00",6554-Professional Services-Priv Contractor & Other Agencies,THIRD PARTY PAYMENTS,PRIVATE CONTRACTOR,REVENUE
Walsall Council,http://opendatacommunities.org/id/metropolitan-district-council/walsall ,WC126-433,31.05.2021,ADULT SOCIAL CARE,ALMA COURT,12/05/2021,"6,514.28",6554-Professional Services-Priv Contractor & Other Agencies,THIRD PARTY PAYMENTS,PRIVATE CONTRACTOR,REVENUE
Walsall Council,http://opendatacommunities.org/id/metropolitan-district-council/walsall ,WC126-434,31.05.2021,ADULT SOCIAL CARE,ALMA COURT,12/05/2021,"6,650.00",6554-Professional Services-Priv Contractor & Other Agencies,THIRD PARTY PAYMENTS,PRIVATE CONTRACTOR,REVENUE
Walsall Council,http://opendatacommunities.org/id/metropolitan-district-council/walsall ,WC126-435,31.05.2021,ADULT SOCIAL CARE,ALMA COURT,11/05/2021,"5,700.00",6554-Professional Services-Priv Contractor & Other Agencies,THIRD PARTY PAYMENTS,PRIVATE CONTRACTOR,REVENUE
Walsall Council,http://opendatacommunities.org/id/metropolitan-district-council/walsall ,WC126-436,31.05.2021,ADULT SOCIAL CARE,ALMA COURT,10/05/2021,"5,428.57",6554-Professional Services-Priv Contractor & Other Agencies,THIRD PARTY PAYMENTS,PRIVATE CONTRACTOR,REVENUE
Walsall Council,http://opendatacommunities.org/id/metropolitan-district-council/walsall ,WC126-437,31.05.2021,ECONOMY & ENVIRONMENT,ALMOZENE NURSERY & CHILDRENS CENTRE,21/05/2021,500.00,6313-Grants to Other Orgs,SUPPLIES & SERVICES,GRANTS (EXP) & SUBSCRIPTIONS,REVENUE
Walsall Council,http://opendatacommunities.org/id/metropolitan-district-council/walsall ,WC126-438,31.05.2021,ECONOMY & ENVIRONMENT,ALMOZENE NURSERY & CHILDRENS CENTRE,21/05/2021,500.00,6313-Grants to Other Orgs,SUPPLIES & SERVICES,GRANTS (EXP) & SUBSCRIPTIONS,REVENUE
Walsall Council,http://opendatacommunities.org/id/metropolitan-district-council/walsall ,WC126-439,31.05.2021,ADULT SOCIAL CARE,ALPHA HEALTH CARE LTD,10/05/2021,"2,846.32",6541-Residential EMI,THIRD PARTY PAYMENTS,PRIVATE CONTRACTOR,REVENUE
Walsall Council,http://opendatacommunities.org/id/metropolitan-district-council/walsall ,WC126-440,31.05.2021,ADULT SOCIAL CARE,ALPHA HEALTH CARE LTD,10/05/2021,"2,713.33",6541-Nursing EMI,THIRD PARTY PAYMENTS,PRIVATE CONTRACTOR,REVENUE
Walsall Council,http://opendatacommunities.org/id/metropolitan-district-council/walsall ,WC126-441,31.05.2021,ADULT SOCIAL CARE,ALPHA HEALTH CARE LTD,10/05/2021,"3,050.56",6541-Residential EMI,THIRD PARTY PAYMENTS,PRIVATE CONTRACTOR,REVENUE
Walsall Council,http://opendatacommunities.org/id/metropolitan-district-council/walsall ,WC126-442,31.05.2021,ADULT SOCIAL CARE,ALPHA HEALTH CARE LTD,10/05/2021,"2,322.84",6541-Residential EMI,THIRD PARTY PAYMENTS,PRIVATE CONTRACTOR,REVENUE
Walsall Council,http://opendatacommunities.org/id/metropolitan-district-council/walsall ,WC126-443,31.05.2021,ADULT SOCIAL CARE,ALPHA HEALTH CARE LTD,10/05/2021,"2,240.41",6541-Residential EMI,THIRD PARTY PAYMENTS,PRIVATE CONTRACTOR,REVENUE
Walsall Council,http://opendatacommunities.org/id/metropolitan-district-council/walsall ,WC126-444,31.05.2021,ADULT SOCIAL CARE,ALPHA HEALTH CARE LTD,10/05/2021,"3,081.65",6541-Nursing EMI,THIRD PARTY PAYMENTS,PRIVATE CONTRACTOR,REVENUE
Walsall Council,http://opendatacommunities.org/id/metropolitan-district-council/walsall ,WC126-445,31.05.2021,ADULT SOCIAL CARE,ALPHA HEALTH CARE LTD,10/05/2021,"5,617.33",6541-Nursing EMI,THIRD PARTY PAYMENTS,PRIVATE CONTRACTOR,REVENUE
Walsall Council,http://opendatacommunities.org/id/metropolitan-district-council/walsall ,WC126-446,31.05.2021,ADULT SOCIAL CARE,ALPHA HEALTH CARE LTD,10/05/2021,"2,925.33",6541-Nursing EMI,THIRD PARTY PAYMENTS,PRIVATE CONTRACTOR,REVENUE
Walsall Council,http://opendatacommunities.org/id/metropolitan-district-council/walsall ,WC126-447,31.05.2021,ADULT SOCIAL CARE,ALPHA HEALTH CARE LTD,10/05/2021,"2,713.33",6541-Nursing EMI,THIRD PARTY PAYMENTS,PRIVATE CONTRACTOR,REVENUE
Walsall Council,http://opendatacommunities.org/id/metropolitan-district-council/walsall ,WC126-448,31.05.2021,ADULT SOCIAL CARE,ALPHA HEALTH CARE LTD,10/05/2021,"2,955.21",6541-Nursing EMI,THIRD PARTY PAYMENTS,PRIVATE CONTRACTOR,REVENUE
Walsall Council,http://opendatacommunities.org/id/metropolitan-district-council/walsall ,WC126-449,31.05.2021,ADULT SOCIAL CARE,ALPHA HEALTH CARE LTD,10/05/2021,"3,194.84",6541-Residential EMI,THIRD PARTY PAYMENTS,PRIVATE CONTRACTOR,REVENUE
Walsall Council,http://opendatacommunities.org/id/metropolitan-district-council/walsall ,WC126-450,31.05.2021,ADULT SOCIAL CARE,ALPHA HEALTH CARE LTD,10/05/2021,"4,167.70",6541-Residential EMI,THIRD PARTY PAYMENTS,PRIVATE CONTRACTOR,REVENUE
Walsall Council,http://opendatacommunities.org/id/metropolitan-district-council/walsall ,WC126-451,31.05.2021,ADULT SOCIAL CARE,ALPHA HEALTH CARE LTD,10/05/2021,"5,636.00",6541-Residential,THIRD PARTY PAYMENTS,PRIVATE CONTRACTOR,REVENUE
Walsall Council,http://opendatacommunities.org/id/metropolitan-district-council/walsall ,WC126-452,31.05.2021,ADULT SOCIAL CARE,ALPHA HEALTH CARE LTD,10/05/2021,"5,636.00",6541-Residential,THIRD PARTY PAYMENTS,PRIVATE CONTRACTOR,REVENUE
Walsall Council,http://opendatacommunities.org/id/metropolitan-district-council/walsall ,WC126-453,31.05.2021,ADULT SOCIAL CARE,ALPHA HEALTH CARE LTD,10/05/2021,"2,322.84",6541-Residential EMI,THIRD PARTY PAYMENTS,PRIVATE CONTRACTOR,REVENUE
Walsall Council,http://opendatacommunities.org/id/metropolitan-district-council/walsall ,WC126-454,31.05.2021,ADULT SOCIAL CARE,ALPHA HEALTH CARE LTD,10/05/2021,"3,081.65",6541-Nursing EMI,THIRD PARTY PAYMENTS,PRIVATE CONTRACTOR,REVENUE
Walsall Council,http://opendatacommunities.org/id/metropolitan-district-council/walsall ,WC126-455,31.05.2021,ADULT SOCIAL CARE,ALPHA HEALTH CARE LTD,10/05/2021,"2,322.84",6541-Residential EMI,THIRD PARTY PAYMENTS,PRIVATE CONTRACTOR,REVENUE
Walsall Council,http://opendatacommunities.org/id/metropolitan-district-council/walsall ,WC126-456,31.05.2021,ADULT SOCIAL CARE,ALPHA HEALTH CARE LTD,10/05/2021,"3,074.84",6541-Residential EMI,THIRD PARTY PAYMENTS,PRIVATE CONTRACTOR,REVENUE
Walsall Council,http://opendatacommunities.org/id/metropolitan-district-council/walsall ,WC126-457,31.05.2021,ADULT SOCIAL CARE,ALPHA HEALTH CARE LTD,10/05/2021,"4,905.55",6541-Residential EMI,THIRD PARTY PAYMENTS,PRIVATE CONTRACTOR,REVENUE
Walsall Council,http://opendatacommunities.org/id/metropolitan-district-council/walsall ,WC126-458,31.05.2021,ADULT SOCIAL CARE,ALPHA HEALTH CARE LTD,10/05/2021,"3,081.65",6541-Nursing EMI,THIRD PARTY PAYMENTS,PRIVATE CONTRACTOR,REVENUE
Walsall Council,http://opendatacommunities.org/id/metropolitan-district-council/walsall ,WC126-459,31.05.2021,ADULT SOCIAL CARE,ALPHA HEALTH CARE LTD,10/05/2021,"3,081.65",6541-Nursing EMI,THIRD PARTY PAYMENTS,PRIVATE CONTRACTOR,REVENUE
Walsall Council,http://opendatacommunities.org/id/metropolitan-district-council/walsall ,WC126-460,31.05.2021,ADULT SOCIAL CARE,ALPHA HEALTH CARE LTD,10/05/2021,"7,017.33",6541-Nursing EMI,THIRD PARTY PAYMENTS,PRIVATE CONTRACTOR,REVENUE
Walsall Council,http://opendatacommunities.org/id/metropolitan-district-council/walsall ,WC126-461,31.05.2021,ADULT SOCIAL CARE,ALPHA HEALTH CARE LTD,10/05/2021,"2,713.33",6541-Nursing EMI,THIRD PARTY PAYMENTS,PRIVATE CONTRACTOR,REVENUE
Walsall Council,http://opendatacommunities.org/id/metropolitan-district-council/walsall ,WC126-462,31.05.2021,ADULT SOCIAL CARE,ALPHA HEALTH CARE LTD,10/05/2021,"3,307.69",6541-Nursing EMI,THIRD PARTY PAYMENTS,PRIVATE CONTRACTOR,REVENUE
Walsall Council,http://opendatacommunities.org/id/metropolitan-district-council/walsall ,WC126-463,31.05.2021,ADULT SOCIAL CARE,ALPHA HEALTH CARE LTD,10/05/2021,"2,953.16",6541-Nursing,THIRD PARTY PAYMENTS,PRIVATE CONTRACTOR,REVENUE
Walsall Council,http://opendatacommunities.org/id/metropolitan-district-council/walsall ,WC126-464,31.05.2021,ADULT SOCIAL CARE,ALPHA HEALTH CARE LTD,10/05/2021,"3,193.14",6541-Residential,THIRD PARTY PAYMENTS,PRIVATE CONTRACTOR,REVENUE
Walsall Council,http://opendatacommunities.org/id/metropolitan-district-council/walsall ,WC126-465,31.05.2021,ADULT SOCIAL CARE,ALPHA HEALTH CARE LTD,10/05/2021,"2,322.84",6541-Residential EMI,THIRD PARTY PAYMENTS,PRIVATE CONTRACTOR,REVENUE
Walsall Council,http://opendatacommunities.org/id/metropolitan-district-council/walsall ,WC126-466,31.05.2021,ADULT SOCIAL CARE,ALPHA HEALTH CARE LTD,10/05/2021,"2,859.72",6541-Nursing,THIRD PARTY PAYMENTS,PRIVATE CONTRACTOR,REVENUE
Walsall Council,http://opendatacommunities.org/id/metropolitan-district-council/walsall ,WC126-467,31.05.2021,ADULT SOCIAL CARE,ALPHA HEALTH CARE LTD,10/05/2021,"4,260.19",6541-Nursing EMI,THIRD PARTY PAYMENTS,PRIVATE CONTRACTOR,REVENUE
Walsall Council,http://opendatacommunities.org/id/metropolitan-district-council/walsall ,WC126-468,31.05.2021,ADULT SOCIAL CARE,ALPHA HEALTH CARE LTD,04/05/2021,875.00,6554-Professional Services-Priv Contractor & Other Agencies,THIRD PARTY PAYMENTS,PRIVATE CONTRACTOR,REVENUE
Walsall Council,http://opendatacommunities.org/id/metropolitan-district-council/walsall ,WC126-469,31.05.2021,ADULT SOCIAL CARE,ALPHA HEALTH CARE LTD,20/05/2021,"2,349.71",6554-Professional Services-Priv Contractor & Other Agencies,THIRD PARTY PAYMENTS,PRIVATE CONTRACTOR,REVENUE
Walsall Council,http://opendatacommunities.org/id/metropolitan-district-council/walsall ,WC126-470,31.05.2021,ADULT SOCIAL CARE,ALPHA HEALTH CARE LTD,20/05/2021,"1,800.00",6554-Professional Services-Priv Contractor & Other Agencies,THIRD PARTY PAYMENTS,PRIVATE CONTRACTOR,REVENUE
Walsall Council,http://opendatacommunities.org/id/metropolitan-district-council/walsall ,WC126-471,31.05.2021,ECONOMY & ENVIRONMENT,ALPHA PARKING LTD,11/05/2021,"2,900.00",6411-External Training,INDIRECT EMPLOYEES,EXTERNAL TRAINING,REVENUE
Walsall Council,http://opendatacommunities.org/id/metropolitan-district-council/walsall ,WC126-472,31.05.2021,CHILDRENS,ALPHA TRAINING ACADEMY UK LTD,14/05/2021,"3,875.00",1187-Materials,SUPPLIES & SERVICES,EQUIPMENT FURNITURE & MATERIALS,REVENUE
Walsall Council,http://opendatacommunities.org/id/metropolitan-district-council/walsall ,WC126-473,31.05.2021,CHILDRENS,REDACTED,04/05/2021,318.08,6223-Residents Orders,TRANSFER PAYMENTS,CHILDREN SOCIAL SERVICES CLIENT,REVENUE
Walsall Council,http://opendatacommunities.org/id/metropolitan-district-council/walsall ,WC126-474,31.05.2021,ADULT SOCIAL CARE,REDACTED,05/05/2021,"1,626.96",6541-Direct Payment,THIRD PARTY PAYMENTS,PRIVATE CONTRACTOR,REVENUE
Walsall Council,http://opendatacommunities.org/id/metropolitan-district-council/walsall ,WC126-475,31.05.2021,ECONOMY & ENVIRONMENT,AMEY LG LIMITED,12/05/2021,"13,025.50",6411-Materials,SUPPLIES & SERVICES,EQUIPMENT FURNITURE & MATERIALS,REVENUE
Walsall Council,http://opendatacommunities.org/id/metropolitan-district-council/walsall ,WC126-476,31.05.2021,RESOURCES AND TRANSFORMATION,AMEY OW LTD,10/05/2021,"14,605.82",7300-Project Fees,CAPITAL,"NEW CONSTRUCTION,CONVERSION & RENOVATION",CAPITAL
Walsall Council,http://opendatacommunities.org/id/metropolitan-district-council/walsall ,WC126-477,31.05.2021,RESOURCES AND TRANSFORMATION,AMEY OW LTD,21/05/2021,"14,161.96",7300-Project Fees,CAPITAL,"NEW CONSTRUCTION,CONVERSION & RENOVATION",CAPITAL
Walsall Council,http://opendatacommunities.org/id/metropolitan-district-council/walsall ,WC126-478,31.05.2021,ADULT SOCIAL CARE,AMG NURSING CARE SERVICES,05/05/2021,"5,439.36",6541-Community Supported Living/Supported Accommodation,THIRD PARTY PAYMENTS,PRIVATE CONTRACTOR,REVENUE
Walsall Council,http://opendatacommunities.org/id/metropolitan-district-council/walsall ,WC126-479,31.05.2021,ADULT SOCIAL CARE,AMG NURSING CARE SERVICES,05/05/2021,"2,750.98",6541-Community Supported Living/Supported Accommodation,THIRD PARTY PAYMENTS,PRIVATE CONTRACTOR,REVENUE
Walsall Council,http://opendatacommunities.org/id/metropolitan-district-council/walsall ,WC126-480,31.05.2021,ADULT SOCIAL CARE,AMG NURSING CARE SERVICES,05/05/2021,"10,870.03",6541-Community Supported Living/Supported Accommodation,THIRD PARTY PAYMENTS,PRIVATE CONTRACTOR,REVENUE
Walsall Council,http://opendatacommunities.org/id/metropolitan-district-council/walsall ,WC126-481,31.05.2021,CHILDRENS,AMG NURSING CARE SERVICES,21/05/2021,"1,917.12",6220-Accommodation and Related Costs-Assistance to S/S Clients,TRANSFER PAYMENTS,ADULT SOCIAL SERVICES CLIENT,REVENUE
Walsall Council,http://opendatacommunities.org/id/metropolitan-district-council/walsall ,WC126-482,31.05.2021,ADULT SOCIAL CARE,AMG NURSING CARE SERVICES,05/05/2021,"11,052.60",6541-Community Supported Living/Supported Accommodation,THIRD PARTY PAYMENTS,PRIVATE CONTRACTOR,REVENUE
Walsall Council,http://opendatacommunities.org/id/metropolitan-district-council/walsall ,WC126-483,31.05.2021,CHILDRENS,AMG NURSING CARE SERVICES,21/05/2021,"2,644.72",6220-Accommodation and Related Costs-Assistance to S/S Clients,TRANSFER PAYMENTS,ADULT SOCIAL SERVICES CLIENT,REVENUE
Walsall Council,http://opendatacommunities.org/id/metropolitan-district-council/walsall ,WC126-484,31.05.2021,ADULT SOCIAL CARE,AMG NURSING CARE SERVICES,05/05/2021,"11,032.32",6541-Community Supported Living/Supported Accommodation,THIRD PARTY PAYMENTS,PRIVATE CONTRACTOR,REVENUE
Walsall Council,http://opendatacommunities.org/id/metropolitan-district-council/walsall ,WC126-485,31.05.2021,ADULT SOCIAL CARE,AMG NURSING CARE SERVICES,18/05/2021,"3,632.50",6541-Community Supported Living/Supported Accommodation,THIRD PARTY PAYMENTS,PRIVATE CONTRACTOR,REVENUE
Walsall Council,http://opendatacommunities.org/id/metropolitan-district-council/walsall ,WC126-486,31.05.2021,CHILDRENS,AMG NURSING CARE SERVICES,21/05/2021,"2,644.72",6220-Accommodation and Related Costs-Assistance to S/S Clients,TRANSFER PAYMENTS,ADULT SOCIAL SERVICES CLIENT,REVENUE
Walsall Council,http://opendatacommunities.org/id/metropolitan-district-council/walsall ,WC126-487,31.05.2021,CHILDRENS,AMG NURSING CARE SERVICES,21/05/2021,"2,644.72",6220-Accommodation and Related Costs-Assistance to S/S Clients,TRANSFER PAYMENTS,ADULT SOCIAL SERVICES CLIENT,REVENUE
Walsall Council,http://opendatacommunities.org/id/metropolitan-district-council/walsall ,WC126-488,31.05.2021,ADULT SOCIAL CARE,AMG NURSING CARE SERVICES,05/05/2021,"4,068.40",6541-Community Supported Living/Supported Accommodation,THIRD PARTY PAYMENTS,PRIVATE CONTRACTOR,REVENUE
Walsall Council,http://opendatacommunities.org/id/metropolitan-district-council/walsall ,WC126-489,31.05.2021,CHILDRENS,AMG NURSING CARE SERVICES,25/05/2021,"2,024.24",6220-Accommodation and Related Costs-Assistance to S/S Clients,TRANSFER PAYMENTS,ADULT SOCIAL SERVICES CLIENT,REVENUE
Walsall Council,http://opendatacommunities.org/id/metropolitan-district-council/walsall ,WC126-490,31.05.2021,CHILDRENS,AMG NURSING CARE SERVICES,25/05/2021,"2,685.92",6220-Accommodation and Related Costs-Assistance to S/S Clients,TRANSFER PAYMENTS,ADULT SOCIAL SERVICES CLIENT,REVENUE
Walsall Council,http://opendatacommunities.org/id/metropolitan-district-council/walsall ,WC126-491,31.05.2021,ADULT SOCIAL CARE,AMG NURSING CARE SERVICES,05/05/2021,"15,317.04",6541-Community Supported Living/Supported Accommodation,THIRD PARTY PAYMENTS,PRIVATE CONTRACTOR,REVENUE
Walsall Council,http://opendatacommunities.org/id/metropolitan-district-council/walsall ,WC126-492,31.05.2021,CHILDRENS,AMG NURSING CARE SERVICES,13/05/2021,"2,274.48",6220-Accommodation and Related Costs-Assistance to S/S Clients,TRANSFER PAYMENTS,ADULT SOCIAL SERVICES CLIENT,REVENUE
Walsall Council,http://opendatacommunities.org/id/metropolitan-district-council/walsall ,WC126-493,31.05.2021,CHILDRENS,AMG NURSING CARE SERVICES,18/05/2021,"2,644.72",6220-Accommodation and Related Costs-Assistance to S/S Clients,TRANSFER PAYMENTS,ADULT SOCIAL SERVICES CLIENT,REVENUE
Walsall Council,http://opendatacommunities.org/id/metropolitan-district-council/walsall ,WC126-494,31.05.2021,CHILDRENS,AMG NURSING CARE SERVICES,20/05/2021,"1,927.32",6220-Accommodation and Related Costs-Assistance to S/S Clients,TRANSFER PAYMENTS,ADULT SOCIAL SERVICES CLIENT,REVENUE
Walsall Council,http://opendatacommunities.org/id/metropolitan-district-council/walsall ,WC126-495,31.05.2021,CHILDRENS,AMG NURSING CARE SERVICES,26/05/2021,"2,669.09",6220-Accommodation and Related Costs-Assistance to S/S Clients,TRANSFER PAYMENTS,ADULT SOCIAL SERVICES CLIENT,REVENUE
Walsall Council,http://opendatacommunities.org/id/metropolitan-district-council/walsall ,WC126-496,31.05.2021,CHILDRENS,REDACTED,04/05/2021,600.00,6223-Foster Carers Maintenance Allowance,TRANSFER PAYMENTS,CHILDREN SOCIAL SERVICES CLIENT,REVENUE
Walsall Council,http://opendatacommunities.org/id/metropolitan-district-council/walsall ,WC126-497,31.05.2021,CHILDRENS,REDACTED,04/05/2021,340.00,6223-Internal Foster Carers-Carer Fees,TRANSFER PAYMENTS,CHILDREN SOCIAL SERVICES CLIENT,REVENUE
Walsall Council,http://opendatacommunities.org/id/metropolitan-district-council/walsall ,WC126-498,31.05.2021,ADULT SOCIAL CARE,ANCHOR CAREHOMES LTD - HARDEN HALL,10/05/2021,"2,279.26",6541-Residential,THIRD PARTY PAYMENTS,PRIVATE CONTRACTOR,REVENUE
Walsall Council,http://opendatacommunities.org/id/metropolitan-district-council/walsall ,WC126-499,31.05.2021,ADULT SOCIAL CARE,ANCHOR CAREHOMES LTD - HARDEN HALL,10/05/2021,"2,347.08",6541-Residential EMI,THIRD PARTY PAYMENTS,PRIVATE CONTRACTOR,REVENUE
Walsall Council,http://opendatacommunities.org/id/metropolitan-district-council/walsall ,WC126-500,31.05.2021,ADULT SOCIAL CARE,ANCHOR CAREHOMES LTD - HARDEN HALL,10/05/2021,"2,327.08",6541-Residential EMI,THIRD PARTY PAYMENTS,PRIVATE CONTRACTOR,REVENUE
Walsall Council,http://opendatacommunities.org/id/metropolitan-district-council/walsall ,WC126-501,31.05.2021,ADULT SOCIAL CARE,ANCHOR CAREHOMES LTD - HARDEN HALL,10/05/2021,"2,322.84",6541-Residential EMI,THIRD PARTY PAYMENTS,PRIVATE CONTRACTOR,REVENUE
Walsall Council,http://opendatacommunities.org/id/metropolitan-district-council/walsall ,WC126-502,31.05.2021,ADULT SOCIAL CARE,ANCHOR CAREHOMES LTD - HARDEN HALL,10/05/2021,"2,347.08",6541-Residential EMI,THIRD PARTY PAYMENTS,PRIVATE CONTRACTOR,REVENUE
Walsall Council,http://opendatacommunities.org/id/metropolitan-district-council/walsall ,WC126-503,31.05.2021,ADULT SOCIAL CARE,ANCHOR CAREHOMES LTD - HARDEN HALL,10/05/2021,"2,057.14",6541-Residential,THIRD PARTY PAYMENTS,PRIVATE CONTRACTOR,REVENUE
Walsall Council,http://opendatacommunities.org/id/metropolitan-district-council/walsall ,WC126-504,31.05.2021,ADULT SOCIAL CARE,ANCHOR CAREHOMES LTD - HARDEN HALL,10/05/2021,"2,322.84",6541-Residential EMI,THIRD PARTY PAYMENTS,PRIVATE CONTRACTOR,REVENUE
Walsall Council,http://opendatacommunities.org/id/metropolitan-district-council/walsall ,WC126-505,31.05.2021,ADULT SOCIAL CARE,ANCHOR CAREHOMES LTD - HARDEN HALL,10/05/2021,"2,322.84",6541-Residential EMI,THIRD PARTY PAYMENTS,PRIVATE CONTRACTOR,REVENUE
Walsall Council,http://opendatacommunities.org/id/metropolitan-district-council/walsall ,WC126-506,31.05.2021,ADULT SOCIAL CARE,ANCHOR CAREHOMES LTD - HARDEN HALL,10/05/2021,"2,057.14",6541-Residential,THIRD PARTY PAYMENTS,PRIVATE CONTRACTOR,REVENUE
Walsall Council,http://opendatacommunities.org/id/metropolitan-district-council/walsall ,WC126-507,31.05.2021,ADULT SOCIAL CARE,ANCHOR CAREHOMES LTD - HARDEN HALL,10/05/2021,"2,322.84",6541-Residential EMI,THIRD PARTY PAYMENTS,PRIVATE CONTRACTOR,REVENUE
Walsall Council,http://opendatacommunities.org/id/metropolitan-district-council/walsall ,WC126-508,31.05.2021,ADULT SOCIAL CARE,ANCHOR CAREHOMES LTD - HARDEN HALL,10/05/2021,"2,322.84",6541-Residential EMI,THIRD PARTY PAYMENTS,PRIVATE CONTRACTOR,REVENUE
Walsall Council,http://opendatacommunities.org/id/metropolitan-district-council/walsall ,WC126-509,31.05.2021,ADULT SOCIAL CARE,ANCHOR CAREHOMES LTD - HARDEN HALL,10/05/2021,"2,322.84",6541-Residential EMI,THIRD PARTY PAYMENTS,PRIVATE CONTRACTOR,REVENUE
Walsall Council,http://opendatacommunities.org/id/metropolitan-district-council/walsall ,WC126-510,31.05.2021,ADULT SOCIAL CARE,ANCHOR CAREHOMES LTD - HARDEN HALL,10/05/2021,"2,322.84",6541-Residential EMI,THIRD PARTY PAYMENTS,PRIVATE CONTRACTOR,REVENUE
Walsall Council,http://opendatacommunities.org/id/metropolitan-district-council/walsall ,WC126-511,31.05.2021,ADULT SOCIAL CARE,ANCHOR CAREHOMES LTD - HARDEN HALL,10/05/2021,"2,239.59",6541-Residential EMI,THIRD PARTY PAYMENTS,PRIVATE CONTRACTOR,REVENUE
Walsall Council,http://opendatacommunities.org/id/metropolitan-district-council/walsall ,WC126-512,31.05.2021,ADULT SOCIAL CARE,ANCHOR CAREHOMES LTD - HARDEN HALL,10/05/2021,882.16,6541-Residential,THIRD PARTY PAYMENTS,PRIVATE CONTRACTOR,REVENUE
Walsall Council,http://opendatacommunities.org/id/metropolitan-district-council/walsall ,WC126-513,31.05.2021,ADULT SOCIAL CARE,ANCHOR CAREHOMES LTD - HARDEN HALL,10/05/2021,"2,322.84",6541-Residential EMI,THIRD PARTY PAYMENTS,PRIVATE CONTRACTOR,REVENUE
Walsall Council,http://opendatacommunities.org/id/metropolitan-district-council/walsall ,WC126-514,31.05.2021,ADULT SOCIAL CARE,ANCHOR CAREHOMES LTD - HARDEN HALL,10/05/2021,"2,286.32",6541-Residential EMI,THIRD PARTY PAYMENTS,PRIVATE CONTRACTOR,REVENUE
Walsall Council,http://opendatacommunities.org/id/metropolitan-district-council/walsall ,WC126-515,31.05.2021,ADULT SOCIAL CARE,ANCHOR CAREHOMES LTD - HARDEN HALL,10/05/2021,"2,057.14",6541-Residential,THIRD PARTY PAYMENTS,PRIVATE CONTRACTOR,REVENUE
Walsall Council,http://opendatacommunities.org/id/metropolitan-district-council/walsall ,WC126-516,31.05.2021,ADULT SOCIAL CARE,ANCHOR CAREHOMES LTD - HARDEN HALL,10/05/2021,"2,327.08",6541-Residential EMI,THIRD PARTY PAYMENTS,PRIVATE CONTRACTOR,REVENUE
Walsall Council,http://opendatacommunities.org/id/metropolitan-district-council/walsall ,WC126-517,31.05.2021,ADULT SOCIAL CARE,ANCHOR CAREHOMES LTD - HARDEN HALL,10/05/2021,"2,347.08",6541-Residential EMI,THIRD PARTY PAYMENTS,PRIVATE CONTRACTOR,REVENUE
Walsall Council,http://opendatacommunities.org/id/metropolitan-district-council/walsall ,WC126-518,31.05.2021,ADULT SOCIAL CARE,ANCHOR CAREHOMES LTD - HARDEN HALL,10/05/2021,"2,322.84",6541-Residential EMI,THIRD PARTY PAYMENTS,PRIVATE CONTRACTOR,REVENUE
Walsall Council,http://opendatacommunities.org/id/metropolitan-district-council/walsall ,WC126-519,31.05.2021,ADULT SOCIAL CARE,ANCHOR CAREHOMES LTD - HARDEN HALL,10/05/2021,"2,057.14",6541-Residential,THIRD PARTY PAYMENTS,PRIVATE CONTRACTOR,REVENUE
Walsall Council,http://opendatacommunities.org/id/metropolitan-district-council/walsall ,WC126-520,31.05.2021,ADULT SOCIAL CARE,ANCHOR CAREHOMES LTD - HARDEN HALL,10/05/2021,"2,322.84",6541-Residential EMI,THIRD PARTY PAYMENTS,PRIVATE CONTRACTOR,REVENUE
Walsall Council,http://opendatacommunities.org/id/metropolitan-district-council/walsall ,WC126-521,31.05.2021,ADULT SOCIAL CARE,ANCHOR CAREHOMES LTD - HARDEN HALL,10/05/2021,"2,322.84",6541-Residential EMI,THIRD PARTY PAYMENTS,PRIVATE CONTRACTOR,REVENUE
Walsall Council,http://opendatacommunities.org/id/metropolitan-district-council/walsall ,WC126-522,31.05.2021,ADULT SOCIAL CARE,ANCHOR CAREHOMES LTD - HARDEN HALL,10/05/2021,"2,322.84",6541-Residential EMI,THIRD PARTY PAYMENTS,PRIVATE CONTRACTOR,REVENUE
Walsall Council,http://opendatacommunities.org/id/metropolitan-district-council/walsall ,WC126-523,31.05.2021,ADULT SOCIAL CARE,ANCHOR CAREHOMES LTD - HARDEN HALL,10/05/2021,"2,373.80",6541-Residential EMI,THIRD PARTY PAYMENTS,PRIVATE CONTRACTOR,REVENUE
Walsall Council,http://opendatacommunities.org/id/metropolitan-district-council/walsall ,WC126-524,31.05.2021,ADULT SOCIAL CARE,ANCHOR CAREHOMES LTD - HARDEN HALL,10/05/2021,"2,322.84",6541-Residential EMI,THIRD PARTY PAYMENTS,PRIVATE CONTRACTOR,REVENUE
Walsall Council,http://opendatacommunities.org/id/metropolitan-district-council/walsall ,WC126-525,31.05.2021,ADULT SOCIAL CARE,ANCHOR CAREHOMES LTD - HARDEN HALL,10/05/2021,"2,586.91",6541-Residential EMI,THIRD PARTY PAYMENTS,PRIVATE CONTRACTOR,REVENUE
Walsall Council,http://opendatacommunities.org/id/metropolitan-district-council/walsall ,WC126-526,31.05.2021,ADULT SOCIAL CARE,ANCHOR CAREHOMES LTD - HARDEN HALL,10/05/2021,"2,322.84",6541-Residential EMI,THIRD PARTY PAYMENTS,PRIVATE CONTRACTOR,REVENUE
Walsall Council,http://opendatacommunities.org/id/metropolitan-district-council/walsall ,WC126-527,31.05.2021,ADULT SOCIAL CARE,ANCHOR CAREHOMES LTD - HARDEN HALL,10/05/2021,"2,057.14",6541-Residential,THIRD PARTY PAYMENTS,PRIVATE CONTRACTOR,REVENUE
Walsall Council,http://opendatacommunities.org/id/metropolitan-district-council/walsall ,WC126-528,31.05.2021,CHILDRENS,REDACTED,04/05/2021,306.36,6223-Special Guardianship Orders,TRANSFER PAYMENTS,CHILDREN SOCIAL SERVICES CLIENT,REVENUE
Walsall Council,http://opendatacommunities.org/id/metropolitan-district-council/walsall ,WC126-529,31.05.2021,ADULT SOCIAL CARE,REDACTED,05/05/2021,518.00,6541-Direct Payment,THIRD PARTY PAYMENTS,PRIVATE CONTRACTOR,REVENUE
Walsall Council,http://opendatacommunities.org/id/metropolitan-district-council/walsall ,WC126-530,31.05.2021,ADULT SOCIAL CARE,REDACTED,05/05/2021,"2,710.16",6541-Direct Payment,THIRD PARTY PAYMENTS,PRIVATE CONTRACTOR,REVENUE
Walsall Council,http://opendatacommunities.org/id/metropolitan-district-council/walsall ,WC126-531,31.05.2021,CHILDRENS CAPITAL,ANDREWS ELECTRICAL LTD,26/05/2021,"2,398.00",7155-Purchase of Furniture & Equipment,CAPITAL,"VEHICLES,PLANT,EQUIPMENT & MACHINERY",CAPITAL
Walsall Council,http://opendatacommunities.org/id/metropolitan-district-council/walsall ,WC126-532,31.05.2021,CHILDRENS,REDACTED,04/05/2021,368.76,6223-Special Guardianship Orders,TRANSFER PAYMENTS,CHILDREN SOCIAL SERVICES CLIENT,REVENUE
Walsall Council,http://opendatacommunities.org/id/metropolitan-district-council/walsall ,WC126-533,31.05.2021,CHILDRENS,REDACTED,04/05/2021,500.16,6223-Special Guardianship Orders,TRANSFER PAYMENTS,CHILDREN SOCIAL SERVICES CLIENT,REVENUE
Walsall Council,http://opendatacommunities.org/id/metropolitan-district-council/walsall ,WC126-534,31.05.2021,CHILDRENS,REDACTED,04/05/2021,312.04,6223-Special Guardianship Orders,TRANSFER PAYMENTS,CHILDREN SOCIAL SERVICES CLIENT,REVENUE
Walsall Council,http://opendatacommunities.org/id/metropolitan-district-council/walsall ,WC126-535,31.05.2021,ECONOMY & ENVIRONMENT,ANIMALJOBSDIRECT LTD T/A ANIMALCOURSESDIRECT,13/05/2021,"3,657.50",6440-External Training,INDIRECT EMPLOYEES,EXTERNAL TRAINING,REVENUE
Walsall Council,http://opendatacommunities.org/id/metropolitan-district-council/walsall ,WC126-536,31.05.2021,ADULT SOCIAL CARE,REDACTED,12/05/2021,274.06,6541-Shared Lives,THIRD PARTY PAYMENTS,PRIVATE CONTRACTOR,REVENUE
Walsall Council,http://opendatacommunities.org/id/metropolitan-district-council/walsall ,WC126-537,31.05.2021,ECONOMY & ENVIRONMENT,REDACTED,26/05/2021,500.00,6414-Professional Fees & Services,SUPPLIES & SERVICES,SERVICES,REVENUE
Walsall Council,http://opendatacommunities.org/id/metropolitan-district-council/walsall ,WC126-538,31.05.2021,ECONOMY & ENVIRONMENT,REDACTED,26/05/2021,500.00,6414-Professional Fees & Services,SUPPLIES & SERVICES,SERVICES,REVENUE
Walsall Council,http://opendatacommunities.org/id/metropolitan-district-council/walsall ,WC126-539,31.05.2021,ADULT SOCIAL CARE,REDACTED,05/05/2021,"1,422.20",6541-Direct Payment,THIRD PARTY PAYMENTS,PRIVATE CONTRACTOR,REVENUE
Walsall Council,http://opendatacommunities.org/id/metropolitan-district-council/walsall ,WC126-540,31.05.2021,ADULT SOCIAL CARE,ANSON COURT RESIDENTIAL HOME,10/05/2021,"2,322.84",6541-Residential EMI,THIRD PARTY PAYMENTS,PRIVATE CONTRACTOR,REVENUE
Walsall Council,http://opendatacommunities.org/id/metropolitan-district-council/walsall ,WC126-541,31.05.2021,ADULT SOCIAL CARE,ANSON COURT RESIDENTIAL HOME,10/05/2021,"2,322.84",6541-Residential EMI,THIRD PARTY PAYMENTS,PRIVATE CONTRACTOR,REVENUE
Walsall Council,http://opendatacommunities.org/id/metropolitan-district-council/walsall ,WC126-542,31.05.2021,ADULT SOCIAL CARE,ANSON COURT RESIDENTIAL HOME,10/05/2021,"2,322.84",6541-Residential EMI,THIRD PARTY PAYMENTS,PRIVATE CONTRACTOR,REVENUE
Walsall Council,http://opendatacommunities.org/id/metropolitan-district-council/walsall ,WC126-543,31.05.2021,ADULT SOCIAL CARE,ANSON COURT RESIDENTIAL HOME,10/05/2021,"2,322.84",6541-Residential EMI,THIRD PARTY PAYMENTS,PRIVATE CONTRACTOR,REVENUE
Walsall Council,http://opendatacommunities.org/id/metropolitan-district-council/walsall ,WC126-544,31.05.2021,ADULT SOCIAL CARE,ANSON COURT RESIDENTIAL HOME,10/05/2021,"2,322.84",6541-Residential EMI,THIRD PARTY PAYMENTS,PRIVATE CONTRACTOR,REVENUE
Walsall Council,http://opendatacommunities.org/id/metropolitan-district-council/walsall ,WC126-545,31.05.2021,ADULT SOCIAL CARE,ANSON COURT RESIDENTIAL HOME,10/05/2021,"2,322.84",6541-Residential EMI,THIRD PARTY PAYMENTS,PRIVATE CONTRACTOR,REVENUE
Walsall Council,http://opendatacommunities.org/id/metropolitan-district-council/walsall ,WC126-546,31.05.2021,ADULT SOCIAL CARE,ANSON COURT RESIDENTIAL HOME,10/05/2021,"2,322.84",6541-Residential EMI,THIRD PARTY PAYMENTS,PRIVATE CONTRACTOR,REVENUE
Walsall Council,http://opendatacommunities.org/id/metropolitan-district-council/walsall ,WC126-547,31.05.2021,ADULT SOCIAL CARE,ANSON COURT RESIDENTIAL HOME,10/05/2021,"2,322.84",6541-Residential EMI,THIRD PARTY PAYMENTS,PRIVATE CONTRACTOR,REVENUE
Walsall Council,http://opendatacommunities.org/id/metropolitan-district-council/walsall ,WC126-548,31.05.2021,ADULT SOCIAL CARE,ANSON COURT RESIDENTIAL HOME,10/05/2021,"2,177.14",6541-Residential,THIRD PARTY PAYMENTS,PRIVATE CONTRACTOR,REVENUE
Walsall Council,http://opendatacommunities.org/id/metropolitan-district-council/walsall ,WC126-549,31.05.2021,ADULT SOCIAL CARE,ANSON COURT RESIDENTIAL HOME,10/05/2021,"2,185.38",6541-Residential,THIRD PARTY PAYMENTS,PRIVATE CONTRACTOR,REVENUE
Walsall Council,http://opendatacommunities.org/id/metropolitan-district-council/walsall ,WC126-550,31.05.2021,ADULT SOCIAL CARE,ANSON COURT RESIDENTIAL HOME,10/05/2021,"2,057.14",6541-Residential,THIRD PARTY PAYMENTS,PRIVATE CONTRACTOR,REVENUE
Walsall Council,http://opendatacommunities.org/id/metropolitan-district-council/walsall ,WC126-551,31.05.2021,ADULT SOCIAL CARE,ANSON COURT RESIDENTIAL HOME,10/05/2021,"2,322.84",6541-Residential EMI,THIRD PARTY PAYMENTS,PRIVATE CONTRACTOR,REVENUE
Walsall Council,http://opendatacommunities.org/id/metropolitan-district-council/walsall ,WC126-552,31.05.2021,ADULT SOCIAL CARE,ANSON COURT RESIDENTIAL HOME,10/05/2021,"2,322.84",6541-Residential EMI,THIRD PARTY PAYMENTS,PRIVATE CONTRACTOR,REVENUE
Walsall Council,http://opendatacommunities.org/id/metropolitan-district-council/walsall ,WC126-553,31.05.2021,ADULT SOCIAL CARE,ANSON COURT RESIDENTIAL HOME,10/05/2021,"2,322.84",6541-Residential EMI,THIRD PARTY PAYMENTS,PRIVATE CONTRACTOR,REVENUE
Walsall Council,http://opendatacommunities.org/id/metropolitan-district-council/walsall ,WC126-554,31.05.2021,ADULT SOCIAL CARE,ANSON COURT RESIDENTIAL HOME,10/05/2021,"2,322.84",6541-Residential EMI,THIRD PARTY PAYMENTS,PRIVATE CONTRACTOR,REVENUE
Walsall Council,http://opendatacommunities.org/id/metropolitan-district-council/walsall ,WC126-555,31.05.2021,ADULT SOCIAL CARE,ANSON COURT RESIDENTIAL HOME,25/05/2021,"1,784.21",6550-Professional Fees & Services,SUPPLIES & SERVICES,SERVICES,REVENUE
Walsall Council,http://opendatacommunities.org/id/metropolitan-district-council/walsall ,WC126-556,31.05.2021,ADULT SOCIAL CARE,ANSON COURT RESIDENTIAL HOME,25/05/2021,"1,375.78",6550-Professional Fees & Services,SUPPLIES & SERVICES,SERVICES,REVENUE
Walsall Council,http://opendatacommunities.org/id/metropolitan-district-council/walsall ,WC126-557,31.05.2021,ADULT SOCIAL CARE,ANSON COURT RESIDENTIAL HOME,25/05/2021,"1,818.39",6550-Professional Fees & Services,SUPPLIES & SERVICES,SERVICES,REVENUE
Walsall Council,http://opendatacommunities.org/id/metropolitan-district-council/walsall ,WC126-558,31.05.2021,ADULT SOCIAL CARE,ANSON COURT RESIDENTIAL HOME,25/05/2021,685.30,6550-Professional Fees & Services,SUPPLIES & SERVICES,SERVICES,REVENUE
Walsall Council,http://opendatacommunities.org/id/metropolitan-district-council/walsall ,WC126-559,31.05.2021,HOLDING ACCOUNTS,ANTHONY COLLINS SOLICITORS,19/05/2021,"40,500.00",2877-Insurance Payment Claims,SUPPLIES & SERVICES,INSURANCE,REVENUE
Walsall Council,http://opendatacommunities.org/id/metropolitan-district-council/walsall ,WC126-560,31.05.2021,HOLDING ACCOUNTS,ANTHONY COLLINS SOLICITORS,26/05/2021,"5,000.00",2877-Insurance Payment Claims,SUPPLIES & SERVICES,INSURANCE,REVENUE
Walsall Council,http://opendatacommunities.org/id/metropolitan-district-council/walsall ,WC126-561,31.05.2021,CHILDRENS,REDACTED,04/05/2021,658.58,6223-Special Guardianship Orders,TRANSFER PAYMENTS,CHILDREN SOCIAL SERVICES CLIENT,REVENUE
Walsall Council,http://opendatacommunities.org/id/metropolitan-district-council/walsall ,WC126-562,31.05.2021,ECONOMY & ENVIRONMENT,APCOA PARKING SERVICES (UK) LTD,17/05/2021,"48,171.95",6411-Professional Services-Priv Contractor & Other Agencies,THIRD PARTY PAYMENTS,PRIVATE CONTRACTOR,REVENUE
Walsall Council,http://opendatacommunities.org/id/metropolitan-district-council/walsall ,WC126-563,31.05.2021,ECONOMY & ENVIRONMENT,APEX RADIO SYSTEMS LTD,13/05/2021,278.99,6430-Repair & Maintenance of Furniture & Equipment,SUPPLIES & SERVICES,EQUIPMENT FURNITURE & MATERIALS,REVENUE
Walsall Council,http://opendatacommunities.org/id/metropolitan-district-council/walsall ,WC126-564,31.05.2021,CHILDRENS,APP CARZ,19/05/2021,784.00,6241-Hire of Vehicle with Driver,TRANSPORT,DIRECT TRANSPORT COSTS,REVENUE
Walsall Council,http://opendatacommunities.org/id/metropolitan-district-council/walsall ,WC126-565,31.05.2021,CHILDRENS,APP CARZ,19/05/2021,900.00,6241-Hire of Vehicle with Driver,TRANSPORT,DIRECT TRANSPORT COSTS,REVENUE
Walsall Council,http://opendatacommunities.org/id/metropolitan-district-council/walsall ,WC126-566,31.05.2021,CHILDRENS,APP CARZ,19/05/2021,682.00,6241-Hire of Vehicle with Driver,TRANSPORT,DIRECT TRANSPORT COSTS,REVENUE
Walsall Council,http://opendatacommunities.org/id/metropolitan-district-council/walsall ,WC126-567,31.05.2021,CHILDRENS,APP CARZ,19/05/2021,616.00,6241-Hire of Vehicle with Driver,TRANSPORT,DIRECT TRANSPORT COSTS,REVENUE
Walsall Council,http://opendatacommunities.org/id/metropolitan-district-council/walsall ,WC126-568,31.05.2021,CHILDRENS,APP CARZ,19/05/2021,950.00,6241-Hire of Vehicle with Driver,TRANSPORT,DIRECT TRANSPORT COSTS,REVENUE
Walsall Council,http://opendatacommunities.org/id/metropolitan-district-council/walsall ,WC126-569,31.05.2021,CHILDRENS,APP CARZ,19/05/2021,308.00,6241-Hire of Vehicle with Driver,TRANSPORT,DIRECT TRANSPORT COSTS,REVENUE
Walsall Council,http://opendatacommunities.org/id/metropolitan-district-council/walsall ,WC126-570,31.05.2021,CHILDRENS,APP CARZ,19/05/2021,832.00,6241-Hire of Vehicle with Driver,TRANSPORT,DIRECT TRANSPORT COSTS,REVENUE
Walsall Council,http://opendatacommunities.org/id/metropolitan-district-council/walsall ,WC126-571,31.05.2021,CHILDRENS,APP CARZ,19/05/2021,523.60,6241-Hire of Vehicle with Driver,TRANSPORT,DIRECT TRANSPORT COSTS,REVENUE
Walsall Council,http://opendatacommunities.org/id/metropolitan-district-council/walsall ,WC126-572,31.05.2021,CHILDRENS,APP CARZ,19/05/2021,896.00,6241-Hire of Vehicle with Driver,TRANSPORT,DIRECT TRANSPORT COSTS,REVENUE
Walsall Council,http://opendatacommunities.org/id/metropolitan-district-council/walsall ,WC126-573,31.05.2021,CHILDRENS,APP CARZ,19/05/2021,330.00,6241-Hire of Vehicle with Driver,TRANSPORT,DIRECT TRANSPORT COSTS,REVENUE
Walsall Council,http://opendatacommunities.org/id/metropolitan-district-council/walsall ,WC126-574,31.05.2021,CHILDRENS,APP CARZ,19/05/2021,504.00,6241-Hire of Vehicle with Driver,TRANSPORT,DIRECT TRANSPORT COSTS,REVENUE
Walsall Council,http://opendatacommunities.org/id/metropolitan-district-council/walsall ,WC126-575,31.05.2021,CHILDRENS,APP CARZ,19/05/2021,832.00,6241-Hire of Vehicle with Driver,TRANSPORT,DIRECT TRANSPORT COSTS,REVENUE
Walsall Council,http://opendatacommunities.org/id/metropolitan-district-council/walsall ,WC126-576,31.05.2021,CHILDRENS,APP CARZ,19/05/2021,900.00,6241-Hire of Vehicle with Driver,TRANSPORT,DIRECT TRANSPORT COSTS,REVENUE
Walsall Council,http://opendatacommunities.org/id/metropolitan-district-council/walsall ,WC126-577,31.05.2021,CHILDRENS,APP CARZ,19/05/2021,911.00,6241-Hire of Vehicle with Driver,TRANSPORT,DIRECT TRANSPORT COSTS,REVENUE
Walsall Council,http://opendatacommunities.org/id/metropolitan-district-council/walsall ,WC126-578,31.05.2021,CHILDRENS CAPITAL,AQUILA SHELTERS LTD,12/05/2021,"12,500.00",7155-Site Works Contractors,CAPITAL,"NEW CONSTRUCTION,CONVERSION & RENOVATION",CAPITAL
Walsall Council,http://opendatacommunities.org/id/metropolitan-district-council/walsall ,WC126-579,31.05.2021,ADULT SOCIAL CARE,ARBORETUM NURSING HOME.,04/05/2021,"3,725.00",6554-Professional Services-Priv Contractor & Other Agencies,THIRD PARTY PAYMENTS,PRIVATE CONTRACTOR,REVENUE
Walsall Council,http://opendatacommunities.org/id/metropolitan-district-council/walsall ,WC126-580,31.05.2021,ADULT SOCIAL CARE,ARBORETUM NURSING HOME.,04/05/2021,"2,980.00",6554-Professional Services-Priv Contractor & Other Agencies,THIRD PARTY PAYMENTS,PRIVATE CONTRACTOR,REVENUE
Walsall Council,http://opendatacommunities.org/id/metropolitan-district-council/walsall ,WC126-581,31.05.2021,ADULT SOCIAL CARE,ARBORETUM NURSING HOME.,05/05/2021,"3,202.40",6554-Professional Services-Priv Contractor & Other Agencies,THIRD PARTY PAYMENTS,PRIVATE CONTRACTOR,REVENUE
Walsall Council,http://opendatacommunities.org/id/metropolitan-district-council/walsall ,WC126-582,31.05.2021,ADULT SOCIAL CARE,ARBORETUM NURSING HOME.,12/05/2021,"3,202.40",6554-Professional Services-Priv Contractor & Other Agencies,THIRD PARTY PAYMENTS,PRIVATE CONTRACTOR,REVENUE
Walsall Council,http://opendatacommunities.org/id/metropolitan-district-council/walsall ,WC126-583,31.05.2021,ADULT SOCIAL CARE,ARBORETUM NURSING HOME.,20/05/2021,"1,490.00",6554-Professional Services-Priv Contractor & Other Agencies,THIRD PARTY PAYMENTS,PRIVATE CONTRACTOR,REVENUE
Walsall Council,http://opendatacommunities.org/id/metropolitan-district-council/walsall ,WC126-584,31.05.2021,ADULT SOCIAL CARE,ARBORETUM NURSING HOME.,21/05/2021,"2,980.00",6554-Professional Services-Priv Contractor & Other Agencies,THIRD PARTY PAYMENTS,PRIVATE CONTRACTOR,REVENUE
Walsall Council,http://opendatacommunities.org/id/metropolitan-district-council/walsall ,WC126-585,31.05.2021,ADULT SOCIAL CARE,ARBORETUM NURSING HOME.,21/05/2021,"1,383.58",6554-Professional Services-Priv Contractor & Other Agencies,THIRD PARTY PAYMENTS,PRIVATE CONTRACTOR,REVENUE
Walsall Council,http://opendatacommunities.org/id/metropolitan-district-council/walsall ,WC126-586,31.05.2021,ADULT SOCIAL CARE,ARBORETUM NURSING HOME.,26/05/2021,"1,600.20",6554-Professional Services-Priv Contractor & Other Agencies,THIRD PARTY PAYMENTS,PRIVATE CONTRACTOR,REVENUE
Walsall Council,http://opendatacommunities.org/id/metropolitan-district-council/walsall ,WC126-587,31.05.2021,ADULT SOCIAL CARE,ARBORETUM NURSING HOME.,10/05/2021,"2,411.40",6541-Nursing,THIRD PARTY PAYMENTS,PRIVATE CONTRACTOR,REVENUE
Walsall Council,http://opendatacommunities.org/id/metropolitan-district-council/walsall ,WC126-588,31.05.2021,ADULT SOCIAL CARE,ARBORETUM NURSING HOME.,10/05/2021,"2,411.40",6541-Nursing,THIRD PARTY PAYMENTS,PRIVATE CONTRACTOR,REVENUE
Walsall Council,http://opendatacommunities.org/id/metropolitan-district-council/walsall ,WC126-589,31.05.2021,ADULT SOCIAL CARE,ARBORETUM NURSING HOME.,10/05/2021,"2,411.40",6541-Nursing,THIRD PARTY PAYMENTS,PRIVATE CONTRACTOR,REVENUE
Walsall Council,http://opendatacommunities.org/id/metropolitan-district-council/walsall ,WC126-590,31.05.2021,ADULT SOCIAL CARE,ARBORETUM NURSING HOME.,10/05/2021,"2,567.40",6541-Nursing,THIRD PARTY PAYMENTS,PRIVATE CONTRACTOR,REVENUE
Walsall Council,http://opendatacommunities.org/id/metropolitan-district-council/walsall ,WC126-591,31.05.2021,ADULT SOCIAL CARE,ARBORETUM NURSING HOME.,10/05/2021,"2,411.40",6541-Nursing,THIRD PARTY PAYMENTS,PRIVATE CONTRACTOR,REVENUE
Walsall Council,http://opendatacommunities.org/id/metropolitan-district-council/walsall ,WC126-592,31.05.2021,ADULT SOCIAL CARE,ARBORETUM NURSING HOME.,10/05/2021,"2,411.40",6541-Nursing,THIRD PARTY PAYMENTS,PRIVATE CONTRACTOR,REVENUE
Walsall Council,http://opendatacommunities.org/id/metropolitan-district-council/walsall ,WC126-593,31.05.2021,ADULT SOCIAL CARE,ARBORETUM NURSING HOME.,10/05/2021,"2,591.40",6541-Nursing,THIRD PARTY PAYMENTS,PRIVATE CONTRACTOR,REVENUE
Walsall Council,http://opendatacommunities.org/id/metropolitan-district-council/walsall ,WC126-594,31.05.2021,ADULT SOCIAL CARE,ARBORETUM NURSING HOME.,10/05/2021,"2,591.40",6541-Nursing,THIRD PARTY PAYMENTS,PRIVATE CONTRACTOR,REVENUE
Walsall Council,http://opendatacommunities.org/id/metropolitan-district-council/walsall ,WC126-595,31.05.2021,ADULT SOCIAL CARE,ARBORETUM NURSING HOME.,10/05/2021,"2,411.40",6541-Nursing,THIRD PARTY PAYMENTS,PRIVATE CONTRACTOR,REVENUE
Walsall Council,http://opendatacommunities.org/id/metropolitan-district-council/walsall ,WC126-596,31.05.2021,ADULT SOCIAL CARE,ARBORETUM NURSING HOME.,10/05/2021,"2,411.40",6541-Nursing,THIRD PARTY PAYMENTS,PRIVATE CONTRACTOR,REVENUE
Walsall Council,http://opendatacommunities.org/id/metropolitan-district-council/walsall ,WC126-597,31.05.2021,ADULT SOCIAL CARE,ARBORETUM NURSING HOME.,10/05/2021,"2,591.40",6541-Nursing,THIRD PARTY PAYMENTS,PRIVATE CONTRACTOR,REVENUE
Walsall Council,http://opendatacommunities.org/id/metropolitan-district-council/walsall ,WC126-598,31.05.2021,ADULT SOCIAL CARE,ARBORETUM NURSING HOME.,10/05/2021,"2,411.40",6541-Nursing,THIRD PARTY PAYMENTS,PRIVATE CONTRACTOR,REVENUE
Walsall Council,http://opendatacommunities.org/id/metropolitan-district-council/walsall ,WC126-599,31.05.2021,ADULT SOCIAL CARE,ARBORETUM NURSING HOME.,10/05/2021,"2,411.40",6541-Nursing,THIRD PARTY PAYMENTS,PRIVATE CONTRACTOR,REVENUE
Walsall Council,http://opendatacommunities.org/id/metropolitan-district-council/walsall ,WC126-600,31.05.2021,ADULT SOCIAL CARE,ARBORETUM NURSING HOME.,10/05/2021,"2,591.40",6541-Nursing,THIRD PARTY PAYMENTS,PRIVATE CONTRACTOR,REVENUE
Walsall Council,http://opendatacommunities.org/id/metropolitan-district-council/walsall ,WC126-601,31.05.2021,ADULT SOCIAL CARE,ARBORETUM NURSING HOME.,10/05/2021,"3,695.40",6541-Nursing,THIRD PARTY PAYMENTS,PRIVATE CONTRACTOR,REVENUE
Walsall Council,http://opendatacommunities.org/id/metropolitan-district-council/walsall ,WC126-602,31.05.2021,ADULT SOCIAL CARE,ARBORETUM NURSING HOME.,10/05/2021,"2,411.40",6541-Nursing,THIRD PARTY PAYMENTS,PRIVATE CONTRACTOR,REVENUE
Walsall Council,http://opendatacommunities.org/id/metropolitan-district-council/walsall ,WC126-603,31.05.2021,ADULT SOCIAL CARE,ARBORETUM NURSING HOME.,10/05/2021,"2,411.40",6541-Nursing,THIRD PARTY PAYMENTS,PRIVATE CONTRACTOR,REVENUE
Walsall Council,http://opendatacommunities.org/id/metropolitan-district-council/walsall ,WC126-604,31.05.2021,ADULT SOCIAL CARE,ARBORETUM NURSING HOME.,10/05/2021,"2,591.40",6541-Nursing,THIRD PARTY PAYMENTS,PRIVATE CONTRACTOR,REVENUE
Walsall Council,http://opendatacommunities.org/id/metropolitan-district-council/walsall ,WC126-605,31.05.2021,ADULT SOCIAL CARE,ARBORETUM NURSING HOME.,10/05/2021,"2,411.40",6541-Nursing,THIRD PARTY PAYMENTS,PRIVATE CONTRACTOR,REVENUE
Walsall Council,http://opendatacommunities.org/id/metropolitan-district-council/walsall ,WC126-606,31.05.2021,ADULT SOCIAL CARE,ARBORETUM NURSING HOME.,10/05/2021,"2,591.40",6541-Nursing,THIRD PARTY PAYMENTS,PRIVATE CONTRACTOR,REVENUE
Walsall Council,http://opendatacommunities.org/id/metropolitan-district-council/walsall ,WC126-607,31.05.2021,ADULT SOCIAL CARE,ARBORETUM NURSING HOME.,12/05/2021,"-1,601.20",6554-Professional Services-Priv Contractor & Other Agencies,THIRD PARTY PAYMENTS,PRIVATE CONTRACTOR,REVENUE
Walsall Council,http://opendatacommunities.org/id/metropolitan-district-council/walsall ,WC126-608,31.05.2021,ADULT SOCIAL CARE,ARBORETUM NURSING HOME.,12/05/2021,-800.60,6554-Professional Services-Priv Contractor & Other Agencies,THIRD PARTY PAYMENTS,PRIVATE CONTRACTOR,REVENUE
Walsall Council,http://opendatacommunities.org/id/metropolitan-district-council/walsall ,WC126-609,31.05.2021,ADULT SOCIAL CARE,ARBORETUM NURSING HOME.,21/05/2021,"-1,490.00",6554-Professional Services-Priv Contractor & Other Agencies,THIRD PARTY PAYMENTS,PRIVATE CONTRACTOR,REVENUE
Walsall Council,http://opendatacommunities.org/id/metropolitan-district-council/walsall ,WC126-610,31.05.2021,ADULT SOCIAL CARE,ARBORETUM NURSING HOME.,26/05/2021,"-3,202.40",6554-Professional Services-Priv Contractor & Other Agencies,THIRD PARTY PAYMENTS,PRIVATE CONTRACTOR,REVENUE
Walsall Council,http://opendatacommunities.org/id/metropolitan-district-council/walsall ,WC126-611,31.05.2021,RESOURCES AND TRANSFORMATION,ARCADIS,20/05/2021,"1,000.00",7300-Consultants Fees,CAPITAL,"NEW CONSTRUCTION,CONVERSION & RENOVATION",CAPITAL
Walsall Council,http://opendatacommunities.org/id/metropolitan-district-council/walsall ,WC126-612,31.05.2021,RESOURCES AND TRANSFORMATION,ARCADIS,20/05/2021,"2,750.00",7300-Consultants Fees,CAPITAL,"NEW CONSTRUCTION,CONVERSION & RENOVATION",CAPITAL
Walsall Council,http://opendatacommunities.org/id/metropolitan-district-council/walsall ,WC126-613,31.05.2021,HOLDING ACCOUNTS,ARTHUR J GALLAGHER T/A HEATH LAMBERT LIMITED,26/05/2021,560.00,2877-Insurance Premium,SUPPLIES & SERVICES,INSURANCE,REVENUE
Walsall Council,http://opendatacommunities.org/id/metropolitan-district-council/walsall ,WC126-614,31.05.2021,HOLDING ACCOUNTS,ARTHUR J GALLAGHER T/A HEATH LAMBERT LIMITED,18/05/2021,"322,339.36",2877-Insurance Premium,SUPPLIES & SERVICES,INSURANCE,REVENUE
Walsall Council,http://opendatacommunities.org/id/metropolitan-district-council/walsall ,WC126-615,31.05.2021,HOLDING ACCOUNTS,ARTHUR J GALLAGHER T/A HEATH LAMBERT LIMITED,18/05/2021,"7,213.10",2877-Insurance Premium,SUPPLIES & SERVICES,INSURANCE,REVENUE
Walsall Council,http://opendatacommunities.org/id/metropolitan-district-council/walsall ,WC126-616,31.05.2021,HOLDING ACCOUNTS,ARTHUR J GALLAGHER T/A HEATH LAMBERT LIMITED,18/05/2021,"40,829.60",2877-Insurance Premium,SUPPLIES & SERVICES,INSURANCE,REVENUE
Walsall Council,http://opendatacommunities.org/id/metropolitan-district-council/walsall ,WC126-617,31.05.2021,HOLDING ACCOUNTS,ARTHUR J GALLAGHER T/A HEATH LAMBERT LIMITED,18/05/2021,"42,317.41",2877-Insurance Premium,SUPPLIES & SERVICES,INSURANCE,REVENUE
Walsall Council,http://opendatacommunities.org/id/metropolitan-district-council/walsall ,WC126-618,31.05.2021,HOLDING ACCOUNTS,ARTHUR J GALLAGHER T/A HEATH LAMBERT LIMITED,18/05/2021,"26,956.90",2877-Insurance Premium,SUPPLIES & SERVICES,INSURANCE,REVENUE
Walsall Council,http://opendatacommunities.org/id/metropolitan-district-council/walsall ,WC126-619,31.05.2021,HOLDING ACCOUNTS,ARTHUR J GALLAGHER T/A HEATH LAMBERT LIMITED,18/05/2021,840.00,2877-Insurance Premium,SUPPLIES & SERVICES,INSURANCE,REVENUE
Walsall Council,http://opendatacommunities.org/id/metropolitan-district-council/walsall ,WC126-620,31.05.2021,HOLDING ACCOUNTS,ARTHUR J GALLAGHER T/A HEATH LAMBERT LIMITED,18/05/2021,"42,772.51",2877-Insurance Premium,SUPPLIES & SERVICES,INSURANCE,REVENUE
Walsall Council,http://opendatacommunities.org/id/metropolitan-district-council/walsall ,WC126-621,31.05.2021,ECONOMY & ENVIRONMENT,ARTIFAX SOFTWARE LIMITED,13/05/2021,"-4,032.00",6414-Professional Fees & Services,SUPPLIES & SERVICES,SERVICES,REVENUE
Walsall Council,http://opendatacommunities.org/id/metropolitan-district-council/walsall ,WC126-622,31.05.2021,ECONOMY & ENVIRONMENT,ARTIFAX SOFTWARE LIMITED,13/05/2021,"3,360.00",6414-Professional Fees & Services,SUPPLIES & SERVICES,SERVICES,REVENUE
Walsall Council,http://opendatacommunities.org/id/metropolitan-district-council/walsall ,WC126-623,31.05.2021,ECONOMY & ENVIRONMENT,ARTIFAX SOFTWARE LIMITED,13/05/2021,"4,032.00",6414-Professional Fees & Services,SUPPLIES & SERVICES,SERVICES,REVENUE
Walsall Council,http://opendatacommunities.org/id/metropolitan-district-council/walsall ,WC126-624,31.05.2021,ECONOMY & ENVIRONMENT,ARTIFAX SOFTWARE LIMITED,12/05/2021,"3,600.00",6414-Professional Fees & Services,SUPPLIES & SERVICES,SERVICES,REVENUE
Walsall Council,http://opendatacommunities.org/id/metropolitan-district-council/walsall ,WC126-625,31.05.2021,CHILDRENS,ASCENDANT SOLUTIONS LTD,18/05/2021,"17,315.00",6632-Computer Equipment,SUPPLIES & SERVICES,COMMUNICATIONS & COMPUTING,REVENUE
Walsall Council,http://opendatacommunities.org/id/metropolitan-district-council/walsall ,WC126-626,31.05.2021,ADULT SOCIAL CARE,ASH GRANGE CARE HOME,10/05/2021,"2,411.40",6541-Nursing,THIRD PARTY PAYMENTS,PRIVATE CONTRACTOR,REVENUE
Walsall Council,http://opendatacommunities.org/id/metropolitan-district-council/walsall ,WC126-627,31.05.2021,ADULT SOCIAL CARE,ASH GRANGE CARE HOME,10/05/2021,"2,411.40",6541-Nursing,THIRD PARTY PAYMENTS,PRIVATE CONTRACTOR,REVENUE
Walsall Council,http://opendatacommunities.org/id/metropolitan-district-council/walsall ,WC126-628,31.05.2021,ADULT SOCIAL CARE,ASH GRANGE CARE HOME,10/05/2021,"-6,246.71",6541-Nursing,THIRD PARTY PAYMENTS,PRIVATE CONTRACTOR,REVENUE
Walsall Council,http://opendatacommunities.org/id/metropolitan-district-council/walsall ,WC126-629,31.05.2021,ADULT SOCIAL CARE,ASH GRANGE CARE HOME,10/05/2021,"2,790.36",6541-Nursing,THIRD PARTY PAYMENTS,PRIVATE CONTRACTOR,REVENUE
Walsall Council,http://opendatacommunities.org/id/metropolitan-district-council/walsall ,WC126-630,31.05.2021,ADULT SOCIAL CARE,ASH GRANGE CARE HOME,10/05/2021,"2,057.14",6541-Residential,THIRD PARTY PAYMENTS,PRIVATE CONTRACTOR,REVENUE
Walsall Council,http://opendatacommunities.org/id/metropolitan-district-council/walsall ,WC126-631,31.05.2021,ADULT SOCIAL CARE,ASH GRANGE CARE HOME,10/05/2021,"2,411.40",6541-Nursing,THIRD PARTY PAYMENTS,PRIVATE CONTRACTOR,REVENUE
Walsall Council,http://opendatacommunities.org/id/metropolitan-district-council/walsall ,WC126-632,31.05.2021,ADULT SOCIAL CARE,ASH GRANGE CARE HOME,10/05/2021,"-1,540.29",6541-Nursing,THIRD PARTY PAYMENTS,PRIVATE CONTRACTOR,REVENUE
Walsall Council,http://opendatacommunities.org/id/metropolitan-district-council/walsall ,WC126-633,31.05.2021,ADULT SOCIAL CARE,ASH GRANGE CARE HOME,10/05/2021,"2,811.40",6541-Nursing,THIRD PARTY PAYMENTS,PRIVATE CONTRACTOR,REVENUE
Walsall Council,http://opendatacommunities.org/id/metropolitan-district-council/walsall ,WC126-634,31.05.2021,ADULT SOCIAL CARE,ASH GRANGE CARE HOME,10/05/2021,921.84,6541-Residential,THIRD PARTY PAYMENTS,PRIVATE CONTRACTOR,REVENUE
Walsall Council,http://opendatacommunities.org/id/metropolitan-district-council/walsall ,WC126-635,31.05.2021,ADULT SOCIAL CARE,ASH GRANGE CARE HOME,10/05/2021,"2,713.33",6541-Nursing EMI,THIRD PARTY PAYMENTS,PRIVATE CONTRACTOR,REVENUE
Walsall Council,http://opendatacommunities.org/id/metropolitan-district-council/walsall ,WC126-636,31.05.2021,ADULT SOCIAL CARE,ASH GRANGE CARE HOME,10/05/2021,"2,811.40",6541-Nursing,THIRD PARTY PAYMENTS,PRIVATE CONTRACTOR,REVENUE
Walsall Council,http://opendatacommunities.org/id/metropolitan-district-council/walsall ,WC126-637,31.05.2021,ADULT SOCIAL CARE,ASH GRANGE CARE HOME,10/05/2021,"1,675.90",6541-Residential,THIRD PARTY PAYMENTS,PRIVATE CONTRACTOR,REVENUE
Walsall Council,http://opendatacommunities.org/id/metropolitan-district-council/walsall ,WC126-638,31.05.2021,ADULT SOCIAL CARE,ASH GRANGE CARE HOME,10/05/2021,"2,713.33",6541-Nursing EMI,THIRD PARTY PAYMENTS,PRIVATE CONTRACTOR,REVENUE
Walsall Council,http://opendatacommunities.org/id/metropolitan-district-council/walsall ,WC126-639,31.05.2021,ADULT SOCIAL CARE,ASH GRANGE CARE HOME,10/05/2021,"1,123.55",6541-Nursing,THIRD PARTY PAYMENTS,PRIVATE CONTRACTOR,REVENUE
Walsall Council,http://opendatacommunities.org/id/metropolitan-district-council/walsall ,WC126-640,31.05.2021,ECONOMY & ENVIRONMENT,ASHDOWN SUPPLIES,10/05/2021,336.00,6413-Plaques Memorials-Materials,SUPPLIES & SERVICES,EQUIPMENT FURNITURE & MATERIALS,REVENUE
Walsall Council,http://opendatacommunities.org/id/metropolitan-district-council/walsall ,WC126-641,31.05.2021,ECONOMY & ENVIRONMENT,ASHDOWN SUPPLIES,10/05/2021,366.72,6413-Plaques Memorials-Materials,SUPPLIES & SERVICES,EQUIPMENT FURNITURE & MATERIALS,REVENUE
Walsall Council,http://opendatacommunities.org/id/metropolitan-district-council/walsall ,WC126-642,31.05.2021,ECONOMY & ENVIRONMENT,ASHDOWN SUPPLIES,10/05/2021,366.72,6413-Plaques Memorials-Materials,SUPPLIES & SERVICES,EQUIPMENT FURNITURE & MATERIALS,REVENUE
Walsall Council,http://opendatacommunities.org/id/metropolitan-district-council/walsall ,WC126-643,31.05.2021,ADULT SOCIAL CARE,REDACTED,05/05/2021,"1,426.04",6541-Direct Payment,THIRD PARTY PAYMENTS,PRIVATE CONTRACTOR,REVENUE
Walsall Council,http://opendatacommunities.org/id/metropolitan-district-council/walsall ,WC126-644,31.05.2021,ECONOMY & ENVIRONMENT,ASKEWS AND HOLTS LIBRARY SERVICES LTD,13/05/2021,752.91,6414-Library Books,SUPPLIES & SERVICES,EQUIPMENT FURNITURE & MATERIALS,REVENUE
Walsall Council,http://opendatacommunities.org/id/metropolitan-district-council/walsall ,WC126-645,31.05.2021,ECONOMY & ENVIRONMENT,ASKEWS AND HOLTS LIBRARY SERVICES LTD,05/05/2021,931.94,6414-Library Books,SUPPLIES & SERVICES,EQUIPMENT FURNITURE & MATERIALS,REVENUE
Walsall Council,http://opendatacommunities.org/id/metropolitan-district-council/walsall ,WC126-646,31.05.2021,ECONOMY & ENVIRONMENT,ASKEWS AND HOLTS LIBRARY SERVICES LTD,19/05/2021,344.72,6414-Library Books,SUPPLIES & SERVICES,EQUIPMENT FURNITURE & MATERIALS,REVENUE
Walsall Council,http://opendatacommunities.org/id/metropolitan-district-council/walsall ,WC126-647,31.05.2021,ADULT SOCIAL CARE,REDACTED,05/05/2021,750.72,6541-Direct Payment,THIRD PARTY PAYMENTS,PRIVATE CONTRACTOR,REVENUE
Walsall Council,http://opendatacommunities.org/id/metropolitan-district-council/walsall ,WC126-648,31.05.2021,ADULT SOCIAL CARE,ASPECTS CARE LTD,05/05/2021,345.40,6541-Community Supported Living/Supported Accommodation,THIRD PARTY PAYMENTS,PRIVATE CONTRACTOR,REVENUE
Walsall Council,http://opendatacommunities.org/id/metropolitan-district-council/walsall ,WC126-649,31.05.2021,ADULT SOCIAL CARE,ASPECTS CARE LTD,05/05/2021,417.04,6541-Community Supported Living/Supported Accommodation,THIRD PARTY PAYMENTS,PRIVATE CONTRACTOR,REVENUE
Walsall Council,http://opendatacommunities.org/id/metropolitan-district-council/walsall ,WC126-650,31.05.2021,ADULT SOCIAL CARE,ASPECTS CARE LTD,05/05/2021,503.44,6541-Community Supported Living/Supported Accommodation,THIRD PARTY PAYMENTS,PRIVATE CONTRACTOR,REVENUE
Walsall Council,http://opendatacommunities.org/id/metropolitan-district-council/walsall ,WC126-651,31.05.2021,ADULT SOCIAL CARE,ASPECTS CARE LTD,05/05/2021,503.44,6541-Community Supported Living/Supported Accommodation,THIRD PARTY PAYMENTS,PRIVATE CONTRACTOR,REVENUE
Walsall Council,http://opendatacommunities.org/id/metropolitan-district-council/walsall ,WC126-652,31.05.2021,ADULT SOCIAL CARE,ASPECTS CARE LTD,05/05/2021,791.04,6541-Community Supported Living/Supported Accommodation,THIRD PARTY PAYMENTS,PRIVATE CONTRACTOR,REVENUE
Walsall Council,http://opendatacommunities.org/id/metropolitan-district-council/walsall ,WC126-653,31.05.2021,ADULT SOCIAL CARE,ASPECTS CARE LTD,05/05/2021,316.36,6541-Community Supported Living/Supported Accommodation,THIRD PARTY PAYMENTS,PRIVATE CONTRACTOR,REVENUE
Walsall Council,http://opendatacommunities.org/id/metropolitan-district-council/walsall ,WC126-654,31.05.2021,ADULT SOCIAL CARE,ASPECTS CARE LTD,05/05/2021,"1,078.64",6541-Community Supported Living/Supported Accommodation,THIRD PARTY PAYMENTS,PRIVATE CONTRACTOR,REVENUE
Walsall Council,http://opendatacommunities.org/id/metropolitan-district-council/walsall ,WC126-655,31.05.2021,ADULT SOCIAL CARE,ASPECTS CARE LTD,05/05/2021,517.68,6541-Community Supported Living/Supported Accommodation,THIRD PARTY PAYMENTS,PRIVATE CONTRACTOR,REVENUE
Walsall Council,http://opendatacommunities.org/id/metropolitan-district-council/walsall ,WC126-656,31.05.2021,ADULT SOCIAL CARE,ASPECTS CARE LTD,05/05/2021,560.96,6541-Community Supported Living/Supported Accommodation,THIRD PARTY PAYMENTS,PRIVATE CONTRACTOR,REVENUE
Walsall Council,http://opendatacommunities.org/id/metropolitan-district-council/walsall ,WC126-657,31.05.2021,ADULT SOCIAL CARE,ASPECTS CARE LTD,05/05/2021,517.68,6541-Community Supported Living/Supported Accommodation,THIRD PARTY PAYMENTS,PRIVATE CONTRACTOR,REVENUE
Walsall Council,http://opendatacommunities.org/id/metropolitan-district-council/walsall ,WC126-658,31.05.2021,ADULT SOCIAL CARE,ASPECTS CARE LTD,05/05/2021,460.44,6541-Community Supported Living/Supported Accommodation,THIRD PARTY PAYMENTS,PRIVATE CONTRACTOR,REVENUE
Walsall Council,http://opendatacommunities.org/id/metropolitan-district-council/walsall ,WC126-659,31.05.2021,ADULT SOCIAL CARE,ASPECTS CARE LTD,05/05/2021,791.04,6541-Community Supported Living/Supported Accommodation,THIRD PARTY PAYMENTS,PRIVATE CONTRACTOR,REVENUE
Walsall Council,http://opendatacommunities.org/id/metropolitan-district-council/walsall ,WC126-660,31.05.2021,CHILDRENS,ASPIRATIONS SUPPORT LIVING LTD,04/05/2021,973.90,6223-Accommodation and Related Costs-Assistance to S/S Clients,TRANSFER PAYMENTS,ADULT SOCIAL SERVICES CLIENT,REVENUE
Walsall Council,http://opendatacommunities.org/id/metropolitan-district-council/walsall ,WC126-661,31.05.2021,CHILDRENS,ASPIRATIONS SUPPORT LIVING LTD,04/05/2021,973.90,6223-Accommodation and Related Costs-Assistance to S/S Clients,TRANSFER PAYMENTS,ADULT SOCIAL SERVICES CLIENT,REVENUE
Walsall Council,http://opendatacommunities.org/id/metropolitan-district-council/walsall ,WC126-662,31.05.2021,CHILDRENS,ASPIRATIONS SUPPORT LIVING LTD,04/05/2021,973.90,6223-Accommodation and Related Costs-Assistance to S/S Clients,TRANSFER PAYMENTS,ADULT SOCIAL SERVICES CLIENT,REVENUE
Walsall Council,http://opendatacommunities.org/id/metropolitan-district-council/walsall ,WC126-663,31.05.2021,CHILDRENS,ASPIRATIONS SUPPORT LIVING LTD,04/05/2021,973.90,6223-Accommodation and Related Costs-Assistance to S/S Clients,TRANSFER PAYMENTS,ADULT SOCIAL SERVICES CLIENT,REVENUE
Walsall Council,http://opendatacommunities.org/id/metropolitan-district-council/walsall ,WC126-664,31.05.2021,CHILDRENS,ASPIRATIONS SUPPORT LIVING LTD,04/05/2021,973.90,6223-Accommodation and Related Costs-Assistance to S/S Clients,TRANSFER PAYMENTS,ADULT SOCIAL SERVICES CLIENT,REVENUE
Walsall Council,http://opendatacommunities.org/id/metropolitan-district-council/walsall ,WC126-665,31.05.2021,CHILDRENS,ASPIRATIONS SUPPORT LIVING LTD,04/05/2021,973.90,6223-Accommodation and Related Costs-Assistance to S/S Clients,TRANSFER PAYMENTS,ADULT SOCIAL SERVICES CLIENT,REVENUE
Walsall Council,http://opendatacommunities.org/id/metropolitan-district-council/walsall ,WC126-666,31.05.2021,CHILDRENS,ASPIRATIONS SUPPORT LIVING LTD,04/05/2021,-973.90,6223-Accommodation and Related Costs-Assistance to S/S Clients,TRANSFER PAYMENTS,ADULT SOCIAL SERVICES CLIENT,REVENUE
Walsall Council,http://opendatacommunities.org/id/metropolitan-district-council/walsall ,WC126-667,31.05.2021,CHILDRENS,ASPIRATIONS SUPPORT LIVING LTD,04/05/2021,973.60,6223-Accommodation and Related Costs-Assistance to S/S Clients,TRANSFER PAYMENTS,ADULT SOCIAL SERVICES CLIENT,REVENUE
Walsall Council,http://opendatacommunities.org/id/metropolitan-district-council/walsall ,WC126-668,31.05.2021,CHILDRENS,ASPIRATIONS SUPPORT LIVING LTD,04/05/2021,973.90,6223-Accommodation and Related Costs-Assistance to S/S Clients,TRANSFER PAYMENTS,ADULT SOCIAL SERVICES CLIENT,REVENUE
Walsall Council,http://opendatacommunities.org/id/metropolitan-district-council/walsall ,WC126-669,31.05.2021,CHILDRENS,ASPIRATIONS SUPPORT LIVING LTD,04/05/2021,-973.90,6223-Accommodation and Related Costs-Assistance to S/S Clients,TRANSFER PAYMENTS,ADULT SOCIAL SERVICES CLIENT,REVENUE
Walsall Council,http://opendatacommunities.org/id/metropolitan-district-council/walsall ,WC126-670,31.05.2021,CHILDRENS,ASPIRATIONS SUPPORT LIVING LTD,04/05/2021,973.90,6223-Accommodation and Related Costs-Assistance to S/S Clients,TRANSFER PAYMENTS,ADULT SOCIAL SERVICES CLIENT,REVENUE
Walsall Council,http://opendatacommunities.org/id/metropolitan-district-council/walsall ,WC126-671,31.05.2021,CHILDRENS,ASPIRATIONS SUPPORT LIVING LTD,04/05/2021,-973.90,6223-Accommodation and Related Costs-Assistance to S/S Clients,TRANSFER PAYMENTS,ADULT SOCIAL SERVICES CLIENT,REVENUE
Walsall Council,http://opendatacommunities.org/id/metropolitan-district-council/walsall ,WC126-672,31.05.2021,CHILDRENS,ASPIRATIONS SUPPORT LIVING LTD,04/05/2021,973.90,6223-Accommodation and Related Costs-Assistance to S/S Clients,TRANSFER PAYMENTS,ADULT SOCIAL SERVICES CLIENT,REVENUE
Walsall Council,http://opendatacommunities.org/id/metropolitan-district-council/walsall ,WC126-673,31.05.2021,CHILDRENS,ASPIRATIONS SUPPORT LIVING LTD,04/05/2021,-973.90,6223-Accommodation and Related Costs-Assistance to S/S Clients,TRANSFER PAYMENTS,ADULT SOCIAL SERVICES CLIENT,REVENUE
Walsall Council,http://opendatacommunities.org/id/metropolitan-district-council/walsall ,WC126-674,31.05.2021,CHILDRENS,ASPIRATIONS SUPPORT LIVING LTD,04/05/2021,973.90,6223-Accommodation and Related Costs-Assistance to S/S Clients,TRANSFER PAYMENTS,ADULT SOCIAL SERVICES CLIENT,REVENUE
Walsall Council,http://opendatacommunities.org/id/metropolitan-district-council/walsall ,WC126-675,31.05.2021,RESOURCES AND TRANSFORMATION,ASTECH CONSULTANTS LTD,21/05/2021,"7,684.07",6610-School Only Payments - Catering,THIRD PARTY PAYMENTS,INDEPENDENT UNIT WITHIN COUNCIL,REVENUE
Walsall Council,http://opendatacommunities.org/id/metropolitan-district-council/walsall ,WC126-676,31.05.2021,ECONOMY & ENVIRONMENT,ATESTA LTD,12/05/2021,979.00,6413-Plaques Memorials-Materials,SUPPLIES & SERVICES,EQUIPMENT FURNITURE & MATERIALS,REVENUE
Walsall Council,http://opendatacommunities.org/id/metropolitan-district-council/walsall ,WC126-677,31.05.2021,ECONOMY & ENVIRONMENT,ATKINS LIMITED,05/05/2021,"2,650.00",6411-Materials,SUPPLIES & SERVICES,EQUIPMENT FURNITURE & MATERIALS,REVENUE
Walsall Council,http://opendatacommunities.org/id/metropolitan-district-council/walsall ,WC126-678,31.05.2021,RESOURCES AND TRANSFORMATION,AUDITEL RENTAL & SERVICE LTD,19/05/2021,"2,995.00",6310-Repair & Maintenance of Furniture & Equipment,SUPPLIES & SERVICES,EQUIPMENT FURNITURE & MATERIALS,REVENUE
Walsall Council,http://opendatacommunities.org/id/metropolitan-district-council/walsall ,WC126-679,31.05.2021,ADULT SOCIAL CARE,AURORA GRAPHICS & DISPLAYS LTD,06/05/2021,272.80,6623-Outwork Print & Design,SUPPLIES & SERVICES,PRINTING STATIONERY & GENERAL OFFICE,REVENUE
Walsall Council,http://opendatacommunities.org/id/metropolitan-district-council/walsall ,WC126-680,31.05.2021,ADULT SOCIAL CARE,AURORA GRAPHICS & DISPLAYS LTD,12/05/2021,293.00,6623-Outwork Print & Design,SUPPLIES & SERVICES,PRINTING STATIONERY & GENERAL OFFICE,REVENUE
Walsall Council,http://opendatacommunities.org/id/metropolitan-district-council/walsall ,WC126-681,31.05.2021,ADULT SOCIAL CARE,AUTISM WEST MIDLANDS,10/05/2021,"5,712.37",6541-Residential,THIRD PARTY PAYMENTS,PRIVATE CONTRACTOR,REVENUE
Walsall Council,http://opendatacommunities.org/id/metropolitan-district-council/walsall ,WC126-682,31.05.2021,ADULT SOCIAL CARE,AUTISM WEST MIDLANDS,10/05/2021,"7,391.81",6541-Residential,THIRD PARTY PAYMENTS,PRIVATE CONTRACTOR,REVENUE
Walsall Council,http://opendatacommunities.org/id/metropolitan-district-council/walsall ,WC126-683,31.05.2021,ADULT SOCIAL CARE,AVERY HOMES NELSON LIMITED,10/05/2021,"2,057.14",6541-Residential,THIRD PARTY PAYMENTS,PRIVATE CONTRACTOR,REVENUE
Walsall Council,http://opendatacommunities.org/id/metropolitan-district-council/walsall ,WC126-684,31.05.2021,ADULT SOCIAL CARE,AVERY HOMES NELSON LIMITED,10/05/2021,"2,057.14",6541-Residential,THIRD PARTY PAYMENTS,PRIVATE CONTRACTOR,REVENUE
Walsall Council,http://opendatacommunities.org/id/metropolitan-district-council/walsall ,WC126-685,31.05.2021,HOLDING ACCOUNTS,AWS SOLICITORS,11/05/2021,360.00,2877-Insurance Payment Claims,SUPPLIES & SERVICES,INSURANCE,REVENUE
Walsall Council,http://opendatacommunities.org/id/metropolitan-district-council/walsall ,WC126-686,31.05.2021,CHILDRENS CAPITAL,AXIOM BUILDING SOLUTIONS LTD,07/05/2021,"5,950.00",7150-Site Works Contractors,CAPITAL,"NEW CONSTRUCTION,CONVERSION & RENOVATION",CAPITAL
Walsall Council,http://opendatacommunities.org/id/metropolitan-district-council/walsall ,WC126-687,31.05.2021,ADULT SOCIAL CARE,REDACTED,05/05/2021,"3,416.52",6541-Direct Payment,THIRD PARTY PAYMENTS,PRIVATE CONTRACTOR,REVENUE
Walsall Council,http://opendatacommunities.org/id/metropolitan-district-council/walsall ,WC126-688,31.05.2021,CHILDRENS CAPITAL,AZTEC CONSTRUCTION (MIDLANDS) LTD,17/05/2021,"4,283.33",7300-Private Grants,CAPITAL,CAPITAL GRANTS,CAPITAL
Walsall Council,http://opendatacommunities.org/id/metropolitan-district-council/walsall ,WC126-689,31.05.2021,CHILDRENS CAPITAL,AZTEC CONSTRUCTION (MIDLANDS) LTD,28/05/2021,"3,773.34",7300-Private Grants,CAPITAL,CAPITAL GRANTS,CAPITAL
Walsall Council,http://opendatacommunities.org/id/metropolitan-district-council/walsall ,WC126-690,31.05.2021,CHILDRENS CAPITAL,AZTEC CONSTRUCTION (MIDLANDS) LTD,04/05/2021,"-1,968.50",7300-Private Grants,CAPITAL,CAPITAL GRANTS,CAPITAL
Walsall Council,http://opendatacommunities.org/id/metropolitan-district-council/walsall ,WC126-691,31.05.2021,CHILDRENS CAPITAL,AZTEC CONSTRUCTION (MIDLANDS) LTD,04/05/2021,"1,968.50",7300-Private Grants,CAPITAL,CAPITAL GRANTS,CAPITAL
Walsall Council,http://opendatacommunities.org/id/metropolitan-district-council/walsall ,WC126-692,31.05.2021,CHILDRENS CAPITAL,AZTEC CONSTRUCTION (MIDLANDS) LTD,04/05/2021,"-1,370.00",7300-Private Grants,CAPITAL,CAPITAL GRANTS,CAPITAL
Walsall Council,http://opendatacommunities.org/id/metropolitan-district-council/walsall ,WC126-693,31.05.2021,CHILDRENS CAPITAL,AZTEC CONSTRUCTION (MIDLANDS) LTD,04/05/2021,"1,370.00",7300-Private Grants,CAPITAL,CAPITAL GRANTS,CAPITAL
Walsall Council,http://opendatacommunities.org/id/metropolitan-district-council/walsall ,WC126-694,31.05.2021,RESOURCES AND TRANSFORMATION,B E FURNITURE LTD T/A B E EVENTHIRE,24/05/2021,537.35,"6610-Leasing, Hire & Rental of Equipment",SUPPLIES & SERVICES,EQUIPMENT FURNITURE & MATERIALS,REVENUE
Walsall Council,http://opendatacommunities.org/id/metropolitan-district-council/walsall ,WC126-695,31.05.2021,ECONOMY & ENVIRONMENT,BAKER HALL PARTNERSHIP,05/05/2021,-866.50,6413-Professional Fees & Services,SUPPLIES & SERVICES,SERVICES,REVENUE
Walsall Council,http://opendatacommunities.org/id/metropolitan-district-council/walsall ,WC126-696,31.05.2021,ECONOMY & ENVIRONMENT,BAKER HALL PARTNERSHIP,05/05/2021,866.50,6413-Professional Fees & Services,SUPPLIES & SERVICES,SERVICES,REVENUE
Walsall Council,http://opendatacommunities.org/id/metropolitan-district-council/walsall ,WC126-697,31.05.2021,ECONOMY & ENVIRONMENT,BAKER HALL PARTNERSHIP,04/05/2021,"2,056.50",6413-Professional Fees & Services,SUPPLIES & SERVICES,SERVICES,REVENUE
Walsall Council,http://opendatacommunities.org/id/metropolitan-district-council/walsall ,WC126-698,31.05.2021,ECONOMY & ENVIRONMENT,BAKER HALL PARTNERSHIP,20/05/2021,"1,464.50",6413-Professional Fees & Services,SUPPLIES & SERVICES,SERVICES,REVENUE
Walsall Council,http://opendatacommunities.org/id/metropolitan-district-council/walsall ,WC126-699,31.05.2021,ADULT SOCIAL CARE,REDACTED,05/05/2021,372.00,6541-Direct Payment,THIRD PARTY PAYMENTS,PRIVATE CONTRACTOR,REVENUE
Walsall Council,http://opendatacommunities.org/id/metropolitan-district-council/walsall ,WC126-700,31.05.2021,ADULT SOCIAL CARE,REDACTED,05/05/2021,"3,799.92",6541-Direct Payment,THIRD PARTY PAYMENTS,PRIVATE CONTRACTOR,REVENUE
Walsall Council,http://opendatacommunities.org/id/metropolitan-district-council/walsall ,WC126-701,31.05.2021,CHILDRENS,BALTIMORE CONSULTING LTD,12/05/2021,"2,790.00",6241-Professional Fees & Services,SUPPLIES & SERVICES,SERVICES,REVENUE
Walsall Council,http://opendatacommunities.org/id/metropolitan-district-council/walsall ,WC126-702,31.05.2021,CHILDRENS,BALTIMORE CONSULTING LTD,21/05/2021,"1,550.00",6241-Professional Fees & Services,SUPPLIES & SERVICES,SERVICES,REVENUE
Walsall Council,http://opendatacommunities.org/id/metropolitan-district-council/walsall ,WC126-703,31.05.2021,CHILDRENS,BALTIMORE CONSULTING LTD,21/05/2021,"1,550.00",6241-Professional Fees & Services,SUPPLIES & SERVICES,SERVICES,REVENUE
Walsall Council,http://opendatacommunities.org/id/metropolitan-district-council/walsall ,WC126-704,31.05.2021,CHILDRENS,BALTIMORE CONSULTING LTD,21/05/2021,"1,240.00",6241-Professional Fees & Services,SUPPLIES & SERVICES,SERVICES,REVENUE
Walsall Council,http://opendatacommunities.org/id/metropolitan-district-council/walsall ,WC126-705,31.05.2021,CHILDRENS,BANYA FAMILY PLACEMENT AGENCY LTD,17/05/2021,"4,588.60",6223-Independent Foster Care-Oth Agency Provision,THIRD PARTY PAYMENTS,PRIVATE CONTRACTOR,REVENUE
Walsall Council,http://opendatacommunities.org/id/metropolitan-district-council/walsall ,WC126-706,31.05.2021,CHILDRENS,REDACTED,04/05/2021,340.00,6223-Internal Foster Carers-Carer Fees,TRANSFER PAYMENTS,CHILDREN SOCIAL SERVICES CLIENT,REVENUE
Walsall Council,http://opendatacommunities.org/id/metropolitan-district-council/walsall ,WC126-707,31.05.2021,CHILDRENS,REDACTED,04/05/2021,600.00,6223-Foster Carers Maintenance Allowance,TRANSFER PAYMENTS,CHILDREN SOCIAL SERVICES CLIENT,REVENUE
Walsall Council,http://opendatacommunities.org/id/metropolitan-district-council/walsall ,WC126-708,31.05.2021,CHILDRENS,BARR BEACON SCHOOL TRUST,17/05/2021,"31,823.44",1220-Top Up Funding -Grants to Schools,SUPPLIES & SERVICES,GRANTS (EXP) & SUBSCRIPTIONS,REVENUE
Walsall Council,http://opendatacommunities.org/id/metropolitan-district-council/walsall ,WC126-709,31.05.2021,ADULT SOCIAL CARE,BASEMAP LTD,17/05/2021,"1,250.00",6420-Consultant Fees,SUPPLIES & SERVICES,SERVICES,REVENUE
Walsall Council,http://opendatacommunities.org/id/metropolitan-district-council/walsall ,WC126-710,31.05.2021,ECONOMY & ENVIRONMENT,BAT FABRICATIONS LTD,21/05/2021,900.00,6410-Professional Services-Priv Contractor & Other Agencies,THIRD PARTY PAYMENTS,PRIVATE CONTRACTOR,REVENUE
Walsall Council,http://opendatacommunities.org/id/metropolitan-district-council/walsall ,WC126-711,31.05.2021,RESOURCES AND TRANSFORMATION,BAT FABRICATIONS LTD,20/05/2021,400.00,6310-Planned Maintenance,PREMISES,REPAIRS & MAINTENANCE,REVENUE
Walsall Council,http://opendatacommunities.org/id/metropolitan-district-council/walsall ,WC126-712,31.05.2021,RESOURCES AND TRANSFORMATION,BAT FABRICATIONS LTD,20/05/2021,900.00,6310-Planned Maintenance,PREMISES,REPAIRS & MAINTENANCE,REVENUE
Walsall Council,http://opendatacommunities.org/id/metropolitan-district-council/walsall ,WC126-713,31.05.2021,CHILDRENS,BEACON CHILDCARE LTD,17/05/2021,"12,200.00",6223-External Residential Care-Oth Agency Provision,THIRD PARTY PAYMENTS,PRIVATE CONTRACTOR,REVENUE
Walsall Council,http://opendatacommunities.org/id/metropolitan-district-council/walsall ,WC126-714,31.05.2021,ADULT SOCIAL CARE,BEACON PHARMACY,10/05/2021,300.00,6420-Contribution to PCT,THIRD PARTY PAYMENTS,HEALTH AUTHORITIES,REVENUE
Walsall Council,http://opendatacommunities.org/id/metropolitan-district-council/walsall ,WC126-715,31.05.2021,ECONOMY & ENVIRONMENT,BEADEN POWERLEC LIMITED,20/05/2021,475.00,6413-Repair & Maintenance of Furniture & Equipment,SUPPLIES & SERVICES,EQUIPMENT FURNITURE & MATERIALS,REVENUE
Walsall Council,http://opendatacommunities.org/id/metropolitan-district-council/walsall ,WC126-716,31.05.2021,ECONOMY & ENVIRONMENT,BEADEN POWERLEC LIMITED,17/05/2021,785.00,6413-Repair & Maintenance of Furniture & Equipment,SUPPLIES & SERVICES,EQUIPMENT FURNITURE & MATERIALS,REVENUE
Walsall Council,http://opendatacommunities.org/id/metropolitan-district-council/walsall ,WC126-717,31.05.2021,ECONOMY & ENVIRONMENT,BEE TEE ALARMS LTD,18/05/2021,575.00,6410-Professional Services-Priv Contractor & Other Agencies,THIRD PARTY PAYMENTS,PRIVATE CONTRACTOR,REVENUE
Walsall Council,http://opendatacommunities.org/id/metropolitan-district-council/walsall ,WC126-718,31.05.2021,ADULT SOCIAL CARE,BEECHWOODCOURT LTD  T/A BEECHWOOD COLLEGE,05/05/2021,"15,022.43",6541-Residential,THIRD PARTY PAYMENTS,PRIVATE CONTRACTOR,REVENUE
Walsall Council,http://opendatacommunities.org/id/metropolitan-district-council/walsall ,WC126-719,31.05.2021,ADULT SOCIAL CARE,BELVIDERE COURT,10/05/2021,"2,885.64",6541-Residential,THIRD PARTY PAYMENTS,PRIVATE CONTRACTOR,REVENUE
Walsall Council,http://opendatacommunities.org/id/metropolitan-district-council/walsall ,WC126-720,31.05.2021,ADULT SOCIAL CARE,BELVIDERE COURT,10/05/2021,"2,411.40",6541-Nursing,THIRD PARTY PAYMENTS,PRIVATE CONTRACTOR,REVENUE
Walsall Council,http://opendatacommunities.org/id/metropolitan-district-council/walsall ,WC126-721,31.05.2021,ADULT SOCIAL CARE,BENEDON HEALTHCARE LTD,12/05/2021,"1,381.44",6541-Community Supported Living/Supported Accommodation,THIRD PARTY PAYMENTS,PRIVATE CONTRACTOR,REVENUE
Walsall Council,http://opendatacommunities.org/id/metropolitan-district-council/walsall ,WC126-722,31.05.2021,ADULT SOCIAL CARE,BENEDON HEALTHCARE LTD,05/05/2021,"5,842.36",6541-Community Supported Living/Supported Accommodation,THIRD PARTY PAYMENTS,PRIVATE CONTRACTOR,REVENUE
Walsall Council,http://opendatacommunities.org/id/metropolitan-district-council/walsall ,WC126-723,31.05.2021,ADULT SOCIAL CARE,REDACTED,05/05/2021,"2,864.72",6541-Direct Payment,THIRD PARTY PAYMENTS,PRIVATE CONTRACTOR,REVENUE
Walsall Council,http://opendatacommunities.org/id/metropolitan-district-council/walsall ,WC126-724,31.05.2021,CHILDRENS,BENTLEY CHILD CARE,25/05/2021,600.00,6241-Professional Fees & Services,SUPPLIES & SERVICES,SERVICES,REVENUE
Walsall Council,http://opendatacommunities.org/id/metropolitan-district-council/walsall ,WC126-725,31.05.2021,ADULT SOCIAL CARE,BENTLEY COURT PRIORY,10/05/2021,"2,411.40",6541-Nursing,THIRD PARTY PAYMENTS,PRIVATE CONTRACTOR,REVENUE
Walsall Council,http://opendatacommunities.org/id/metropolitan-district-council/walsall ,WC126-726,31.05.2021,ADULT SOCIAL CARE,BENTLEY COURT PRIORY,10/05/2021,962.86,6541-Nursing EMI,THIRD PARTY PAYMENTS,PRIVATE CONTRACTOR,REVENUE
Walsall Council,http://opendatacommunities.org/id/metropolitan-district-council/walsall ,WC126-727,31.05.2021,ADULT SOCIAL CARE,BENTLEY COURT PRIORY,10/05/2021,"2,411.40",6541-Nursing,THIRD PARTY PAYMENTS,PRIVATE CONTRACTOR,REVENUE
Walsall Council,http://opendatacommunities.org/id/metropolitan-district-council/walsall ,WC126-728,31.05.2021,ADULT SOCIAL CARE,BENTLEY COURT PRIORY,10/05/2021,"2,713.33",6541-Nursing EMI,THIRD PARTY PAYMENTS,PRIVATE CONTRACTOR,REVENUE
Walsall Council,http://opendatacommunities.org/id/metropolitan-district-council/walsall ,WC126-729,31.05.2021,ADULT SOCIAL CARE,BENTLEY COURT PRIORY,10/05/2021,"2,713.33",6541-Nursing EMI,THIRD PARTY PAYMENTS,PRIVATE CONTRACTOR,REVENUE
Walsall Council,http://opendatacommunities.org/id/metropolitan-district-council/walsall ,WC126-730,31.05.2021,ADULT SOCIAL CARE,BENTLEY COURT PRIORY,10/05/2021,250.00,6541-Nursing EMI,THIRD PARTY PAYMENTS,PRIVATE CONTRACTOR,REVENUE
Walsall Council,http://opendatacommunities.org/id/metropolitan-district-council/walsall ,WC126-731,31.05.2021,HOLDING ACCOUNTS,BERRYMANS LACE MAWER LLP,11/05/2021,"4,082.50",2877-Insurance Payment Claims,SUPPLIES & SERVICES,INSURANCE,REVENUE
Walsall Council,http://opendatacommunities.org/id/metropolitan-district-council/walsall ,WC126-732,31.05.2021,ADULT SOCIAL CARE,REDACTED,05/05/2021,"1,931.68",6541-Direct Payment,THIRD PARTY PAYMENTS,PRIVATE CONTRACTOR,REVENUE
Walsall Council,http://opendatacommunities.org/id/metropolitan-district-council/walsall ,WC126-733,31.05.2021,ADULT SOCIAL CARE,BESS CARE LIMITED,05/05/2021,258.30,6541-Domiciliary Care,THIRD PARTY PAYMENTS,PRIVATE CONTRACTOR,REVENUE
Walsall Council,http://opendatacommunities.org/id/metropolitan-district-council/walsall ,WC126-734,31.05.2021,ADULT SOCIAL CARE,BESS CARE LIMITED,05/05/2021,350.88,6541-Domiciliary Care,THIRD PARTY PAYMENTS,PRIVATE CONTRACTOR,REVENUE
Walsall Council,http://opendatacommunities.org/id/metropolitan-district-council/walsall ,WC126-735,31.05.2021,ADULT SOCIAL CARE,BESS CARE LIMITED,05/05/2021,262.22,6541-Domiciliary Care,THIRD PARTY PAYMENTS,PRIVATE CONTRACTOR,REVENUE
Walsall Council,http://opendatacommunities.org/id/metropolitan-district-council/walsall ,WC126-736,31.05.2021,ADULT SOCIAL CARE,BESS CARE LIMITED,05/05/2021,505.08,6541-Domiciliary Care,THIRD PARTY PAYMENTS,PRIVATE CONTRACTOR,REVENUE
Walsall Council,http://opendatacommunities.org/id/metropolitan-district-council/walsall ,WC126-737,31.05.2021,ADULT SOCIAL CARE,BESS CARE LIMITED,05/05/2021,258.30,6541-Domiciliary Care,THIRD PARTY PAYMENTS,PRIVATE CONTRACTOR,REVENUE
Walsall Council,http://opendatacommunities.org/id/metropolitan-district-council/walsall ,WC126-738,31.05.2021,ADULT SOCIAL CARE,BESS CARE LIMITED,05/05/2021,350.88,6541-Domiciliary Care,THIRD PARTY PAYMENTS,PRIVATE CONTRACTOR,REVENUE
Walsall Council,http://opendatacommunities.org/id/metropolitan-district-council/walsall ,WC126-739,31.05.2021,ADULT SOCIAL CARE,BESS CARE LIMITED,05/05/2021,755.79,6541-Domiciliary Care,THIRD PARTY PAYMENTS,PRIVATE CONTRACTOR,REVENUE
Walsall Council,http://opendatacommunities.org/id/metropolitan-district-council/walsall ,WC126-740,31.05.2021,ADULT SOCIAL CARE,BESS CARE LIMITED,05/05/2021,528.22,6541-Domiciliary Care,THIRD PARTY PAYMENTS,PRIVATE CONTRACTOR,REVENUE
Walsall Council,http://opendatacommunities.org/id/metropolitan-district-council/walsall ,WC126-741,31.05.2021,ADULT SOCIAL CARE,BESS CARE LIMITED,05/05/2021,254.45,6541-Domiciliary Care,THIRD PARTY PAYMENTS,PRIVATE CONTRACTOR,REVENUE
Walsall Council,http://opendatacommunities.org/id/metropolitan-district-council/walsall ,WC126-742,31.05.2021,ADULT SOCIAL CARE,BESS CARE LIMITED,05/05/2021,350.88,6541-Domiciliary Care,THIRD PARTY PAYMENTS,PRIVATE CONTRACTOR,REVENUE
Walsall Council,http://opendatacommunities.org/id/metropolitan-district-council/walsall ,WC126-743,31.05.2021,ADULT SOCIAL CARE,BESS CARE LIMITED,05/05/2021,755.79,6541-Domiciliary Care,THIRD PARTY PAYMENTS,PRIVATE CONTRACTOR,REVENUE
Walsall Council,http://opendatacommunities.org/id/metropolitan-district-council/walsall ,WC126-744,31.05.2021,ADULT SOCIAL CARE,BESS CARE LIMITED,05/05/2021,539.79,6541-Domiciliary Care,THIRD PARTY PAYMENTS,PRIVATE CONTRACTOR,REVENUE
Walsall Council,http://opendatacommunities.org/id/metropolitan-district-council/walsall ,WC126-745,31.05.2021,ADULT SOCIAL CARE,BESS CARE LIMITED,05/05/2021,258.30,6541-Domiciliary Care,THIRD PARTY PAYMENTS,PRIVATE CONTRACTOR,REVENUE
Walsall Council,http://opendatacommunities.org/id/metropolitan-district-council/walsall ,WC126-746,31.05.2021,ADULT SOCIAL CARE,BESS CARE LIMITED,05/05/2021,350.88,6541-Domiciliary Care,THIRD PARTY PAYMENTS,PRIVATE CONTRACTOR,REVENUE
Walsall Council,http://opendatacommunities.org/id/metropolitan-district-council/walsall ,WC126-747,31.05.2021,ADULT SOCIAL CARE,BESS CARE LIMITED,05/05/2021,755.79,6541-Domiciliary Care,THIRD PARTY PAYMENTS,PRIVATE CONTRACTOR,REVENUE
Walsall Council,http://opendatacommunities.org/id/metropolitan-district-council/walsall ,WC126-748,31.05.2021,ADULT SOCIAL CARE,BESS CARE LIMITED,05/05/2021,528.22,6541-Domiciliary Care,THIRD PARTY PAYMENTS,PRIVATE CONTRACTOR,REVENUE
Walsall Council,http://opendatacommunities.org/id/metropolitan-district-council/walsall ,WC126-749,31.05.2021,ADULT SOCIAL CARE,BETHPHAGE.,05/05/2021,905.20,6541-Community Supported Living/Supported Accommodation,THIRD PARTY PAYMENTS,PRIVATE CONTRACTOR,REVENUE
Walsall Council,http://opendatacommunities.org/id/metropolitan-district-council/walsall ,WC126-750,31.05.2021,ADULT SOCIAL CARE,BETHPHAGE.,05/05/2021,"1,635.20",6541-Community Supported Living/Supported Accommodation,THIRD PARTY PAYMENTS,PRIVATE CONTRACTOR,REVENUE
Walsall Council,http://opendatacommunities.org/id/metropolitan-district-council/walsall ,WC126-751,31.05.2021,ADULT SOCIAL CARE,BETHPHAGE.,05/05/2021,"1,576.80",6541-Community Supported Living/Supported Accommodation,THIRD PARTY PAYMENTS,PRIVATE CONTRACTOR,REVENUE
Walsall Council,http://opendatacommunities.org/id/metropolitan-district-council/walsall ,WC126-752,31.05.2021,ADULT SOCIAL CARE,BETHPHAGE.,05/05/2021,627.80,6541-Community Supported Living/Supported Accommodation,THIRD PARTY PAYMENTS,PRIVATE CONTRACTOR,REVENUE
Walsall Council,http://opendatacommunities.org/id/metropolitan-district-council/walsall ,WC126-753,31.05.2021,ADULT SOCIAL CARE,BETHPHAGE.,05/05/2021,"1,518.40",6541-Community Supported Living/Supported Accommodation,THIRD PARTY PAYMENTS,PRIVATE CONTRACTOR,REVENUE
Walsall Council,http://opendatacommunities.org/id/metropolitan-district-council/walsall ,WC126-754,31.05.2021,ADULT SOCIAL CARE,BETHPHAGE.,05/05/2021,"8,417.64",6541-Community Supported Living/Supported Accommodation,THIRD PARTY PAYMENTS,PRIVATE CONTRACTOR,REVENUE
Walsall Council,http://opendatacommunities.org/id/metropolitan-district-council/walsall ,WC126-755,31.05.2021,ADULT SOCIAL CARE,BETHPHAGE.,10/05/2021,565.75,6541-Domiciliary Care,THIRD PARTY PAYMENTS,PRIVATE CONTRACTOR,REVENUE
Walsall Council,http://opendatacommunities.org/id/metropolitan-district-council/walsall ,WC126-756,31.05.2021,ADULT SOCIAL CARE,BETHPHAGE.,10/05/2021,654.05,6541-Domiciliary Care,THIRD PARTY PAYMENTS,PRIVATE CONTRACTOR,REVENUE
Walsall Council,http://opendatacommunities.org/id/metropolitan-district-council/walsall ,WC126-757,31.05.2021,ADULT SOCIAL CARE,BETHPHAGE.,10/05/2021,654.00,6541-Domiciliary Care,THIRD PARTY PAYMENTS,PRIVATE CONTRACTOR,REVENUE
Walsall Council,http://opendatacommunities.org/id/metropolitan-district-council/walsall ,WC126-758,31.05.2021,ADULT SOCIAL CARE,BETHPHAGE.,10/05/2021,856.47,6541-Domiciliary Care,THIRD PARTY PAYMENTS,PRIVATE CONTRACTOR,REVENUE
Walsall Council,http://opendatacommunities.org/id/metropolitan-district-council/walsall ,WC126-759,31.05.2021,ADULT SOCIAL CARE,BETHPHAGE.,10/05/2021,565.75,6541-Domiciliary Care,THIRD PARTY PAYMENTS,PRIVATE CONTRACTOR,REVENUE
Walsall Council,http://opendatacommunities.org/id/metropolitan-district-council/walsall ,WC126-760,31.05.2021,ADULT SOCIAL CARE,BETHPHAGE.,10/05/2021,654.05,6541-Domiciliary Care,THIRD PARTY PAYMENTS,PRIVATE CONTRACTOR,REVENUE
Walsall Council,http://opendatacommunities.org/id/metropolitan-district-council/walsall ,WC126-761,31.05.2021,ADULT SOCIAL CARE,BETHPHAGE.,10/05/2021,654.00,6541-Domiciliary Care,THIRD PARTY PAYMENTS,PRIVATE CONTRACTOR,REVENUE
Walsall Council,http://opendatacommunities.org/id/metropolitan-district-council/walsall ,WC126-762,31.05.2021,ADULT SOCIAL CARE,BETHPHAGE.,24/05/2021,856.35,6541-Domiciliary Care,THIRD PARTY PAYMENTS,PRIVATE CONTRACTOR,REVENUE
Walsall Council,http://opendatacommunities.org/id/metropolitan-district-council/walsall ,WC126-763,31.05.2021,ADULT SOCIAL CARE,BETHPHAGE.,24/05/2021,565.75,6541-Domiciliary Care,THIRD PARTY PAYMENTS,PRIVATE CONTRACTOR,REVENUE
Walsall Council,http://opendatacommunities.org/id/metropolitan-district-council/walsall ,WC126-764,31.05.2021,ADULT SOCIAL CARE,BETHPHAGE.,24/05/2021,654.05,6541-Domiciliary Care,THIRD PARTY PAYMENTS,PRIVATE CONTRACTOR,REVENUE
Walsall Council,http://opendatacommunities.org/id/metropolitan-district-council/walsall ,WC126-765,31.05.2021,ADULT SOCIAL CARE,BETHPHAGE.,24/05/2021,654.00,6541-Domiciliary Care,THIRD PARTY PAYMENTS,PRIVATE CONTRACTOR,REVENUE
Walsall Council,http://opendatacommunities.org/id/metropolitan-district-council/walsall ,WC126-766,31.05.2021,ADULT SOCIAL CARE,BETHPHAGE.,24/05/2021,565.75,6541-Domiciliary Care,THIRD PARTY PAYMENTS,PRIVATE CONTRACTOR,REVENUE
Walsall Council,http://opendatacommunities.org/id/metropolitan-district-council/walsall ,WC126-767,31.05.2021,ADULT SOCIAL CARE,BETHPHAGE.,24/05/2021,654.05,6541-Domiciliary Care,THIRD PARTY PAYMENTS,PRIVATE CONTRACTOR,REVENUE
Walsall Council,http://opendatacommunities.org/id/metropolitan-district-council/walsall ,WC126-768,31.05.2021,ADULT SOCIAL CARE,BETHPHAGE.,24/05/2021,654.00,6541-Domiciliary Care,THIRD PARTY PAYMENTS,PRIVATE CONTRACTOR,REVENUE
Walsall Council,http://opendatacommunities.org/id/metropolitan-district-council/walsall ,WC126-769,31.05.2021,ADULT SOCIAL CARE,REDACTED,05/05/2021,826.88,6541-Direct Payment,THIRD PARTY PAYMENTS,PRIVATE CONTRACTOR,REVENUE
Walsall Council,http://opendatacommunities.org/id/metropolitan-district-council/walsall ,WC126-770,31.05.2021,ADULT SOCIAL CARE,BEVAN BRITTAN,24/05/2021,554.90,6550-Professional Fees & Services,SUPPLIES & SERVICES,SERVICES,REVENUE
Walsall Council,http://opendatacommunities.org/id/metropolitan-district-council/walsall ,WC126-771,31.05.2021,ECONOMY & ENVIRONMENT,BEVAN BRITTAN,07/05/2021,"2,058.50",6313-Professional Fees & Services,SUPPLIES & SERVICES,SERVICES,REVENUE
Walsall Council,http://opendatacommunities.org/id/metropolitan-district-council/walsall ,WC126-772,31.05.2021,ECONOMY & ENVIRONMENT CAPITAL,BEVAN MOTOR BODIES LTD,07/05/2021,"107,075.00",7200-Vehicles Leasing,CAPITAL,LEASING,CAPITAL
Walsall Council,http://opendatacommunities.org/id/metropolitan-district-council/walsall ,WC126-773,31.05.2021,ADULT SOCIAL CARE,REDACTED,05/05/2021,"1,138.20",6541-Direct Payment,THIRD PARTY PAYMENTS,PRIVATE CONTRACTOR,REVENUE
Walsall Council,http://opendatacommunities.org/id/metropolitan-district-council/walsall ,WC126-774,31.05.2021,CHILDRENS,BIRCHILLS C OF E COMMUNITY ACADEMY,17/05/2021,"19,406.55",1220-Top Up Funding -Grants to Schools,SUPPLIES & SERVICES,GRANTS (EXP) & SUBSCRIPTIONS,REVENUE
Walsall Council,http://opendatacommunities.org/id/metropolitan-district-council/walsall ,WC126-775,31.05.2021,CHILDRENS,BIRMINGHAM CITY COUNCIL,25/05/2021,251.47,6223-Accommodation and Related Costs-Assistance to S/S Clients,TRANSFER PAYMENTS,ADULT SOCIAL SERVICES CLIENT,REVENUE
Walsall Council,http://opendatacommunities.org/id/metropolitan-district-council/walsall ,WC126-776,31.05.2021,CHILDRENS,BIRMINGHAM CITY COUNCIL,04/05/2021,"10,152.28",1220-Professional Fees & Services,SUPPLIES & SERVICES,SERVICES,REVENUE
Walsall Council,http://opendatacommunities.org/id/metropolitan-district-council/walsall ,WC126-777,31.05.2021,CHILDRENS,BIRMINGHAM CITY COUNCIL,04/05/2021,"14,814.77",1220-Professional Fees & Services,SUPPLIES & SERVICES,SERVICES,REVENUE
Walsall Council,http://opendatacommunities.org/id/metropolitan-district-council/walsall ,WC126-778,31.05.2021,CHILDRENS,BIRMINGHAM CITY COUNCIL,25/05/2021,"20,143.34",1220-Professional Fees & Services,SUPPLIES & SERVICES,SERVICES,REVENUE
Walsall Council,http://opendatacommunities.org/id/metropolitan-district-council/walsall ,WC126-779,31.05.2021,CHILDRENS,BIRMINGHAM CITY COUNCIL,25/05/2021,"10,152.28",1220-Professional Fees & Services,SUPPLIES & SERVICES,SERVICES,REVENUE
Walsall Council,http://opendatacommunities.org/id/metropolitan-district-council/walsall ,WC126-780,31.05.2021,CHILDRENS,BIRMINGHAM CITY COUNCIL,25/05/2021,"5,857.08",1220-Professional Fees & Services,SUPPLIES & SERVICES,SERVICES,REVENUE
Walsall Council,http://opendatacommunities.org/id/metropolitan-district-council/walsall ,WC126-781,31.05.2021,CHILDRENS,BIRMINGHAM CITY COUNCIL,04/05/2021,"3,863.90",6241-Hire of Vehicle with Driver,TRANSPORT,DIRECT TRANSPORT COSTS,REVENUE
Walsall Council,http://opendatacommunities.org/id/metropolitan-district-council/walsall ,WC126-782,31.05.2021,ADULT SOCIAL CARE,BIRMINGHAM CITY COUNCIL,20/05/2021,"210,000.00",6540-Materials,SUPPLIES & SERVICES,EQUIPMENT FURNITURE & MATERIALS,REVENUE
Walsall Council,http://opendatacommunities.org/id/metropolitan-district-council/walsall ,WC126-783,31.05.2021,ADULT SOCIAL CARE,BIRMINGHAM CITY COUNCIL,20/05/2021,"492,480.00",6540-Materials,SUPPLIES & SERVICES,EQUIPMENT FURNITURE & MATERIALS,REVENUE
Walsall Council,http://opendatacommunities.org/id/metropolitan-district-council/walsall ,WC126-784,31.05.2021,ADULT SOCIAL CARE,BIRMINGHAM CITY COUNCIL,05/05/2021,"2,100.00",6541-Community Supported Living/Supported Accommodation,THIRD PARTY PAYMENTS,PRIVATE CONTRACTOR,REVENUE
Walsall Council,http://opendatacommunities.org/id/metropolitan-district-council/walsall ,WC126-785,31.05.2021,ADULT SOCIAL CARE,BIRMINGHAM CITY COUNCIL,05/05/2021,"3,900.00",6541-Community Supported Living/Supported Accommodation,THIRD PARTY PAYMENTS,PRIVATE CONTRACTOR,REVENUE
Walsall Council,http://opendatacommunities.org/id/metropolitan-district-council/walsall ,WC126-786,31.05.2021,ADULT SOCIAL CARE,BIRMINGHAM CITY COUNCIL,05/05/2021,"4,971.42",6541-Community Supported Living/Supported Accommodation,THIRD PARTY PAYMENTS,PRIVATE CONTRACTOR,REVENUE
Walsall Council,http://opendatacommunities.org/id/metropolitan-district-council/walsall ,WC126-787,31.05.2021,ECONOMY & ENVIRONMENT,BLACK COUNTRY CONSORTIUM LIMITED,04/05/2021,"13,322.00",6315-Professional Fees & Services,SUPPLIES & SERVICES,SERVICES,REVENUE
Walsall Council,http://opendatacommunities.org/id/metropolitan-district-council/walsall ,WC126-788,31.05.2021,RESOURCES AND TRANSFORMATION,BLACK COUNTRY CONSORTIUM LIMITED,04/05/2021,"90,000.00",6312-Professional Fees & Services,SUPPLIES & SERVICES,SERVICES,REVENUE
Walsall Council,http://opendatacommunities.org/id/metropolitan-district-council/walsall ,WC126-789,31.05.2021,RESOURCES AND TRANSFORMATION,BLACK COUNTRY CONSORTIUM LIMITED,04/05/2021,"59,619.39",6312-Grants to Associations,SUPPLIES & SERVICES,GRANTS (EXP) & SUBSCRIPTIONS,REVENUE
Walsall Council,http://opendatacommunities.org/id/metropolitan-district-council/walsall ,WC126-790,31.05.2021,RESOURCES AND TRANSFORMATION,BLACK COUNTRY CONSORTIUM LIMITED,04/05/2021,"52,947.87",6312-Grants to Associations,SUPPLIES & SERVICES,GRANTS (EXP) & SUBSCRIPTIONS,REVENUE
Walsall Council,http://opendatacommunities.org/id/metropolitan-district-council/walsall ,WC126-791,31.05.2021,RESOURCES AND TRANSFORMATION,BLACK COUNTRY CONSORTIUM LIMITED,05/05/2021,"49,590.39",6312-Grants to Associations,SUPPLIES & SERVICES,GRANTS (EXP) & SUBSCRIPTIONS,REVENUE
Walsall Council,http://opendatacommunities.org/id/metropolitan-district-council/walsall ,WC126-792,31.05.2021,RESOURCES AND TRANSFORMATION,BLACK COUNTRY CONSORTIUM LIMITED,05/05/2021,"35,163.43",6312-Grants to Associations,SUPPLIES & SERVICES,GRANTS (EXP) & SUBSCRIPTIONS,REVENUE
Walsall Council,http://opendatacommunities.org/id/metropolitan-district-council/walsall ,WC126-793,31.05.2021,RESOURCES AND TRANSFORMATION,BLACK COUNTRY CONSORTIUM LIMITED,18/05/2021,"43,862.89",6312-Grants to Associations,SUPPLIES & SERVICES,GRANTS (EXP) & SUBSCRIPTIONS,REVENUE
Walsall Council,http://opendatacommunities.org/id/metropolitan-district-council/walsall ,WC126-794,31.05.2021,RESOURCES AND TRANSFORMATION,BLACK COUNTRY CONSORTIUM LIMITED,18/05/2021,"39,199.96",6312-Grants to Associations,SUPPLIES & SERVICES,GRANTS (EXP) & SUBSCRIPTIONS,REVENUE
Walsall Council,http://opendatacommunities.org/id/metropolitan-district-council/walsall ,WC126-795,31.05.2021,ECONOMY & ENVIRONMENT,BLACK COUNTRY DANCE HUB,11/05/2021,"5,000.00",6414-Professional Fees & Services,SUPPLIES & SERVICES,SERVICES,REVENUE
Walsall Council,http://opendatacommunities.org/id/metropolitan-district-council/walsall ,WC126-796,31.05.2021,RESOURCES AND TRANSFORMATION,BLACK COUNTRY INNOVATE CIC,05/05/2021,"9,985.00",6312-Grants to Other Orgs,SUPPLIES & SERVICES,GRANTS (EXP) & SUBSCRIPTIONS,REVENUE
Walsall Council,http://opendatacommunities.org/id/metropolitan-district-council/walsall ,WC126-797,31.05.2021,ECONOMY & ENVIRONMENT,BLACK COUNTRY INNOVATE CIC,25/05/2021,"16,000.00",6430-Grants to Other Orgs,SUPPLIES & SERVICES,GRANTS (EXP) & SUBSCRIPTIONS,REVENUE
Walsall Council,http://opendatacommunities.org/id/metropolitan-district-council/walsall ,WC126-798,31.05.2021,ECONOMY & ENVIRONMENT,BLACK COUNTRY INNOVATE CIC,25/05/2021,"5,000.00",6430-Grants to Other Orgs,SUPPLIES & SERVICES,GRANTS (EXP) & SUBSCRIPTIONS,REVENUE
Walsall Council,http://opendatacommunities.org/id/metropolitan-district-council/walsall ,WC126-799,31.05.2021,RESOURCES AND TRANSFORMATION,BLACK COUNTRY LIVING MUSEUM TRUST,25/05/2021,"1,123,740.06",7300-Private Grants,CAPITAL,CAPITAL GRANTS,CAPITAL
